Service Area,Expenses Type,Date,Transaction Number,Amount,Supplier Name
SSEYCCG - 0-7 PARTNERSHIP PILOT,Professional Service,02/11/2010,5000110249,517.10,*RAYNS SERVICES
CWF Schls Modernisation Grant,Train and Conference,30/11/2010,5000114928,"2,660.00",*WISH
Pension Fund Revenue Account,Wm Company Fees,22/12/2010,1900000619,"2,677.00",2000 WORLD MKTS COMPANY PLC
Medina Vending Machine Stock,Order Settlement,13/10/2010,5000106430,580.03,3663 (BFS GROUP LTD)
Adelaide Resource Centre,Catering Purchases,28/10/2010,5000109594,547.01,3663 (BFS GROUP LTD)
Avenues Day Centre,Catering Purchases,18/11/2010,5000113216,652.68,3663 (BFS GROUP LTD)
Medina Vending Machine Stock,Order Settlement,13/12/2010,5000116919,547.83,3663 (BFS GROUP LTD)
Adelaide Resource Centre,Catering Purchases,14/12/2010,5000117127,521.56,3663 (BFS GROUP LTD)
Heights Vending Stock,Order Settlement,22/12/2010,5000118763,500.85,3663 (BFS GROUP LTD)
Disabled Facilities Grants,Capital Grants,04/10/2010,1900238684,"3,580.00",A & G HOOKEY LIMITED
Housing Renewal Assistance,Capital Grants,04/10/2010,1900238689,"2,234.87",A & G HOOKEY LIMITED
Housing Renewal Assistance,Capital Grants,26/10/2010,1900246821,"6,555.99",A & G HOOKEY LIMITED
Disabled Facilities Grants,Capital Grants,05/11/2010,1900253424,"3,786.00",A & G HOOKEY LIMITED
Disabled Facilities Grants,Capital Grants,18/11/2010,1900259981,"5,518.59",A & G HOOKEY LIMITED
Disabled Facilities Grants,Capital Grants,22/12/2010,1900277750,"4,977.55",A & G HOOKEY LIMITED
Disabled Facilities Grants,Capital Grants,22/11/2010,1900260413,"4,909.33",A CARPENTER & SON (BUILDERS) LTD
Disabled Facilities Grants,Capital Grants,10/12/2010,1900271967,"5,721.03",A CARPENTER & SON (BUILDERS) LTD
Disabled Facilities Grants,Capital Grants,22/12/2010,1900277741,"5,544.00",A CARPENTER & SON (BUILDERS) LTD
Disabled Facilities Grants,Capital Grants,26/10/2010,1900246802,"6,715.00",A J BOUND CONSTRUCTION
SEN Transport,Transport of Clients,13/10/2010,5000106361,972.00,A.B.A. TAXIS
SEN Transport,Transport of Clients,13/10/2010,5000106356,540.00,A.B.A. TAXIS
High Sector Home to School Transport,Transport of Clients,14/10/2010,5105620695,"1,188.00",A.B.A. TAXIS
SEN Transport,Transport of Clients,05/11/2010,5000111125,810.00,A.B.A. TAXIS
High Sector Home to School Transport,Transport of Clients,12/11/2010,5105626908,"1,050.00",A.B.A. TAXIS
SEN Transport,Transport of Clients,14/12/2010,5000116962,"1,188.00",A.B.A. TAXIS
SEN Transport,Transport of Clients,14/12/2010,5000116974,660.00,A.B.A. TAXIS
SEN Transport,Transport of Clients,14/12/2010,5000116968,506.00,A.B.A. TAXIS
Primary Sector Home to School Transport,Transport of Clients,16/12/2010,5105633932,"1,199.90",A.B.A. TAXIS
SP Older Persons,Pay to Pvte Contract,28/10/2010,5000109399,600.00,ABBEYFIELD COWES SOCIETY LTD [SP]
SP Older Persons,Pay to Pvte Contract,25/11/2010,5000114315,831.43,ABBEYFIELD COWES SOCIETY LTD [SP]
SP Older Persons,Pay to Pvte Contract,25/11/2010,5000114315,600.00,ABBEYFIELD COWES SOCIETY LTD [SP]
SP Older Persons,Pay to Pvte Contract,23/12/2010,5000119174,933.21,ABBEYFIELD COWES SOCIETY LTD [SP]
SP Older Persons,Pay to Pvte Contract,23/12/2010,5000119174,600.00,ABBEYFIELD COWES SOCIETY LTD [SP]
SP Older Persons,Pay to Pvte Contract,28/10/2010,5000109396,"1,281.00",ABBEYFIELD WEST WIGHT SOCIETY[SP]
SP Older Persons,Pay to Pvte Contract,23/12/2010,5000118939,652.63,ABBEYFIELD WEST WIGHT SOCIETY[SP]
Choice Based Lettings,Cap Contractor Pmts,26/10/2010,5000108992,"13,359.75",ABRITAS LTD
Choice Based Lettings,Cap Contractor Pmts,26/10/2010,5000108991,658.11,ABRITAS LTD
Choice Based Lettings,Cap Contractor Pmts,05/11/2010,5105625168,"-1,989.75",ABRITAS LTD
Music - Associated Board Exam Fees,Order Settlement,05/11/2010,1900253361,678.20,ABRSM
EF - Res - OP East,Chgs from Ind Provs,12/10/2010,5105619469,"1,892.24",ACACIA CARE HOME [SB]
EF - Res - OP East,Chgs from Ind Provs,12/10/2010,5105619469,"1,892.24",ACACIA CARE HOME [SB]
EF - Res - OP East,Chgs from Ind Provs,12/10/2010,5105619469,"1,536.92",ACACIA CARE HOME [SB]
EMI - Res - OP East,Chgs from Ind Provs,12/10/2010,5105619469,"1,610.00",ACACIA CARE HOME [SB]
EMI - Res - OP East,Chgs from Ind Provs,12/10/2010,5105619469,"1,610.00",ACACIA CARE HOME [SB]
EF - Res - OP East,Chgs from Ind Provs,09/11/2010,5105625730,"1,892.24",ACACIA CARE HOME [SB]
EF - Res - OP East,Chgs from Ind Provs,09/11/2010,5105625730,"1,892.24",ACACIA CARE HOME [SB]
EF - Res - OP East,Chgs from Ind Provs,09/11/2010,5105625730,"1,536.92",ACACIA CARE HOME [SB]
EMI - Res - OP East,Chgs from Ind Provs,09/11/2010,5105625730,"1,610.00",ACACIA CARE HOME [SB]
EMI - Res - OP East,Chgs from Ind Provs,09/11/2010,5105625730,"1,610.00",ACACIA CARE HOME [SB]
EF - Homecare - OP East,Chgs from Ind Provs,30/11/2010,5000114980,"1,959.82",ACACIA CARE HOME [SB]
EF - Res - OP East,Chgs from Ind Provs,07/12/2010,5105631432,"1,892.24",ACACIA CARE HOME [SB]
EF - Res - OP East,Chgs from Ind Provs,07/12/2010,5105631432,"1,892.24",ACACIA CARE HOME [SB]
EF - Res - OP East,Chgs from Ind Provs,07/12/2010,5105631432,"1,536.92",ACACIA CARE HOME [SB]
EMI - Res - OP East,Chgs from Ind Provs,07/12/2010,5105631432,"1,610.00",ACACIA CARE HOME [SB]
EMI - Res - OP East,Chgs from Ind Provs,07/12/2010,5105631432,"1,610.00",ACACIA CARE HOME [SB]
Media,Professional Subs,08/11/2010,5000111322,"5,600.00",ACCESS INTELL. MEDIA & COMM LTD
EF - Homecare - OP East,Chgs from Ind Provs,06/10/2010,5000105157,864.00,ACORN CARE SERVICE LTD [SB]
EF - Homecare - OP East,Chgs from Ind Provs,07/10/2010,5000105243,703.41,ACORN CARE SERVICE LTD [SB]
EF - Homecare - OP East,Chgs from Ind Provs,07/10/2010,5000105401,567.26,ACORN CARE SERVICE LTD [SB]
EF - Homecare - OP East,Chgs from Ind Provs,08/10/2010,5000105467,"1,747.51",ACORN CARE SERVICE LTD [SB]
EF - Homecare - OP East,Chgs from Ind Provs,08/10/2010,5000105504,864.00,ACORN CARE SERVICE LTD [SB]
EF - Homecare - OP East,Chgs from Ind Provs,08/10/2010,5000105465,756.00,ACORN CARE SERVICE LTD [SB]
EF - Homecare - OP East,Chgs from Ind Provs,08/10/2010,5000105479,574.00,ACORN CARE SERVICE LTD [SB]
EF - Homecare - OP East,Chgs from Ind Provs,08/10/2010,5000105488,574.00,ACORN CARE SERVICE LTD [SB]
EF - Homecare - OP East,Chgs from Ind Provs,08/10/2010,5000105499,574.00,ACORN CARE SERVICE LTD [SB]
EF - Homecare - OP East,Chgs from Ind Provs,08/10/2010,1700032093,"-3,157.00",ACORN CARE SERVICE LTD [SB]
EF - Homecare - OP East,Chgs from Ind Provs,11/10/2010,5000105861,"1,053.64",ACORN CARE SERVICE LTD [SB]
EF - Homecare - OP East,Chgs from Ind Provs,11/10/2010,5000105740,770.00,ACORN CARE SERVICE LTD [SB]
EF - Homecare - OP East,Chgs from Ind Provs,11/10/2010,5000105778,770.00,ACORN CARE SERVICE LTD [SB]
EF - Homecare - OP East,Chgs from Ind Provs,11/10/2010,5000105821,756.00,ACORN CARE SERVICE LTD [SB]
Dementia Homecare,Chgs from Ind Provs,12/10/2010,5000106237,749.00,ACORN CARE SERVICE LTD [SB]
EF - Homecare - OP East,Chgs from Ind Provs,12/10/2010,5000106240,770.00,ACORN CARE SERVICE LTD [SB]
EF - Homecare - OP East,Chgs from Ind Provs,12/10/2010,5000106193,574.00,ACORN CARE SERVICE LTD [SB]
EF - Homecare - OP East,Chgs from Ind Provs,12/10/2010,5000106196,574.00,ACORN CARE SERVICE LTD [SB]
EF - Homecare - OP East,Chgs from Ind Provs,12/10/2010,5000106123,567.50,ACORN CARE SERVICE LTD [SB]
PD - Homecare - PD,Chgs from Ind Provs,12/10/2010,5000106275,826.05,ACORN CARE SERVICE LTD [SB]
EF - Homecare - OP East,Chgs from Ind Provs,15/10/2010,5000106988,598.09,ACORN CARE SERVICE LTD [SB]
PD - Homecare - PD,Chgs from Ind Provs,28/10/2010,5000109645,728.63,ACORN CARE SERVICE LTD [SB]
Dementia Homecare,Chgs from Ind Provs,02/11/2010,5000110189,756.50,ACORN CARE SERVICE LTD [SB]
EF - Homecare - OP East,Chgs from Ind Provs,02/11/2010,5000110337,"1,053.64",ACORN CARE SERVICE LTD [SB]
EF - Homecare - OP East,Chgs from Ind Provs,02/11/2010,5000110184,574.00,ACORN CARE SERVICE LTD [SB]
EF - Homecare - OP East,Chgs from Ind Provs,02/11/2010,5000110356,574.00,ACORN CARE SERVICE LTD [SB]
EF - Homecare - OP East,Chgs from Ind Provs,02/11/2010,5000110384,574.00,ACORN CARE SERVICE LTD [SB]
EF - Homecare - OP East,Chgs from Ind Provs,02/11/2010,5000110180,560.00,ACORN CARE SERVICE LTD [SB]
EF - Homecare - OP East,Chgs from Ind Provs,03/11/2010,5000110514,"1,351.72",ACORN CARE SERVICE LTD [SB]
EF - Homecare - OP East,Chgs from Ind Provs,03/11/2010,5000110551,864.00,ACORN CARE SERVICE LTD [SB]
EF - Homecare - OP East,Chgs from Ind Provs,03/11/2010,5000110511,770.00,ACORN CARE SERVICE LTD [SB]
EF - Homecare - OP East,Chgs from Ind Provs,03/11/2010,5000110545,770.00,ACORN CARE SERVICE LTD [SB]
EF - Homecare - OP East,Chgs from Ind Provs,03/11/2010,5000110500,756.00,ACORN CARE SERVICE LTD [SB]
EF - Homecare - OP East,Chgs from Ind Provs,03/11/2010,5000110553,736.00,ACORN CARE SERVICE LTD [SB]
EF - Homecare - OP East,Chgs from Ind Provs,03/11/2010,5000110506,574.00,ACORN CARE SERVICE LTD [SB]
EF - Homecare - OP East,Chgs from Ind Provs,03/11/2010,5000110550,574.00,ACORN CARE SERVICE LTD [SB]
EF - Homecare - OP East,Chgs from Ind Provs,03/11/2010,5000110508,570.63,ACORN CARE SERVICE LTD [SB]
EF - Homecare - OP East,Chgs from Ind Provs,03/11/2010,5000110495,560.50,ACORN CARE SERVICE LTD [SB]
PD - Homecare - PD,Chgs from Ind Provs,03/11/2010,5000110529,707.63,ACORN CARE SERVICE LTD [SB]
PD - Homecare - PD,Chgs from Ind Provs,03/11/2010,5000110527,684.30,ACORN CARE SERVICE LTD [SB]
EF - Homecare - OP East,Chgs from Ind Provs,04/11/2010,5000110896,770.00,ACORN CARE SERVICE LTD [SB]
EF - Homecare - OP East,Chgs from Ind Provs,11/11/2010,5000111987,560.00,ACORN CARE SERVICE LTD [SB]
Dementia Homecare,Chgs from Ind Provs,30/11/2010,5000115031,770.00,ACORN CARE SERVICE LTD [SB]
EF - Homecare - OP East,Chgs from Ind Provs,30/11/2010,5000115038,"1,053.64",ACORN CARE SERVICE LTD [SB]
EF - Homecare - OP East,Chgs from Ind Provs,30/11/2010,5000115061,770.00,ACORN CARE SERVICE LTD [SB]
EF - Homecare - OP East,Chgs from Ind Provs,30/11/2010,5000115073,770.00,ACORN CARE SERVICE LTD [SB]
EF - Homecare - OP East,Chgs from Ind Provs,30/11/2010,5000115106,770.00,ACORN CARE SERVICE LTD [SB]
EF - Homecare - OP East,Chgs from Ind Provs,30/11/2010,5000115137,756.00,ACORN CARE SERVICE LTD [SB]
EF - Homecare - OP East,Chgs from Ind Provs,30/11/2010,5000115020,641.90,ACORN CARE SERVICE LTD [SB]
EF - Homecare - OP East,Chgs from Ind Provs,30/11/2010,5000115040,574.00,ACORN CARE SERVICE LTD [SB]
EF - Homecare - OP East,Chgs from Ind Provs,30/11/2010,5000115058,574.00,ACORN CARE SERVICE LTD [SB]
EF - Homecare - OP East,Chgs from Ind Provs,30/11/2010,5000115098,574.00,ACORN CARE SERVICE LTD [SB]
EF - Homecare - OP East,Chgs from Ind Provs,30/11/2010,5000115139,560.50,ACORN CARE SERVICE LTD [SB]
EF - Homecare - OP East,Chgs from Ind Provs,01/12/2010,5000115278,864.00,ACORN CARE SERVICE LTD [SB]
EF - Homecare - OP East,Chgs from Ind Provs,09/12/2010,5000116313,756.00,ACORN CARE SERVICE LTD [SB]
EF - Homecare - OP East,Chgs from Ind Provs,09/12/2010,5000116309,574.00,ACORN CARE SERVICE LTD [SB]
EF - Homecare - OP East,Chgs from Ind Provs,09/12/2010,5000116369,574.00,ACORN CARE SERVICE LTD [SB]
EF - Homecare - OP East,Chgs from Ind Provs,09/12/2010,5000116346,567.00,ACORN CARE SERVICE LTD [SB]
PD - Homecare - PD,Chgs from Ind Provs,13/12/2010,5000116773,806.60,ACORN CARE SERVICE LTD [SB]
PD - Homecare - PD,Chgs from Ind Provs,13/12/2010,5000116782,622.00,ACORN CARE SERVICE LTD [SB]
Leader 2009/13 Grant Claims,Grants to Ext Bodies,03/11/2010,1900252497,"12,233.52",ADAM GROVES FABRICATION
WIGHTBUS Trading Account,Vehicle Maint Costs,01/10/2010,5000104438,"2,449.33",ADAMS MOREY LTD
WIGHTBUS Trading Account,Vehicle Maint Costs,01/10/2010,5000104436,"-2,584.33",ADAMS MOREY LTD
WIGHTBUS Trading Account,Vehicle Maint Costs,11/10/2010,5000106020,"1,170.86",ADAMS MOREY LTD
WIGHTBUS Trading Account,Vehicle Maint Costs,15/10/2010,5000106945,"5,605.56",ADAMS MOREY LTD
WIGHTBUS Trading Account,Vehicle Maint Costs,15/10/2010,5000106945,"1,981.33",ADAMS MOREY LTD
WIGHTBUS Trading Account,Vehicle Maint Costs,15/10/2010,5000106945,562.92,ADAMS MOREY LTD
WIGHTBUS Trading Account,Vehicle Maint Costs,15/10/2010,5000106945,548.40,ADAMS MOREY LTD
WIGHTBUS Trading Account,Vehicle Maint Costs,15/10/2010,5000106945,547.72,ADAMS MOREY LTD
WIGHTBUS Trading Account,Vehicle Maint Costs,15/10/2010,5000106945,539.28,ADAMS MOREY LTD
WIGHTBUS Trading Account,Vehicle Maint Costs,17/11/2010,5000113097,-970.70,ADAMS MOREY LTD
WIGHTBUS Trading Account,Vehicle Maint Costs,02/12/2010,5000115395,"3,602.59",ADAMS MOREY LTD
WIGHTBUS Trading Account,Vehicle Maint Costs,02/12/2010,5000115394,"3,244.68",ADAMS MOREY LTD
WIGHTBUS Trading Account,Vehicle Maint Costs,02/12/2010,5000115394,"2,977.05",ADAMS MOREY LTD
WIGHTBUS Trading Account,Vehicle Maint Costs,02/12/2010,5000115394,"2,482.81",ADAMS MOREY LTD
WIGHTBUS Trading Account,Vehicle Maint Costs,02/12/2010,5000115396,"1,921.60",ADAMS MOREY LTD
WIGHTBUS Trading Account,Vehicle Maint Costs,02/12/2010,5000115396,"1,651.39",ADAMS MOREY LTD
WIGHTBUS Trading Account,Vehicle Maint Costs,02/12/2010,5000115409,"1,108.00",ADAMS MOREY LTD
WIGHTBUS Trading Account,Vehicle Maint Costs,02/12/2010,5000115395,963.04,ADAMS MOREY LTD
WIGHTBUS Trading Account,Vehicle Maint Costs,02/12/2010,5000115396,821.39,ADAMS MOREY LTD
WIGHTBUS Trading Account,Vehicle Maint Costs,02/12/2010,5000115395,539.50,ADAMS MOREY LTD
WIGHTBUS Trading Account,Vehicle Maint Costs,03/12/2010,5000115546,970.70,ADAMS MOREY LTD
WIGHTBUS Trading Account,Vehicle Fuel Costs,15/12/2010,5000117391,"2,436.38",ADAMS MOREY LTD
WIGHTBUS Trading Account,Vehicle Fuel Costs,15/12/2010,5000117391,"1,621.17",ADAMS MOREY LTD
WIGHTBUS Trading Account,Vehicle Fuel Costs,15/12/2010,5000117391,758.10,ADAMS MOREY LTD
WIGHTBUS Trading Account,Vehicle Fuel Costs,15/12/2010,5000117391,690.75,ADAMS MOREY LTD
WIGHTBUS Trading Account,Vehicle Fuel Costs,15/12/2010,5000117391,580.29,ADAMS MOREY LTD
WIGHTBUS Trading Account,Vehicle Maint Costs,15/12/2010,5000117388,"1,265.65",ADAMS MOREY LTD
WIGHTBUS Trading Account,Vehicle Maint Costs,21/12/2010,5000118664,"3,467.59",ADAMS MOREY LTD
WIGHTBUS Trading Account,Vehicle Maint Costs,21/12/2010,5000118661,"-3,602.59",ADAMS MOREY LTD
Transforming Social Care,Professional Service,18/10/2010,5000107199,810.00,ADAPTATECH LTD
Business Support,Security of Building,04/10/2010,5000104632,"1,805.61",ADT FIRE AND SECURITY PLC
Innovation Fund,Grants to Ext Bodies,18/11/2010,1900259980,"1,100.00",AFC BOURNEMOUTH COMM SPORTS TRUST
Traffic Signals Mtce - Principal Roads,Highways Minor Works,28/10/2010,5000109506,680.00,AGD SYTEMS LTD
Renewal & Enforcement,Pay to Pvte Contract,06/10/2010,5000105115,"6,540.75",AGE CONCERN ISLE OF WIGHT
Renewal & Enforcement,Pay to Pvte Contract,03/12/2010,5000115448,"6,540.75",AGE CONCERN ISLE OF WIGHT
Renewal & Enforcement,Pay to Pvte Contract,03/12/2010,5000115449,"6,540.75",AGE CONCERN ISLE OF WIGHT
Vol Sector Grants - Older People,Pay to Vol and Other,16/12/2010,5000117867,"2,000.00",AGE CONCERN ISLE OF WIGHT
Structural Maintenance Other Roads,Highways Minor Works,07/10/2010,5000105420,629.91,AGGREGATE INDUSTRIES -CIS [SB]
Structural Maintenance Other Roads,Highways Minor Works,11/10/2010,5000105742,714.80,AGGREGATE INDUSTRIES -CIS [SB]
Structural Maintenance Other Roads,Highways Minor Works,11/10/2010,5000105736,703.57,AGGREGATE INDUSTRIES -CIS [SB]
Structural Maintenance Other Roads,Highways Minor Works,11/10/2010,5000105773,698.34,AGGREGATE INDUSTRIES -CIS [SB]
Structural Maintenance Other Roads,Highways Minor Works,11/10/2010,5000105728,564.50,AGGREGATE INDUSTRIES -CIS [SB]
Structural Maintenance Other Roads,Highways Minor Works,11/10/2010,5000105741,563.84,AGGREGATE INDUSTRIES -CIS [SB]
Routine Repairs Other Roads,Highways Minor Works,12/10/2010,5000106278,"3,216.13",AGGREGATE INDUSTRIES -CIS [SB]
Structural Maintenance Other Roads,Highways Minor Works,12/10/2010,5000106058,"2,227.18",AGGREGATE INDUSTRIES -CIS [SB]
Structural Maintenance Other Roads,Highways Minor Works,12/10/2010,5000106052,"1,176.98",AGGREGATE INDUSTRIES -CIS [SB]
DFT Emergency Maintenance Works,Highways Minor Works,14/10/2010,5000106762,"10,960.17",AGGREGATE INDUSTRIES -CIS [SB]
DFT Emergency Maintenance Works,Highways Minor Works,19/10/2010,5000107756,"25,595.38",AGGREGATE INDUSTRIES -CIS [SB]
DFT Emergency Maintenance Works,Highways Minor Works,19/10/2010,5000107759,"17,397.91",AGGREGATE INDUSTRIES -CIS [SB]
DFT Emergency Maintenance Works,Highways Minor Works,19/10/2010,5000107757,"16,977.49",AGGREGATE INDUSTRIES -CIS [SB]
Carriageway works,Cap Contractor Pmts,22/10/2010,5000108417,"21,245.59",AGGREGATE INDUSTRIES -CIS [SB]
DFT Emergency Maintenance Works,Highways Minor Works,22/10/2010,5000108481,"15,104.31",AGGREGATE INDUSTRIES -CIS [SB]
DFT Emergency Maintenance Works,Highways Minor Works,22/10/2010,5000108482,"6,619.19",AGGREGATE INDUSTRIES -CIS [SB]
DFT Emergency Maintenance Works,Highways Minor Works,22/10/2010,5000108483,"4,909.86",AGGREGATE INDUSTRIES -CIS [SB]
DFT Emergency Maintenance Works,Highways Minor Works,22/10/2010,5000108486,"4,828.79",AGGREGATE INDUSTRIES -CIS [SB]
Other Highways maintenance,Cap Contractor Pmts,22/10/2010,5000108422,"10,033.27",AGGREGATE INDUSTRIES -CIS [SB]
Other Highways maintenance,Cap Contractor Pmts,22/10/2010,5000108412,"8,310.11",AGGREGATE INDUSTRIES -CIS [SB]
Other Highways maintenance,Cap Contractor Pmts,22/10/2010,5000108412,"1,119.96",AGGREGATE INDUSTRIES -CIS [SB]
DFT Emergency Maintenance Works,Highways Minor Works,25/10/2010,5000108690,"13,172.67",AGGREGATE INDUSTRIES -CIS [SB]
DFT Emergency Maintenance Works,Highways Minor Works,25/10/2010,5000108564,"7,367.81",AGGREGATE INDUSTRIES -CIS [SB]
Drainage Works,Cap Contractor Pmts,05/11/2010,5000110970,"13,790.52",AGGREGATE INDUSTRIES -CIS [SB]
Structural Maintenance Principle Roads,Highways Minor Works,05/11/2010,5000111067,"6,824.98",AGGREGATE INDUSTRIES -CIS [SB]
Structural Maintenance Other Roads,Highways Minor Works,10/11/2010,5000111757,"7,812.33",AGGREGATE INDUSTRIES -CIS [SB]
Other Highways maintenance,Cap Contractor Pmts,17/11/2010,5000112873,"2,877.62",AGGREGATE INDUSTRIES -CIS [SB]
Structural Maintenance Other Roads,Highways Minor Works,18/11/2010,5105627909,"2,621.55",AGGREGATE INDUSTRIES -CIS [SB]
Structural Maintenance Other Roads,Highways Minor Works,18/11/2010,5000113164,707.21,AGGREGATE INDUSTRIES -CIS [SB]
Structural Maintenance Principle Roads,Highways Minor Works,18/11/2010,5000113151,673.54,AGGREGATE INDUSTRIES -CIS [SB]
Structural Maintenance Other Roads,Highways Minor Works,01/12/2010,5000115249,"2,145.86",AGGREGATE INDUSTRIES -CIS [SB]
Other Highways maintenance,Cap Contractor Pmts,08/12/2010,5000116150,"51,918.37",AGGREGATE INDUSTRIES -CIS [SB]
Structural Maintenance Other Roads,Highways Minor Works,08/12/2010,5000116169,671.41,AGGREGATE INDUSTRIES -CIS [SB]
Drainage Works,Cap Contractor Pmts,09/12/2010,5000116402,"5,861.42",AGGREGATE INDUSTRIES -CIS [SB]
Off-Street Parking Operations,Pay to Pvte Contract,09/12/2010,5000116434,"6,845.88",AGGREGATE INDUSTRIES -CIS [SB]
Other Highways maintenance,Cap Contractor Pmts,09/12/2010,5000116280,"7,114.35",AGGREGATE INDUSTRIES -CIS [SB]
Other Highways maintenance,Cap Contractor Pmts,09/12/2010,5000116439,937.12,AGGREGATE INDUSTRIES -CIS [SB]
Structural Maintenance Other Roads,Highways Minor Works,09/12/2010,5000116250,756.80,AGGREGATE INDUSTRIES -CIS [SB]
Structural Maintenance Other Roads,Highways Minor Works,13/12/2010,5000116881,"1,236.79",AGGREGATE INDUSTRIES -CIS [SB]
Structural Maintenance Other Roads,Highways Minor Works,13/12/2010,5000116885,"1,083.97",AGGREGATE INDUSTRIES -CIS [SB]
Other Highways maintenance,Cap Contractor Pmts,14/12/2010,5000117038,"35,421.02",AGGREGATE INDUSTRIES -CIS [SB]
Other Highways maintenance,Cap Contractor Pmts,14/12/2010,5000117043,"8,968.76",AGGREGATE INDUSTRIES -CIS [SB]
Other Highways maintenance,Cap Contractor Pmts,14/12/2010,5000117050,"5,370.05",AGGREGATE INDUSTRIES -CIS [SB]
DFT Emergency Maintenance Works,Highways Minor Works,15/12/2010,5000117397,"41,703.92",AGGREGATE INDUSTRIES -CIS [SB]
DFT Emergency Maintenance Works,Highways Minor Works,15/12/2010,5000117404,"5,347.92",AGGREGATE INDUSTRIES -CIS [SB]
Other Highways maintenance,Cap Contractor Pmts,15/12/2010,5000117396,"61,233.45",AGGREGATE INDUSTRIES -CIS [SB]
Other Highways maintenance,Cap Contractor Pmts,15/12/2010,5000117387,"6,655.60",AGGREGATE INDUSTRIES -CIS [SB]
Safety surfacing,Cap Contractor Pmts,15/12/2010,5000117392,"4,470.00",AGGREGATE INDUSTRIES -CIS [SB]
Structural Maintenance Other Roads,Highways Minor Works,15/12/2010,5000117345,"1,177.83",AGGREGATE INDUSTRIES -CIS [SB]
Other Highways maintenance,Cap Contractor Pmts,16/12/2010,5000117611,"18,594.62",AGGREGATE INDUSTRIES -CIS [SB]
Structural Maintenance Other Roads,Highways Minor Works,23/12/2010,5000119037,"1,151.37",AGGREGATE INDUSTRIES -CIS [SB]
Structural Maintenance Other Roads,Highways Minor Works,23/12/2010,5000119121,"1,075.72",AGGREGATE INDUSTRIES -CIS [SB]
Structural Maintenance Other Roads,Highways Minor Works,23/12/2010,5000119097,797.62,AGGREGATE INDUSTRIES -CIS [SB]
Children's Services Strategic Management,Train and Conference,11/11/2010,5000111817,"1,400.00",AKD TRAINING SOLUTIONS LTD
Ryde THI,Consultants Fees,12/10/2010,5000106160,735.00,ALAN GENTRY STRUCTURAL ENGINERNGLTD
Ryde THI,Consultants Fees,25/10/2010,5000108761,833.00,ALAN GENTRY STRUCTURAL ENGINERNGLTD
SSEYCCG - WORKFORCE DEVELOPME,Professional Service,02/11/2010,5000110417,"1,360.00",ALC ASSOCIATES LTD
LD - Day Care,Taxis - Contract Hir,12/10/2010,5105619736,691.50,ALPHA (IOW) LTD [SB]
Parking Management,Train and Conference,17/11/2010,5000113091,525.00,ALPHA PARKING LTD
LD - Residential,Chgs from Ind Provs,12/10/2010,5105619314,"3,409.00",ALPHAGRANGE LTD [SB]
LD - Residential,Chgs from Ind Provs,09/11/2010,5105625573,"3,409.00",ALPHAGRANGE LTD [SB]
LD - Residential,Chgs from Ind Provs,07/12/2010,5105631276,"3,409.00",ALPHAGRANGE LTD [SB]
SEN Transport,Transport of Clients,07/10/2010,5000105242,792.00,AMAR CABS
SEN Transport,Transport of Clients,29/10/2010,5000109875,660.00,AMAR CABS
SEN Transport,Transport of Clients,03/12/2010,5000115558,968.00,AMAR CABS
SEN Transport,Transport of Clients,03/12/2010,5000115556,594.00,AMAR CABS
Heating and Loft insulation,Capital Grants,18/11/2010,1900259983,756.70,AMAZING GLAZING (IW) LTD
OA - Residential,Chgs from Ind Provs,08/12/2010,5000116233,878.54,ANA TREATMENT CENTRES LTD
OA - Residential,Chgs from Ind Provs,08/12/2010,5000116234,608.22,ANA TREATMENT CENTRES LTD
Gouldings Resource Centre,Agency staff,26/10/2010,5000109022,587.50,ANCHOR RECRUITMENT
Transforming Social Care,Agency staff,29/10/2010,5000109722,545.75,ANCHOR RECRUITMENT
Gouldings Resource Centre,Agency staff,02/11/2010,5000110302,518.75,ANCHOR RECRUITMENT
H&T operational support,Agency staff,12/11/2010,5105628344,897.43,ANCHOR RECRUITMENT
Transforming Social Care,Agency staff,15/11/2010,5000112385,542.06,ANCHOR RECRUITMENT
Gouldings Resource Centre,Agency staff,14/12/2010,5000117121,606.25,ANCHOR RECRUITMENT
Gouldings Resource Centre,Agency staff,31/12/2010,5000119226,706.25,ANCHOR RECRUITMENT
EF - Res - OP East,Chgs from Ind Provs,12/10/2010,5105619316,"1,892.24",ANCONA CARE HOME [SB]
EF - Res - OP East,Chgs from Ind Provs,12/10/2010,5105619316,"1,892.24",ANCONA CARE HOME [SB]
EF - Res - OP East,Chgs from Ind Provs,12/10/2010,5105619316,"1,536.92",ANCONA CARE HOME [SB]
EF - Res - OP East,Chgs from Ind Provs,12/10/2010,5105619316,"1,536.92",ANCONA CARE HOME [SB]
EMI - Res - OP East,Chgs from Ind Provs,12/10/2010,5105619316,"1,892.24",ANCONA CARE HOME [SB]
EMI - Res - OP East,Chgs from Ind Provs,12/10/2010,5105619316,"1,610.00",ANCONA CARE HOME [SB]
EF - Res - OP East,Chgs from Ind Provs,15/10/2010,5000106916,"1,042.91",ANCONA CARE HOME [SB]
Dementia Residential Care,Chgs from Ind Provs,03/11/2010,5000110571,"1,552.50",ANCONA CARE HOME [SB]
Dementia Residential Care,Chgs from Ind Provs,09/11/2010,5105625575,"1,610.00",ANCONA CARE HOME [SB]
EF - Res - OP East,Chgs from Ind Provs,09/11/2010,5105625575,"1,892.24",ANCONA CARE HOME [SB]
EF - Res - OP East,Chgs from Ind Provs,09/11/2010,5105625575,"1,892.24",ANCONA CARE HOME [SB]
EF - Res - OP East,Chgs from Ind Provs,09/11/2010,5105625575,"1,536.92",ANCONA CARE HOME [SB]
EF - Res - OP East,Chgs from Ind Provs,09/11/2010,5105625575,"1,536.92",ANCONA CARE HOME [SB]
EMI - Res - OP East,Chgs from Ind Provs,09/11/2010,5105625575,"1,610.00",ANCONA CARE HOME [SB]
EMI - Res - OP East,Chgs from Ind Provs,10/11/2010,1700033789,"-1,317.36",ANCONA CARE HOME [SB]
Dementia Residential Care,Chgs from Ind Provs,07/12/2010,5105631278,"1,610.00",ANCONA CARE HOME [SB]
EF - Res - OP East,Chgs from Ind Provs,07/12/2010,5105631278,"1,892.24",ANCONA CARE HOME [SB]
EF - Res - OP East,Chgs from Ind Provs,07/12/2010,5105631278,"1,892.24",ANCONA CARE HOME [SB]
EF - Res - OP East,Chgs from Ind Provs,07/12/2010,5105631278,"1,536.92",ANCONA CARE HOME [SB]
EF - Res - OP East,Chgs from Ind Provs,07/12/2010,5105631278,"1,536.92",ANCONA CARE HOME [SB]
EF - Res - OP East,Chgs from Ind Provs,07/12/2010,5105631278,"1,536.92",ANCONA CARE HOME [SB]
EMI - Res - OP East,Chgs from Ind Provs,07/12/2010,5105631278,"1,610.00",ANCONA CARE HOME [SB]
EF - Res - OP East,Chgs from Ind Provs,13/12/2010,1700035300,"-2,027.40",ANCONA CARE HOME [SB]
Canoe Lake Boats,Pay to Pvte Contract,11/11/2010,5000111996,544.31,ANDROS ENGINEERING
Fire Capital Projects,"Pl, Equip & Furn - C",01/10/2010,5000104404,"12,738.00",ANGLOCO LTD
Fire Capital Projects,"Pl, Equip & Furn - C",01/10/2010,5000104403,"1,865.00",ANGLOCO LTD
Chief Fire Officer,Vehicle Maint Costs,05/11/2010,5000111062,788.80,ANGLOCO LTD
Fire Capital Projects,"Pl, Equip & Furn - C",10/11/2010,5000111612,"413,375.00",ANGLOCO LTD
Fire Capital Projects,"Pl, Equip & Furn - C",10/11/2010,5000111612,"110,065.00",ANGLOCO LTD
Technical Support,Vehicle Maint Costs,23/11/2010,5000113893,"4,908.08",ANGLOCO LTD
Technical Support,Vehicle Maint Costs,23/11/2010,5000113892,"3,254.46",ANGLOCO LTD
Fire Capital Projects,"Pl, Equip & Furn - C",08/12/2010,5000116225,"-413,375.00",ANGLOCO LTD
Research,Professional Service,15/10/2010,5000107154,"1,285.00",ANNE HAHLO RESEARCH & MARKETING LTD
Research,Professional Service,14/12/2010,5000117192,"1,285.00",ANNE HAHLO RESEARCH & MARKETING LTD
Research,Professional Service,23/12/2010,5000118998,"2,450.00",ANNE HAHLO RESEARCH & MARKETING LTD
Pupils with statements - Non-Maint Schs,Transport of Clients,14/12/2010,5000116971,692.10,AQUA CARS LTD
Parking Management,Period Parking,09/11/2010,1900253797,536.00,AQUA HOTEL
Ryde THI,Grants to Ext Bodies,14/10/2010,5000106756,"-51,944.00",ARCADIA (RYDE) LTD
Ryde THI,Capital Grants,07/12/2010,1900266368,"5,311.00",ARCADIA (RYDE) LTD
Ryde T.I.C.,Building & Room Rent,15/12/2010,5000117412,"2,312.50",ARCADIA (RYDE) LTD
Youth & Community Service,Consultants Fees,05/10/2010,5000104962,"9,774.00",ARCLAN LTD
Youth & Community Service,Consultants Fees,02/11/2010,5000110333,"8,688.00",ARCLAN LTD
Youth & Community Service,Consultants Fees,17/12/2010,5000118134,"6,516.00",ARCLAN LTD
Medina Leisure Centre,Clothing & Laundry,01/10/2010,5000104506,866.77,ARCO LTD
Medina Leisure Centre,Clothing & Laundry,06/10/2010,5000105189,-866.77,ARCO LTD
Medina Leisure Centre,Clothing & Laundry,08/10/2010,5000105574,744.75,ARCO LTD
Environment officers,Clothing & Laundry,12/10/2010,5000106161,"1,200.00",ARCO LTD
Environment officers,Clothing & Laundry,19/11/2010,5000113384,"-1,200.00",ARCO LTD
Medina Leisure Centre,Clothing & Laundry,25/11/2010,5000114458,820.13,ARCO LTD
Medina Leisure Centre,Clothing & Laundry,25/11/2010,5000114457,-732.38,ARCO LTD
Homelessness Prevention,Accom Csts Serv Usrs,13/10/2010,1900240597,550.00,ARTHUR WHEELER ESTATE AGENTS
Library Mgmt & Central Support,Purchase of Books,09/11/2010,1900253852,843.37,ASKEWS LIBRARY SERVICES LTD
Library Mgmt & Central Support,Purchase of Books,09/11/2010,1900253854,789.52,ASKEWS LIBRARY SERVICES LTD
Library Mgmt & Central Support,Purchase of Books,10/11/2010,1900254638,856.29,ASKEWS LIBRARY SERVICES LTD
Library Mgmt & Central Support,Purchase of Books,10/11/2010,1900254594,661.51,ASKEWS LIBRARY SERVICES LTD
Library Mgmt & Central Support,Purchase of Books,10/11/2010,1900254637,625.18,ASKEWS LIBRARY SERVICES LTD
Library Mgmt & Central Support,Purchase of Books,22/11/2010,1900260417,690.98,ASKEWS LIBRARY SERVICES LTD
Library Mgmt & Central Support,Purchase of Books,13/12/2010,1900272197,"1,615.54",ASKEWS LIBRARY SERVICES LTD
Library Mgmt & Central Support,Purchase of Books,13/12/2010,1900272189,513.06,ASKEWS LIBRARY SERVICES LTD
Early Intervention Service,Professional Service,27/10/2010,5000109119,"1,500.00",ASSOC SAIL TRAINING ORGANISATNS
Emergency Management,Fixed Telephones,15/11/2010,5000112591,764.98,Ast Connections Ltd
Capital Receipts,Ext Design & Superv,11/11/2010,100331318,"-4,470.00",ATKINS LTD
Capital Receipts,Ext Design & Superv,11/11/2010,100331318,"-5,530.00",ATKINS LTD
Library Mgmt & Central Support,Stationery,22/12/2010,5000118855,507.40,AUDIOGO LTD
Corporate Management (Treasurers),Professional Service,11/10/2010,5000105907,"28,401.50",AUDIT COMMISSION
Corporate Management (Treasurers),Professional Service,11/10/2010,5000105909,"3,045.00",AUDIT COMMISSION
Corporate Management (Treasurers),Professional Service,27/10/2010,5000109376,"29,243.00",AUDIT COMMISSION
Corporate Management (Treasurers),Professional Service,29/10/2010,5105623652,"-15,866.43",AUDIT COMMISSION
Corporate Management (Treasurers),Professional Service,10/11/2010,5000111670,"39,260.00",AUDIT COMMISSION
Corporate Management (Treasurers),Professional Service,18/11/2010,5000113187,"3,045.00",AUDIT COMMISSION
Corporate Management (Treasurers),Professional Service,01/12/2010,5000115331,"1,825.00",AUDIT COMMISSION
Corporate Management (Treasurers),Professional Service,21/12/2010,5000118719,"36,545.50",AUDIT COMMISSION
Corporate Management (Treasurers),Professional Service,21/12/2010,5000118690,"3,045.00",AUDIT COMMISSION
LD - Residential,Chgs from Ind Provs,10/11/2010,5000111811,"7,869.00",AUTISM SOLUTIONS LTD [SB]
Council Tax Benefit,Stationery,14/10/2010,5000106808,"1,221.50",AUTOMAIL ENVELOPES LTD
Dementia Residential Care,Chgs from Ind Provs,12/10/2010,5105619280,"1,892.24",AUTUMN HOUSE [SB]
Dementia Residential Care,Chgs from Ind Provs,12/10/2010,5105619280,"1,892.24",AUTUMN HOUSE [SB]
Dementia Residential Care,Chgs from Ind Provs,12/10/2010,5105619280,"1,892.24",AUTUMN HOUSE [SB]
Dementia Residential Care,Chgs from Ind Provs,12/10/2010,5000106139,"1,892.24",AUTUMN HOUSE [SB]
Dementia Residential Care,Chgs from Ind Provs,12/10/2010,5000106141,"1,892.24",AUTUMN HOUSE [SB]
Dementia Residential Care,Chgs from Ind Provs,12/10/2010,5000106155,"1,892.24",AUTUMN HOUSE [SB]
Dementia Residential Care,Chgs from Ind Provs,12/10/2010,5000106159,"1,892.24",AUTUMN HOUSE [SB]
Dementia Residential Care,Chgs from Ind Provs,12/10/2010,5105619280,"1,610.00",AUTUMN HOUSE [SB]
EF - Res - OP East,Chgs from Ind Provs,12/10/2010,5105619280,"1,610.00",AUTUMN HOUSE [SB]
EMI - Res - OP East,Chgs from Ind Provs,12/10/2010,5105619280,"1,892.24",AUTUMN HOUSE [SB]
EMI - Res - OP East,Chgs from Ind Provs,12/10/2010,5105619280,"1,892.24",AUTUMN HOUSE [SB]
EMI - Res - OP East,Chgs from Ind Provs,12/10/2010,5105619280,"1,892.24",AUTUMN HOUSE [SB]
EMI - Res - OP East,Chgs from Ind Provs,12/10/2010,5105619280,"1,892.24",AUTUMN HOUSE [SB]
EMI - Res - OP East,Chgs from Ind Provs,12/10/2010,5105619280,"1,892.24",AUTUMN HOUSE [SB]
EMI - Res - OP East,Chgs from Ind Provs,12/10/2010,5105619280,"1,892.24",AUTUMN HOUSE [SB]
EMI - Res - OP East,Chgs from Ind Provs,12/10/2010,5105619280,"1,892.24",AUTUMN HOUSE [SB]
EMI - Res - OP East,Chgs from Ind Provs,12/10/2010,5105619280,"1,892.24",AUTUMN HOUSE [SB]
EMI - Res - OP East,Chgs from Ind Provs,12/10/2010,5105619280,"1,892.24",AUTUMN HOUSE [SB]
EMI - Res - OP East,Chgs from Ind Provs,12/10/2010,5105619280,"1,892.24",AUTUMN HOUSE [SB]
EMI - Res - OP East,Chgs from Ind Provs,12/10/2010,5105619280,"1,610.00",AUTUMN HOUSE [SB]
EMI - Res - OP East,Chgs from Ind Provs,12/10/2010,5105619280,"1,610.00",AUTUMN HOUSE [SB]
EMI - Res - OP East,Chgs from Ind Provs,12/10/2010,5105619280,"1,610.00",AUTUMN HOUSE [SB]
EMI - Res - OP East,Chgs from Ind Provs,12/10/2010,5105619280,"1,610.00",AUTUMN HOUSE [SB]
PD - Res - PD,Chgs from Ind Provs,12/10/2010,5105619280,"1,892.24",AUTUMN HOUSE [SB]
REDACTED PERSONAL DATA,Order Settlement,12/10/2010,5105619280,"1,892.24",AUTUMN HOUSE [SB]
REDACTED PERSONAL DATA,Order Settlement,12/10/2010,5105619280,"1,892.24",AUTUMN HOUSE [SB]
REDACTED PERSONAL DATA,Order Settlement,05/11/2010,1700033617,-743.38,AUTUMN HOUSE [SB]
Dementia Residential Care,Chgs from Ind Provs,09/11/2010,5105625539,"1,892.24",AUTUMN HOUSE [SB]
Dementia Residential Care,Chgs from Ind Provs,09/11/2010,5105625539,"1,892.24",AUTUMN HOUSE [SB]
Dementia Residential Care,Chgs from Ind Provs,09/11/2010,5105625539,"1,892.24",AUTUMN HOUSE [SB]
Dementia Residential Care,Chgs from Ind Provs,09/11/2010,5105625539,"1,610.00",AUTUMN HOUSE [SB]
EF - Res - OP East,Chgs from Ind Provs,09/11/2010,5105625539,"1,610.00",AUTUMN HOUSE [SB]
EMI - Res - OP East,Chgs from Ind Provs,09/11/2010,5105625539,"1,892.24",AUTUMN HOUSE [SB]
EMI - Res - OP East,Chgs from Ind Provs,09/11/2010,5105625539,"1,892.24",AUTUMN HOUSE [SB]
EMI - Res - OP East,Chgs from Ind Provs,09/11/2010,5105625539,"1,892.24",AUTUMN HOUSE [SB]
EMI - Res - OP East,Chgs from Ind Provs,09/11/2010,5105625539,"1,892.24",AUTUMN HOUSE [SB]
EMI - Res - OP East,Chgs from Ind Provs,09/11/2010,5105625539,"1,892.24",AUTUMN HOUSE [SB]
EMI - Res - OP East,Chgs from Ind Provs,09/11/2010,5105625539,"1,892.24",AUTUMN HOUSE [SB]
EMI - Res - OP East,Chgs from Ind Provs,09/11/2010,5105625539,"1,892.24",AUTUMN HOUSE [SB]
EMI - Res - OP East,Chgs from Ind Provs,09/11/2010,5105625539,"1,892.24",AUTUMN HOUSE [SB]
EMI - Res - OP East,Chgs from Ind Provs,09/11/2010,5105625539,"1,892.24",AUTUMN HOUSE [SB]
EMI - Res - OP East,Chgs from Ind Provs,09/11/2010,5105625539,"1,892.24",AUTUMN HOUSE [SB]
EMI - Res - OP East,Chgs from Ind Provs,09/11/2010,5105625539,"1,610.00",AUTUMN HOUSE [SB]
EMI - Res - OP East,Chgs from Ind Provs,09/11/2010,5105625539,"1,610.00",AUTUMN HOUSE [SB]
EMI - Res - OP East,Chgs from Ind Provs,09/11/2010,5105625539,"1,610.00",AUTUMN HOUSE [SB]
EMI - Res - OP East,Chgs from Ind Provs,09/11/2010,5105625539,"1,610.00",AUTUMN HOUSE [SB]
PD - Res - PD,Chgs from Ind Provs,09/11/2010,5105625539,"1,892.24",AUTUMN HOUSE [SB]
REDACTED PERSONAL DATA,Order Settlement,09/11/2010,5105625539,"1,892.24",AUTUMN HOUSE [SB]
REDACTED PERSONAL DATA,Order Settlement,09/11/2010,5105625539,"1,892.24",AUTUMN HOUSE [SB]
Dementia Residential Care,Chgs from Ind Provs,15/11/2010,5000112422,"1,892.24",AUTUMN HOUSE [SB]
EMI - Res - OP East,Chgs from Ind Provs,18/11/2010,5000113243,"4,772.50",AUTUMN HOUSE [SB]
Dementia Residential Care,Chgs from Ind Provs,07/12/2010,5105631242,"1,892.24",AUTUMN HOUSE [SB]
Dementia Residential Care,Chgs from Ind Provs,07/12/2010,5105631242,"1,892.24",AUTUMN HOUSE [SB]
Dementia Residential Care,Chgs from Ind Provs,07/12/2010,5105631242,"1,892.24",AUTUMN HOUSE [SB]
Dementia Residential Care,Chgs from Ind Provs,07/12/2010,5105631242,"1,892.24",AUTUMN HOUSE [SB]
Dementia Residential Care,Chgs from Ind Provs,07/12/2010,5105631242,"1,610.00",AUTUMN HOUSE [SB]
EF - Res - OP East,Chgs from Ind Provs,07/12/2010,5105631242,"1,610.00",AUTUMN HOUSE [SB]
EMI - Res - OP East,Chgs from Ind Provs,07/12/2010,5105631242,"1,892.24",AUTUMN HOUSE [SB]
EMI - Res - OP East,Chgs from Ind Provs,07/12/2010,5105631242,"1,892.24",AUTUMN HOUSE [SB]
EMI - Res - OP East,Chgs from Ind Provs,07/12/2010,5105631242,"1,892.24",AUTUMN HOUSE [SB]
EMI - Res - OP East,Chgs from Ind Provs,07/12/2010,5105631242,"1,892.24",AUTUMN HOUSE [SB]
EMI - Res - OP East,Chgs from Ind Provs,07/12/2010,5105631242,"1,892.24",AUTUMN HOUSE [SB]
EMI - Res - OP East,Chgs from Ind Provs,07/12/2010,5105631242,"1,892.24",AUTUMN HOUSE [SB]
EMI - Res - OP East,Chgs from Ind Provs,07/12/2010,5105631242,"1,892.24",AUTUMN HOUSE [SB]
EMI - Res - OP East,Chgs from Ind Provs,07/12/2010,5105631242,"1,892.24",AUTUMN HOUSE [SB]
EMI - Res - OP East,Chgs from Ind Provs,07/12/2010,5105631242,"1,892.24",AUTUMN HOUSE [SB]
EMI - Res - OP East,Chgs from Ind Provs,07/12/2010,5105631242,"1,892.24",AUTUMN HOUSE [SB]
EMI - Res - OP East,Chgs from Ind Provs,07/12/2010,5105631242,"1,610.00",AUTUMN HOUSE [SB]
EMI - Res - OP East,Chgs from Ind Provs,07/12/2010,5105631242,"1,610.00",AUTUMN HOUSE [SB]
EMI - Res - OP East,Chgs from Ind Provs,07/12/2010,5105631242,"1,610.00",AUTUMN HOUSE [SB]
PD - Res - PD,Chgs from Ind Provs,07/12/2010,5105631242,"1,892.24",AUTUMN HOUSE [SB]
REDACTED PERSONAL DATA,Order Settlement,07/12/2010,5105631242,"1,892.24",AUTUMN HOUSE [SB]
REDACTED PERSONAL DATA,Order Settlement,07/12/2010,5105631242,"1,892.24",AUTUMN HOUSE [SB]
Dementia Day/Other Care,Chgs from Ind Provs,16/12/2010,5000117694,736.60,AUTUMN HOUSE [SB]
Dementia Day/Other Care,Chgs from Ind Provs,16/12/2010,5000117690,508.00,AUTUMN HOUSE [SB]
Dementia Residential Care,Chgs from Ind Provs,16/12/2010,5000117682,"4,025.00",AUTUMN HOUSE [SB]
EMI - Res - OP East,Chgs from Ind Provs,20/12/2010,1700035924,"-1,689.50",AUTUMN HOUSE [SB]
Adoption Costs,Train and Conference,12/10/2010,5000106318,730.00,BAAF REGISTERED CHARITY
Fostering,Train and Conference,14/10/2010,5000106731,628.10,BAAF REGISTERED CHARITY
Fostering,Supp Looked After Ch,29/10/2010,5000109730,"2,418.00",BAAF REGISTERED CHARITY
Fostering,Professional Service,10/11/2010,5000111794,573.30,BAAF REGISTERED CHARITY
Fostering,Train and Conference,20/12/2010,5000118270,562.30,BAAF REGISTERED CHARITY
Clatterford Pupil Referral Unit (PRU),Train and Conference,30/11/2010,5000114911,600.00,BABCOCK 4S LTD
Business Systems Improvement Project,Consultants Fees,12/10/2010,5000106194,505.88,BADENOCH & CLARK
Business Systems Improvement Project,Consultants Fees,12/10/2010,5000106192,"-7,153.25",BADENOCH & CLARK
"Bugle House,Newport",Building & Room Rent,09/12/2010,5000116436,"6,250.00",BAE SYSTEMS PENSION FUNDS TRUST.LTD
"Bugle House,Newport",Building & Room Rent,09/12/2010,5000116437,"1,976.40",BAE SYSTEMS PENSION FUNDS TRUST.LTD
REDACTED PERSONAL DATA,Order Settlement,12/10/2010,5105619493,"1,611.96",BANBRIDGE HOUSE [SB]
REDACTED PERSONAL DATA,Order Settlement,09/11/2010,5105625755,"1,611.96",BANBRIDGE HOUSE [SB]
REDACTED PERSONAL DATA,Order Settlement,07/12/2010,5105631457,"1,611.96",BANBRIDGE HOUSE [SB]
Premises Development,Vehicle Hire Externa,13/10/2010,5000106446,707.14,BARTLETTS SERVICE STATION
Highways PFI Project,Vehicle Hire Interna,08/11/2010,5000111255,520.17,BARTLETTS SERVICE STATION
Admissions/Student Finance,Vehicle Hire Externa,26/11/2010,5000114493,730.71,BARTLETTS SERVICE STATION
Premises Development,Professional Service,13/12/2010,5000116657,707.14,BARTLETTS SERVICE STATION
Integrated Community Equipment Service,Operational Equipmen,30/12/2010,5000119213,"2,975.00",Bartram Associates Ltd
Future year walking festival,Advertising & Public,15/11/2010,5000112312,"1,080.00",BAUER CONSUMER MEDIA LTD
EF - Res - OP East,Chgs from Ind Provs,04/11/2010,5000110822,"2,822.40",BEAUMONT LODGE LTD [SB]
EF - Res - OP East,Chgs from Ind Provs,12/11/2010,5000112144,"2,419.20",BEAUMONT LODGE LTD [SB]
EF - Nurs - OP East - Mainland,Chgs from Ind Provs,07/12/2010,5105631636,"2,257.92",BEAUMONT LODGE LTD [SB]
EF - Res - OP East,Chgs from Ind Provs,17/12/2010,5000117931,967.68,BEAUMONT LODGE LTD [SB]
Information Assurance Project,ICT H/ware & S/ware,03/12/2010,5000115544,"1,500.00",BECRYPT LTD
Leisure Management & Admin,Advertising & Public,24/12/2010,5000119202,"1,959.00",BEL SOLUTIONS LTD
One Island Magazine,Printing Costs,25/10/2010,5000108794,"6,917.00",BELMONT PRESS
Homelessness,Accomm Costs - B&B,06/10/2010,5000105048,550.00,BERTRAM LODGE
Medina Vending Machine Stock,Order Settlement,13/10/2010,5000106432,721.81,BETA PAK
Sandown High Devolved Capital,"Pl, Equip & Furn - C",29/10/2010,1900252257,"3,650.00",BETA PAK
Cowes Primary Devolved Capital,"Pl, Equip & Furn - C",15/11/2010,1900259605,"2,338.95",BETA PAK
Cowes Primary Devolved Capital,"Pl, Equip & Furn - C",22/11/2010,1900260356,710.40,BETA PAK
Gouldings Resource Centre,Cons Cleaning Materi,03/12/2010,5000115473,963.31,BETA PAK
Sandown High Devolved Capital,"Pl, Equip & Furn - C",08/12/2010,1900271681,"1,460.00",BETA PAK
Adelaide Resource Centre,Cons Cleaning Materi,21/12/2010,5000118675,"1,168.70",BETA PAK
EF - Homecare - OP East,Chgs from Ind Provs,08/10/2010,5000105527,540.26,BETTER AT HOME IOW LTD [SB]
EF - Homecare - OP East,Chgs from Ind Provs,28/10/2010,5000109500,"1,743.28",BETTER AT HOME IOW LTD [SB]
EF - Homecare - OP East,Chgs from Ind Provs,28/10/2010,5000109564,668.50,BETTER AT HOME IOW LTD [SB]
EF - Homecare - OP East,Chgs from Ind Provs,28/10/2010,5000109510,549.50,BETTER AT HOME IOW LTD [SB]
PD - Homecare - PD,Chgs from Ind Provs,28/10/2010,5000109427,574.00,BETTER AT HOME IOW LTD [SB]
EF - Homecare - OP East,Chgs from Ind Provs,23/11/2010,5000114083,"1,743.28",BETTER AT HOME IOW LTD [SB]
EF - Homecare - OP East,Chgs from Ind Provs,23/11/2010,5000113992,757.70,BETTER AT HOME IOW LTD [SB]
EF - Homecare - OP East,Chgs from Ind Provs,25/11/2010,5000114270,700.02,BETTER AT HOME IOW LTD [SB]
PD - Homecare - PD,Chgs from Ind Provs,13/12/2010,5000116745,574.00,BETTER AT HOME IOW LTD [SB]
Highways PFI Project,Train and Conference,18/10/2010,5000107346,"1,050.00",BEVAN YOUNG ASSOCIATES
Human Resources,Professional Service,01/11/2010,5000110127,900.00,BEVAN YOUNG ASSOCIATES
Organisational Development ? Leadership,Pay to Pvte Contract,08/11/2010,5000111291,700.00,BEVAN YOUNG ASSOCIATES
Organisational Development ? Leadership,Pay to Pvte Contract,29/11/2010,5000114746,700.00,BEVAN YOUNG ASSOCIATES
Highways PFI Project,Train and Conference,02/12/2010,5000115435,700.00,BEVAN YOUNG ASSOCIATES
Human Resources,Consultants Fees,09/12/2010,5000116288,700.00,BEVAN YOUNG ASSOCIATES
Human Resources,Consultants Fees,09/12/2010,5000116288,700.00,BEVAN YOUNG ASSOCIATES
Medina Theatre,Pay to Pvte Contract,11/10/2010,1900239779,"1,500.00",BEYOND ETERNITY PROMOTIONS
Medina Theatre,Pay to Pvte Contract,19/10/2010,1900245706,569.00,BEYOND ETERNITY PROMOTIONS
The Heights,Pay to Pvte Contract,11/10/2010,5000105989,517.00,BIFFA WASTE SERVICES LTD
Youth Offending Team,Office Equipment,11/10/2010,5000105788,534.05,BIFFA WASTE SERVICES LTD
Library Mgmt & Central Support,"Ref Collect, Disp &",13/10/2010,5000106550,680.00,BIFFA WASTE SERVICES LTD
Library Mgmt & Central Support,"Ref Collect, Disp &",25/10/2010,5000108659,-680.00,BIFFA WASTE SERVICES LTD
Ventnor Botanic Garden,"Ref Collect, Disp &",03/11/2010,5000110572,511.34,BIFFA WASTE SERVICES LTD
Newport Harbour - General,"Ref Collect, Disp &",04/11/2010,5000110744,"1,093.28",BIFFA WASTE SERVICES LTD
Operational Planning,"Ref Collect, Disp &",09/11/2010,5000111481,"5,437.75",BIFFA WASTE SERVICES LTD
Operational Planning,"Ref Collect, Disp &",09/11/2010,5000111484,"-5,437.75",BIFFA WASTE SERVICES LTD
Ryde Harbour,"Ref Collect, Disp &",09/11/2010,5000111380,646.56,BIFFA WASTE SERVICES LTD
Adelaide Resource Centre,"Ref Collect, Disp &",21/12/2010,5000118653,997.62,BIFFA WASTE SERVICES LTD
Agency Placements,Pay to Vol and Other,08/10/2010,5000105484,"12,200.00",BIG BRIGHT HOLIDAYS
Agency Placements,Pay to Vol and Other,01/11/2010,5000110022,"12,200.00",BIG BRIGHT HOLIDAYS
IWHC Community Home - Beaulieu,Clothing & Laundry,13/10/2010,5000106381,"1,068.02",BIG WIGHT T-SHIRT CO
Ryde Cemetery HLF Project,Cap Contractor Pmts,22/10/2010,5000108315,"-1,295.33",BIGGS TALBOT ARCHITECTS
Ryde Cemetery HLF Project,Cap Contractor Pmts,25/10/2010,5000108556,"1,365.91",BIGGS TALBOT ARCHITECTS
Ryde Cemetery HLF Project,Cap Contractor Pmts,25/11/2010,5000114361,"4,183.13",BIGGS TALBOT ARCHITECTS
Lynnbottom Landfill Site,Professional Service,29/11/2010,5000114653,"1,666.00",BIOGAS TECHNOLOGY LTD
Referral & Assessment,Agency staff,05/10/2010,5000104864,"1,650.00",BLUECARE
Referral & Assessment,Agency staff,05/10/2010,5000104867,"1,628.00",BLUECARE
Referral & Assessment,Agency staff,05/10/2010,5000104946,"1,496.00",BLUECARE
Referral & Assessment,Agency staff,05/10/2010,5000104862,"1,320.00",BLUECARE
Referral & Assessment,Agency staff,06/10/2010,5000105097,"1,650.00",BLUECARE
Childrens Disability Team,Agency staff,07/10/2010,5000105441,"1,596.00",BLUECARE
Childrens Disability Team,Agency staff,07/10/2010,5000105442,"1,596.00",BLUECARE
Childrens Disability Team,Agency staff,07/10/2010,5000105437,"1,591.00",BLUECARE
Childrens Disability Team,Agency staff,07/10/2010,5000105438,"1,591.00",BLUECARE
Childrens Disability Team,Agency staff,14/10/2010,5000106676,"2,226.00",BLUECARE
Childrens Disability Team,Agency staff,14/10/2010,5000106684,"1,569.50",BLUECARE
Childrens Disability Team,Agency staff,19/10/2010,5000107662,"2,052.00",BLUECARE
Childrens Disability Team,Agency staff,19/10/2010,5000107663,"2,052.00",BLUECARE
Childrens Disability Team,Agency staff,20/10/2010,5000107961,"2,052.00",BLUECARE
Childrens Disability Team,Agency staff,27/10/2010,5000109112,"1,596.00",BLUECARE
LAC Team,Agency staff,09/11/2010,5000111394,"1,443.00",BLUECARE
LAC Team,Agency staff,09/11/2010,5000111397,"1,443.00",BLUECARE
LAC Team,Agency staff,09/11/2010,5000111398,"1,443.00",BLUECARE
LAC Team,Agency staff,09/11/2010,5000111400,"1,443.00",BLUECARE
LAC Team,Agency staff,09/11/2010,5000111391,"1,150.50",BLUECARE
Childrens Disability Team,Agency staff,18/11/2010,5000113279,"1,569.50",BLUECARE
Childrens Disability Team,Agency staff,24/11/2010,5000114210,"1,596.00",BLUECARE
Family Support and Interention Team,Agency staff,24/11/2010,5000114156,"2,106.00",BLUECARE
Family Support and Interention Team,Agency staff,24/11/2010,5000114157,"2,106.00",BLUECARE
Family Support and Interention Team,Agency staff,24/11/2010,5000114158,"2,052.00",BLUECARE
Family Support and Interention Team,Agency staff,24/11/2010,5000114163,"2,052.00",BLUECARE
Family Support and Interention Team,Agency staff,24/11/2010,5000114201,"2,052.00",BLUECARE
Family Support and Interention Team,Agency staff,24/11/2010,5000114202,"2,052.00",BLUECARE
Family Support and Interention Team,Agency staff,24/11/2010,5000114160,"1,998.00",BLUECARE
Family Support and Interention Team,Agency staff,25/11/2010,5000114345,"2,052.00",BLUECARE
LAC Team,Agency staff,25/11/2010,5000114422,"1,443.00",BLUECARE
Childrens Disability Team,Agency staff,29/11/2010,5000114731,"1,596.00",BLUECARE
Childrens Disability Team,Agency staff,29/11/2010,5000114738,"1,596.00",BLUECARE
Childrens Disability Team,Agency staff,30/11/2010,5000114935,"1,596.00",BLUECARE
Childrens Disability Team,Agency staff,30/11/2010,5000114936,"1,596.00",BLUECARE
Childrens Disability Team,Agency staff,30/11/2010,5000115151,"1,596.00",BLUECARE
Childrens Disability Team,Agency staff,30/11/2010,5000114932,951.60,BLUECARE
Childrens Disability Team,Agency staff,30/11/2010,5000114938,504.00,BLUECARE
Family Support and Interention Team,Agency staff,03/12/2010,5000115500,"2,411.10",BLUECARE
Family Support and Interention Team,Agency staff,03/12/2010,5000115505,"2,052.00",BLUECARE
Family Support and Interention Team,Agency staff,03/12/2010,5000115506,"2,052.00",BLUECARE
Family Support and Interention Team,Agency staff,03/12/2010,5000115510,"2,052.00",BLUECARE
Family Support and Interention Team,Agency staff,03/12/2010,5000115511,"2,052.00",BLUECARE
Family Support and Interention Team,Agency staff,03/12/2010,5000115509,"-2,411.10",BLUECARE
Referral & Assessment,Agency staff,13/12/2010,5000116640,"1,650.00",BLUECARE
Childrens Disability Team,Agency staff,21/12/2010,5000118521,"1,596.00",BLUECARE
Childrens Disability Team,Agency staff,22/12/2010,5000118810,"1,848.00",BLUECARE
Referral & Assessment,Agency staff,22/12/2010,5000118784,"1,650.00",BLUECARE
Referral & Assessment,Agency staff,22/12/2010,5000118786,"1,650.00",BLUECARE
Referral & Assessment,Agency staff,22/12/2010,5000118790,"1,650.00",BLUECARE
Referral & Assessment,Agency staff,22/12/2010,5000118783,"1,452.00",BLUECARE
Referral & Assessment,Agency staff,23/12/2010,5000119035,"1,650.00",BLUECARE
Fostering,Professional Service,18/11/2010,5000113263,681.00,BLUNT EVENTS
Housing Renewal Assistance,Capital Grants,18/11/2010,1900259979,"9,000.00",BMC (IOW) LTD
Heating and Loft insulation,Capital Grants,10/12/2010,1900271966,"2,000.00",BMC (IOW) LTD
Heating and Loft insulation,Capital Grants,15/12/2010,1900272343,"5,000.00",BMC (IOW) LTD
Technical Support,Maint of Op Equip,20/10/2010,5000107957,-832.00,BOC LTD
ASW Training,Train and Conference,25/10/2010,5000108669,-900.00,Bournemouth University
Playbuilder Capital Schemes,Capital Grants,08/11/2010,1900253679,"25,000.00",BRADING TOWN COUNCIL
Newport Harbour - General,Pay to Pvte Contract,07/10/2010,5000105252,"1,634.00",BRADNEY CHAIN & ENG. CO. LTD.
Targeted Mental Health in Schools,Consultants Fees,18/10/2010,5000107376,"2,000.00",BRIDGES FOR LEARNING LTD
Educational Psychology Service,Agency staff,25/10/2010,5000108680,"4,250.00",BRIDGES FOR LEARNING LTD
Pre-school Special Educational Needs,Consultants Fees,17/11/2010,5000113032,"1,000.00",BRIDGES FOR LEARNING LTD
Targeted Mental Health in Schools,Consultants Fees,25/11/2010,5000114443,"2,000.00",BRIDGES FOR LEARNING LTD
Pre-school Special Educational Needs,Consultants Fees,13/12/2010,5000116649,"1,000.00",BRIDGES FOR LEARNING LTD
SEN Inter-Authority Recoupment,Pay to Other LAs,22/12/2010,5000118862,"1,530.00",BRIDGES FOR LEARNING LTD
EF - Res - OP East,Chgs from Ind Provs,12/10/2010,5105619318,"1,892.24",BRIGHSTONE CARE LTD [SB]
EF - Res - OP East,Chgs from Ind Provs,12/10/2010,5105619318,"1,892.24",BRIGHSTONE CARE LTD [SB]
EF - Res - OP East,Chgs from Ind Provs,12/10/2010,5105619318,"1,892.24",BRIGHSTONE CARE LTD [SB]
EF - Res - OP East,Chgs from Ind Provs,12/10/2010,5105619318,"1,536.92",BRIGHSTONE CARE LTD [SB]
EF - Res - OP East,Chgs from Ind Provs,12/10/2010,5105619318,"1,536.92",BRIGHSTONE CARE LTD [SB]
EF - Res - OP East,Chgs from Ind Provs,09/11/2010,5105625577,"1,892.24",BRIGHSTONE CARE LTD [SB]
EF - Res - OP East,Chgs from Ind Provs,09/11/2010,5105625577,"1,892.24",BRIGHSTONE CARE LTD [SB]
EF - Res - OP East,Chgs from Ind Provs,09/11/2010,5105625577,"1,892.24",BRIGHSTONE CARE LTD [SB]
EF - Res - OP East,Chgs from Ind Provs,09/11/2010,5105625577,"1,536.92",BRIGHSTONE CARE LTD [SB]
EF - Res - OP East,Chgs from Ind Provs,09/11/2010,5105625577,"1,536.92",BRIGHSTONE CARE LTD [SB]
Dementia Residential Care,Chgs from Ind Provs,12/11/2010,5000112113,"4,140.00",BRIGHSTONE CARE LTD [SB]
Dementia Residential Care,Chgs from Ind Provs,12/11/2010,5000112122,"-4,140.00",BRIGHSTONE CARE LTD [SB]
EF - Res - OP East,Chgs from Ind Provs,24/11/2010,5000114176,"3,677.63",BRIGHSTONE CARE LTD [SB]
EF - Res - OP East,Chgs from Ind Provs,07/12/2010,5105631280,"1,892.24",BRIGHSTONE CARE LTD [SB]
EF - Res - OP East,Chgs from Ind Provs,07/12/2010,5105631280,"1,892.24",BRIGHSTONE CARE LTD [SB]
EF - Res - OP East,Chgs from Ind Provs,07/12/2010,5105631280,"1,892.24",BRIGHSTONE CARE LTD [SB]
EF - Res - OP East,Chgs from Ind Provs,07/12/2010,5105631280,"1,536.92",BRIGHSTONE CARE LTD [SB]
EF - Res - OP East,Chgs from Ind Provs,07/12/2010,5105631280,"1,536.92",BRIGHSTONE CARE LTD [SB]
Beach Cleaning,Beach Cleansng Contr,05/10/2010,5000104861,"17,954.32",BRIGHSTONE LANDSCAPING LTD
Beach Cleaning,Beach Cleansng Contr,11/10/2010,5000105812,690.00,BRIGHSTONE LANDSCAPING LTD
Beach Cleaning,Pay to Pvte Contract,11/10/2010,5000105843,"2,440.00",BRIGHSTONE LANDSCAPING LTD
Grounds Maintenance - Delegated,Grounds Maintenance,12/10/2010,5000106133,"1,894.24",BRIGHSTONE LANDSCAPING LTD
Grounds Maintenance Contingency Non-Del,Grounds Maintenance,12/10/2010,5000106135,"8,906.61",BRIGHSTONE LANDSCAPING LTD
Brighstone  Grounds Mtce,Pay to Pvte Contract,15/10/2010,5000107149,"1,202.88",BRIGHSTONE LANDSCAPING LTD
Grounds Maintenance Contingency Non-Del,Grounds Maintenance,18/10/2010,5000107374,753.60,BRIGHSTONE LANDSCAPING LTD
Brighstone  Grounds Mtce,Pay to Pvte Contract,25/10/2010,5000108717,"46,915.25",BRIGHSTONE LANDSCAPING LTD
Carisbrooke Primary Devolved Capital,Cap Contractor Pmts,25/10/2010,1900246753,"5,700.00",BRIGHSTONE LANDSCAPING LTD
Carisbrooke Primary Devolved Capital,Cap Contractor Pmts,25/10/2010,1900246756,"3,950.00",BRIGHSTONE LANDSCAPING LTD
Beach Cleaning,Pay to Pvte Contract,01/11/2010,5000109925,"1,200.00",BRIGHSTONE LANDSCAPING LTD
Grounds Maintenance - Delegated,Grounds Maintenance,01/11/2010,5000110065,"2,095.45",BRIGHSTONE LANDSCAPING LTD
Grounds Maintenance Contingency Non-Del,Grounds Maintenance,01/11/2010,5000110098,"9,862.01",BRIGHSTONE LANDSCAPING LTD
Grounds Maintenance Contingency Non-Del,Grounds Maintenance,02/11/2010,5000110176,"1,400.00",BRIGHSTONE LANDSCAPING LTD
Grounds Maintenance - Delegated,Grounds Maintenance,11/11/2010,5000111875,"2,095.45",BRIGHSTONE LANDSCAPING LTD
Grounds Maintenance - Delegated,Grounds Maintenance,11/11/2010,5000111870,"1,894.24",BRIGHSTONE LANDSCAPING LTD
Grounds Maintenance Contingency Non-Del,Grounds Maintenance,11/11/2010,5000111876,"9,862.01",BRIGHSTONE LANDSCAPING LTD
Brighstone  Grounds Mtce,Pay to Pvte Contract,17/11/2010,5000112903,"29,077.35",BRIGHSTONE LANDSCAPING LTD
Beach Cleaning,Beach Cleansng Contr,30/11/2010,5000114831,"3,558.72",BRIGHSTONE LANDSCAPING LTD
Beach Cleaning,Beach Cleansng Contr,07/12/2010,5000115722,"3,558.72",BRIGHSTONE LANDSCAPING LTD
Grounds Maintenance - Delegated,Grounds Maintenance,14/12/2010,5000116966,"2,095.45",BRIGHSTONE LANDSCAPING LTD
Grounds Maintenance - Delegated,Grounds Maintenance,14/12/2010,5000116963,"1,894.24",BRIGHSTONE LANDSCAPING LTD
Grounds Maintenance Contingency Non-Del,Grounds Maintenance,14/12/2010,5000117006,"9,248.01",BRIGHSTONE LANDSCAPING LTD
Grounds Maintenance Contingency Non-Del,Grounds Maintenance,14/12/2010,5000117005,"-9,862.01",BRIGHSTONE LANDSCAPING LTD
Outside Promotions,Pay to Pvte Contract,08/10/2010,1900239566,"4,407.00",BRITISH AIRWAVES PRODUCTIONS
Archives,Heritage Acquisition,19/10/2010,5000107524,"1,352.54",BRITISH LIBRARY
Museums & Collections Mgmt,Heritage Acquisition,04/10/2010,5000104689,600.00,BRITISH MUSEUM
Library Mgmt & Central Support,Fixed Telephones,29/10/2010,1900252269,"4,473.12",BRITISH TELECOM PLC
Youth- West Wight,Fixed Telephones,01/10/2010,1900238525,"1,731.76",BRITISH TELECOMMUNICATIONS PLC
Business Support,Fixed Telephones,14/10/2010,1900245400,887.50,BRITISH TELECOMMUNICATIONS PLC
Miscellaneous Non-rechargeable,Fixed Telephones,14/10/2010,1900245400,887.50,BRITISH TELECOMMUNICATIONS PLC
CSDP/Lifeline Telephone - OP,Fixed Telephones,18/10/2010,1900245677,654.08,BRITISH TELECOMMUNICATIONS PLC
Childrens Service Centre,Fixed Telephones,22/10/2010,1900246645,673.20,BRITISH TELECOMMUNICATIONS PLC
Telephones,Fixed Telephones,22/10/2010,1900246645,"2,330.77",BRITISH TELECOMMUNICATIONS PLC
Telephones,Fixed Telephones,25/10/2010,1900246767,"102,795.38",BRITISH TELECOMMUNICATIONS PLC
Youth Offending Team,Fixed Telephones,25/10/2010,1900246766,899.12,BRITISH TELECOMMUNICATIONS PLC
SSEYCCG - East Cowes Children Centre,Fixed Telephones,29/10/2010,1900252284,564.76,BRITISH TELECOMMUNICATIONS PLC
Library Mgmt & Central Support,Fixed Telephones,04/11/2010,1900253355,550.00,BRITISH TELECOMMUNICATIONS PLC
CSDP/Lifeline Telephone - OP,Fixed Telephones,15/11/2010,1900259632,551.43,BRITISH TELECOMMUNICATIONS PLC
CSDP/Lifeline Telephone - PD,Fixed Telephones,15/11/2010,1900259634,682.05,BRITISH TELECOMMUNICATIONS PLC
Library Mgmt & Central Support,Fixed Telephones,15/11/2010,1900259629,"16,269.00",BRITISH TELECOMMUNICATIONS PLC
Overheads,Fixed Telephones,23/11/2010,1900260544,"4,473.12",BRITISH TELECOMMUNICATIONS PLC
Data & Information Mgmt,Fixed Telephones,26/11/2010,1900265507,"6,480.00",BRITISH TELECOMMUNICATIONS PLC
Emergency Management,Fixed Telephones,26/11/2010,1900265507,970.00,BRITISH TELECOMMUNICATIONS PLC
Library Mgmt & Central Support,Fixed Telephones,26/11/2010,1900265507,"1,200.00",BRITISH TELECOMMUNICATIONS PLC
Library Mgmt & Central Support,Fixed Telephones,26/11/2010,1900265507,"1,010.00",BRITISH TELECOMMUNICATIONS PLC
Ryde T.I.C.,Fixed Telephones,26/11/2010,1900265507,606.00,BRITISH TELECOMMUNICATIONS PLC
Sandown T.I.C.,Fixed Telephones,26/11/2010,1900265507,"2,500.00",BRITISH TELECOMMUNICATIONS PLC
Homecare Reablement,Fixed Telephones,01/12/2010,1900266032,569.66,BRITISH TELECOMMUNICATIONS PLC
CSDP/Lifeline Telephone - OP,Fixed Telephones,15/12/2010,1900272411,617.09,BRITISH TELECOMMUNICATIONS PLC
Dementia Residential Care,Chgs from Ind Provs,12/10/2010,5105619288,"1,610.00",BROADHURST RESIDENTIAL HOME [SB]
EF - Res - OP East,Chgs from Ind Provs,12/10/2010,5105619288,"1,892.24",BROADHURST RESIDENTIAL HOME [SB]
EF - Res - OP East,Chgs from Ind Provs,12/10/2010,5105619288,"1,892.24",BROADHURST RESIDENTIAL HOME [SB]
EF - Res - OP East,Chgs from Ind Provs,12/10/2010,5105619288,"1,757.00",BROADHURST RESIDENTIAL HOME [SB]
EF - Res - OP East,Chgs from Ind Provs,12/10/2010,5105619288,"1,536.92",BROADHURST RESIDENTIAL HOME [SB]
EF - Res - OP East,Chgs from Ind Provs,12/10/2010,5105619288,"1,273.72",BROADHURST RESIDENTIAL HOME [SB]
EMI - Res - OP East,Chgs from Ind Provs,12/10/2010,5105619288,"1,892.24",BROADHURST RESIDENTIAL HOME [SB]
LD - Residential,Chgs from Ind Provs,12/10/2010,5105619288,"1,757.00",BROADHURST RESIDENTIAL HOME [SB]
REDACTED PERSONAL DATA,Order Settlement,12/10/2010,5105619288,"1,892.24",BROADHURST RESIDENTIAL HOME [SB]
REDACTED PERSONAL DATA,Order Settlement,12/10/2010,5105619288,"1,610.00",BROADHURST RESIDENTIAL HOME [SB]
EMI - Res - OP East,Chgs from Ind Provs,27/10/2010,5000109231,"3,784.48",BROADHURST RESIDENTIAL HOME [SB]
EMI - Res - OP East,Chgs from Ind Provs,28/10/2010,5000109502,"1,892.24",BROADHURST RESIDENTIAL HOME [SB]
EF - Res - OP East,Chgs from Ind Provs,01/11/2010,1700032993,"-1,945.25",BROADHURST RESIDENTIAL HOME [SB]
Dementia Residential Care,Chgs from Ind Provs,09/11/2010,5105625547,"1,610.00",BROADHURST RESIDENTIAL HOME [SB]
EF - Res - OP East,Chgs from Ind Provs,09/11/2010,5105625547,"1,892.24",BROADHURST RESIDENTIAL HOME [SB]
EF - Res - OP East,Chgs from Ind Provs,09/11/2010,5105625547,"1,892.24",BROADHURST RESIDENTIAL HOME [SB]
EF - Res - OP East,Chgs from Ind Provs,09/11/2010,5105625547,"1,757.00",BROADHURST RESIDENTIAL HOME [SB]
EF - Res - OP East,Chgs from Ind Provs,09/11/2010,5105625547,"1,536.92",BROADHURST RESIDENTIAL HOME [SB]
EF - Res - OP East,Chgs from Ind Provs,09/11/2010,5105625547,"1,273.72",BROADHURST RESIDENTIAL HOME [SB]
EMI - Res - OP East,Chgs from Ind Provs,09/11/2010,5105625547,"1,892.24",BROADHURST RESIDENTIAL HOME [SB]
EMI - Res - OP East,Chgs from Ind Provs,09/11/2010,5105625547,"1,892.24",BROADHURST RESIDENTIAL HOME [SB]
LD - Residential,Chgs from Ind Provs,09/11/2010,5105625547,"1,757.00",BROADHURST RESIDENTIAL HOME [SB]
REDACTED PERSONAL DATA,Order Settlement,09/11/2010,5105625547,"1,892.24",BROADHURST RESIDENTIAL HOME [SB]
REDACTED PERSONAL DATA,Order Settlement,09/11/2010,5105625547,"1,610.00",BROADHURST RESIDENTIAL HOME [SB]
EMI - Res - OP East,Chgs from Ind Provs,18/11/2010,1700034425,"-2,432.88",BROADHURST RESIDENTIAL HOME [SB]
EMI - Res - OP East,Chgs from Ind Provs,26/11/2010,5000114528,"1,610.00",BROADHURST RESIDENTIAL HOME [SB]
Dementia Residential Care,Chgs from Ind Provs,07/12/2010,5105631250,"1,610.00",BROADHURST RESIDENTIAL HOME [SB]
EF - Res - OP East,Chgs from Ind Provs,07/12/2010,5105631250,"1,892.24",BROADHURST RESIDENTIAL HOME [SB]
EF - Res - OP East,Chgs from Ind Provs,07/12/2010,5105631250,"1,892.24",BROADHURST RESIDENTIAL HOME [SB]
EF - Res - OP East,Chgs from Ind Provs,07/12/2010,5105631250,"1,757.00",BROADHURST RESIDENTIAL HOME [SB]
EF - Res - OP East,Chgs from Ind Provs,07/12/2010,5105631250,"1,536.92",BROADHURST RESIDENTIAL HOME [SB]
EF - Res - OP East,Chgs from Ind Provs,07/12/2010,5105631250,"1,273.72",BROADHURST RESIDENTIAL HOME [SB]
EMI - Res - OP East,Chgs from Ind Provs,07/12/2010,5105631250,"1,892.24",BROADHURST RESIDENTIAL HOME [SB]
EMI - Res - OP East,Chgs from Ind Provs,07/12/2010,5000115836,"1,610.00",BROADHURST RESIDENTIAL HOME [SB]
LD - Residential,Chgs from Ind Provs,07/12/2010,5105631250,"1,757.00",BROADHURST RESIDENTIAL HOME [SB]
REDACTED PERSONAL DATA,Order Settlement,07/12/2010,5105631250,"1,892.24",BROADHURST RESIDENTIAL HOME [SB]
REDACTED PERSONAL DATA,Order Settlement,07/12/2010,5105631250,"1,610.00",BROADHURST RESIDENTIAL HOME [SB]
Trans. Stocks - Diesel frm 1 April 1998,Order Settlement,19/11/2010,5000113417,771.94,BROADWAY GARAGE
Cowes JS Whites SSC,Building & Room Rent,29/11/2010,5000114683,600.00,BROOKSIDE HEALTH CENTRE
Boiler Replacement Heating Non Education,"Pl, Equip & Furn - C",22/12/2010,5000118900,"8,994.58",BSS SOUTHAMPTON
Adelaide Resource Centre,Fixed Telephones,28/10/2010,5000109587,629.30,BT CONTRACT RENTALS LTD
Gouldings Resource Centre,Fixed Telephones,16/11/2010,5000112823,743.18,BT CONTRACT RENTALS LTD
Bus Infrastructure,Cap Contractor Pmts,17/11/2010,5000112999,"1,290.75",BT OPENREACH
EF - Res - OP East,Chgs from Ind Provs,12/10/2010,5105619346,"1,892.24",BUCKLAND CARE [SB]
EF - Res - OP East,Chgs from Ind Provs,12/10/2010,5105619346,"1,892.24",BUCKLAND CARE [SB]
EF - Res - OP East,Chgs from Ind Provs,12/10/2010,5105619346,"1,892.24",BUCKLAND CARE [SB]
EF - Res - OP East,Chgs from Ind Provs,12/10/2010,5105619346,"1,892.24",BUCKLAND CARE [SB]
EF - Res - OP East,Chgs from Ind Provs,12/10/2010,5105619346,"1,892.24",BUCKLAND CARE [SB]
EF - Res - OP East,Chgs from Ind Provs,12/10/2010,5105619346,"1,892.24",BUCKLAND CARE [SB]
EF - Res - OP East,Chgs from Ind Provs,12/10/2010,5105619346,"1,536.92",BUCKLAND CARE [SB]
EMI - Res - OP East,Chgs from Ind Provs,12/10/2010,5105619346,"1,892.24",BUCKLAND CARE [SB]
EF - Res - OP East,Chgs from Ind Provs,13/10/2010,1700032239,"-2,027.40",BUCKLAND CARE [SB]
REDACTED PERSONAL DATA,Order Settlement,13/10/2010,1700032246,"-1,351.60",BUCKLAND CARE [SB]
EF - Res - OP East,Chgs from Ind Provs,09/11/2010,5105625605,"1,892.24",BUCKLAND CARE [SB]
EF - Res - OP East,Chgs from Ind Provs,09/11/2010,5105625605,"1,892.24",BUCKLAND CARE [SB]
EF - Res - OP East,Chgs from Ind Provs,09/11/2010,5105625605,"1,892.24",BUCKLAND CARE [SB]
EF - Res - OP East,Chgs from Ind Provs,09/11/2010,5105625605,"1,892.24",BUCKLAND CARE [SB]
EF - Res - OP East,Chgs from Ind Provs,09/11/2010,5105625605,"1,892.24",BUCKLAND CARE [SB]
EF - Res - OP East,Chgs from Ind Provs,09/11/2010,5105625605,"1,892.24",BUCKLAND CARE [SB]
EF - Res - OP East,Chgs from Ind Provs,09/11/2010,5105625605,"1,892.24",BUCKLAND CARE [SB]
EF - Res - OP East,Chgs from Ind Provs,09/11/2010,5105625605,"1,536.92",BUCKLAND CARE [SB]
EMI - Res - OP East,Chgs from Ind Provs,09/11/2010,5105625605,"1,892.24",BUCKLAND CARE [SB]
EF - Res - OP East,Chgs from Ind Provs,07/12/2010,5105631308,"1,892.24",BUCKLAND CARE [SB]
EF - Res - OP East,Chgs from Ind Provs,07/12/2010,5105631308,"1,892.24",BUCKLAND CARE [SB]
EF - Res - OP East,Chgs from Ind Provs,07/12/2010,5105631308,"1,892.24",BUCKLAND CARE [SB]
EF - Res - OP East,Chgs from Ind Provs,07/12/2010,5105631308,"1,892.24",BUCKLAND CARE [SB]
EF - Res - OP East,Chgs from Ind Provs,07/12/2010,5105631308,"1,892.24",BUCKLAND CARE [SB]
EF - Res - OP East,Chgs from Ind Provs,07/12/2010,5105631308,"1,892.24",BUCKLAND CARE [SB]
EF - Res - OP East,Chgs from Ind Provs,07/12/2010,5105631308,"1,892.24",BUCKLAND CARE [SB]
EF - Res - OP East,Chgs from Ind Provs,07/12/2010,5105631308,"1,536.92",BUCKLAND CARE [SB]
EMI - Res - OP East,Chgs from Ind Provs,07/12/2010,5105631308,"1,892.24",BUCKLAND CARE [SB]
EF - Res - OP East,Chgs from Ind Provs,09/12/2010,1700035211,"-2,297.72",BUCKLAND CARE [SB]
EF - Nurs - OP East - Island,Chgs from Ind Provs,01/10/2010,5000104492,"2,555.56",BUCKLAND CARE LTD [SB]
Nurs - Self Funder - Island LA Clients,Chgs from Ind Provs,04/10/2010,1900238692,"1,087.10",BUCKLAND CARE LTD [SB]
Nurs - Self Funder - Mainland LA Clients,Chgs from Ind Provs,05/10/2010,1700031824,-528.02,BUCKLAND CARE LTD [SB]
EF - Nurs - OP East - Island,Chgs from Ind Provs,08/10/2010,5000105639,"2,555.56",BUCKLAND CARE LTD [SB]
EF - Nurs - OP East - Island,Chgs from Ind Provs,12/10/2010,5105619269,"2,555.56",BUCKLAND CARE LTD [SB]
EF - Nurs - OP East - Island,Chgs from Ind Provs,12/10/2010,5105619269,"2,555.56",BUCKLAND CARE LTD [SB]
EF - Nurs - OP East - Island,Chgs from Ind Provs,12/10/2010,5105619269,"2,555.56",BUCKLAND CARE LTD [SB]
EF - Nurs - OP East - Island,Chgs from Ind Provs,12/10/2010,5105619325,"2,555.56",BUCKLAND CARE LTD [SB]
EF - Nurs - OP East - Island,Chgs from Ind Provs,12/10/2010,5105619325,"2,555.56",BUCKLAND CARE LTD [SB]
EF - Nurs - OP East - Island,Chgs from Ind Provs,12/10/2010,5105619325,"2,555.56",BUCKLAND CARE LTD [SB]
EF - Nurs - OP East - Island,Chgs from Ind Provs,12/10/2010,5105619325,"2,555.56",BUCKLAND CARE LTD [SB]
EF - Nurs - OP East - Island,Chgs from Ind Provs,12/10/2010,5105619325,"2,555.56",BUCKLAND CARE LTD [SB]
EF - Nurs - OP East - Island,Chgs from Ind Provs,12/10/2010,5105619325,"2,555.56",BUCKLAND CARE LTD [SB]
EF - Nurs - OP East - Island,Chgs from Ind Provs,12/10/2010,5105619325,"2,555.56",BUCKLAND CARE LTD [SB]
EF - Nurs - OP East - Island,Chgs from Ind Provs,12/10/2010,5000106213,"2,555.56",BUCKLAND CARE LTD [SB]
REDACTED PERSONAL DATA,Order Settlement,12/10/2010,5105619325,"2,555.56",BUCKLAND CARE LTD [SB]
REDACTED PERSONAL DATA,Order Settlement,12/10/2010,5105619325,"2,555.56",BUCKLAND CARE LTD [SB]
EF - Nurs - OP East - Island,Miscellaneous Income,21/10/2010,1700032960,"-6,023.82",BUCKLAND CARE LTD [SB]
EF - Nurs - OP East - Island,Chgs from Ind Provs,09/11/2010,5105625528,"2,555.56",BUCKLAND CARE LTD [SB]
EF - Nurs - OP East - Island,Chgs from Ind Provs,09/11/2010,5105625528,"2,555.56",BUCKLAND CARE LTD [SB]
EF - Nurs - OP East - Island,Chgs from Ind Provs,09/11/2010,5105625528,"2,555.56",BUCKLAND CARE LTD [SB]
EF - Nurs - OP East - Island,Chgs from Ind Provs,09/11/2010,5105625584,"2,555.56",BUCKLAND CARE LTD [SB]
EF - Nurs - OP East - Island,Chgs from Ind Provs,09/11/2010,5105625584,"2,555.56",BUCKLAND CARE LTD [SB]
EF - Nurs - OP East - Island,Chgs from Ind Provs,09/11/2010,5105625584,"2,555.56",BUCKLAND CARE LTD [SB]
EF - Nurs - OP East - Island,Chgs from Ind Provs,09/11/2010,5105625584,"2,555.56",BUCKLAND CARE LTD [SB]
EF - Nurs - OP East - Island,Chgs from Ind Provs,09/11/2010,5105625584,"2,555.56",BUCKLAND CARE LTD [SB]
EF - Nurs - OP East - Island,Chgs from Ind Provs,09/11/2010,5105625584,"2,555.56",BUCKLAND CARE LTD [SB]
REDACTED PERSONAL DATA,Order Settlement,09/11/2010,5105625584,"2,555.56",BUCKLAND CARE LTD [SB]
REDACTED PERSONAL DATA,Order Settlement,09/11/2010,5105625584,"2,555.56",BUCKLAND CARE LTD [SB]
REDACTED PERSONAL DATA,Order Settlement,15/11/2010,5105627089,"2,555.56",BUCKLAND CARE LTD [SB]
EMI - Nurs - OP East - Island,Regular Respite Care,17/11/2010,5000113078,"16,611.14",BUCKLAND CARE LTD [SB]
Nurs - Self Funder - Island LA Clients,Chgs from Ind Provs,22/11/2010,1900260333,574.61,BUCKLAND CARE LTD [SB]
EF - Nurs - OP East - Island,Chgs from Ind Provs,25/11/2010,5000114287,"2,555.56",BUCKLAND CARE LTD [SB]
EF - Nurs - OP East - Island,Chgs from Ind Provs,01/12/2010,5000115193,"2,555.56",BUCKLAND CARE LTD [SB]
EF - Nurs - OP East - Island,Chgs from Ind Provs,07/12/2010,5105631231,"2,555.56",BUCKLAND CARE LTD [SB]
EF - Nurs - OP East - Island,Chgs from Ind Provs,07/12/2010,5105631231,"2,555.56",BUCKLAND CARE LTD [SB]
EF - Nurs - OP East - Island,Chgs from Ind Provs,07/12/2010,5105631231,"2,555.56",BUCKLAND CARE LTD [SB]
EF - Nurs - OP East - Island,Chgs from Ind Provs,07/12/2010,5105631287,"2,555.56",BUCKLAND CARE LTD [SB]
EF - Nurs - OP East - Island,Chgs from Ind Provs,07/12/2010,5105631287,"2,555.56",BUCKLAND CARE LTD [SB]
EF - Nurs - OP East - Island,Chgs from Ind Provs,07/12/2010,5105631287,"2,555.56",BUCKLAND CARE LTD [SB]
EF - Nurs - OP East - Island,Chgs from Ind Provs,07/12/2010,5105631287,"2,555.56",BUCKLAND CARE LTD [SB]
EF - Nurs - OP East - Island,Chgs from Ind Provs,07/12/2010,5105631287,"2,555.56",BUCKLAND CARE LTD [SB]
Nurs - Self Funder - Island LA Clients,Chgs from Ind Provs,07/12/2010,1700035069,-590.14,BUCKLAND CARE LTD [SB]
REDACTED PERSONAL DATA,Order Settlement,07/12/2010,5105631287,"2,555.56",BUCKLAND CARE LTD [SB]
EF - Nurs - OP East - Island,Chgs from Ind Provs,08/12/2010,5000116111,821.43,BUCKLAND CARE LTD [SB]
REDACTED PERSONAL DATA,Order Settlement,13/12/2010,5105632837,"2,555.56",BUCKLAND CARE LTD [SB]
Nurs - Self Funder - Island LA Clients,Chgs from Ind Provs,14/12/2010,1900272227,590.14,BUCKLAND CARE LTD [SB]
EF - Nurs - OP East - Island,Chgs from Ind Provs,17/12/2010,5000117926,"2,555.56",BUCKLAND CARE LTD [SB]
Capital Receipts,Cap Contractor Pmts,01/10/2010,5000104348,"1,750.00",BUILDING DESIGN SERVICES
Building Fabric Planned Non Education,Ext Design & Superv,11/10/2010,5000106025,700.00,BUILDING DESIGN SERVICES
Building Fabric Planned Non Education,Ext Design & Superv,12/10/2010,5000106099,700.00,BUILDING DESIGN SERVICES
Building Fabric Planned Non Education,Ext Design & Superv,12/10/2010,5000106101,-700.00,BUILDING DESIGN SERVICES
Ryde Dover Park Primary Devolved Capital,"Pl, Equip & Furn - C",13/10/2010,1900244957,672.32,BUYWISE
Properties  - Other Properties,Grounds Maintenance,13/10/2010,5000106353,939.00,C & J GROUND MAINTENANCE
Cemeteries,Cap Contractor Pmts,01/12/2010,5000115162,675.00,C & J GROUND MAINTENANCE
Cemeteries,Cap Contractor Pmts,07/12/2010,5000115955,"1,747.19",C & J GROUND MAINTENANCE
Learning Disability Management,Agency staff,01/10/2010,5000104437,"1,234.53",C A P MANAGEMENT SERVICES LTD [SB]
Learning Disability Management,Agency staff,11/10/2010,5000105868,"1,214.53",C A P MANAGEMENT SERVICES LTD [SB]
Learning Disability Management,Agency staff,19/10/2010,5000107536,"1,214.53",C A P MANAGEMENT SERVICES LTD [SB]
Learning Disability Management,Agency staff,25/10/2010,5000108795,"1,214.53",C A P MANAGEMENT SERVICES LTD [SB]
Learning Disability Management,Agency staff,04/11/2010,5000110694,"1,214.53",C A P MANAGEMENT SERVICES LTD [SB]
Learning Disability Management,Agency staff,08/11/2010,5000111152,"1,214.53",C A P MANAGEMENT SERVICES LTD [SB]
Learning Disability Management,Agency staff,15/11/2010,5000112393,"1,214.53",C A P MANAGEMENT SERVICES LTD [SB]
Learning Disability Management,Agency staff,22/11/2010,5000113764,"1,214.53",C A P MANAGEMENT SERVICES LTD [SB]
Learning Disability Management,Agency staff,30/11/2010,5000114855,"1,214.53",C A P MANAGEMENT SERVICES LTD [SB]
Learning Disability Management,Agency staff,09/12/2010,5000116292,"1,214.53",C A P MANAGEMENT SERVICES LTD [SB]
Learning Disability Management,Agency staff,14/12/2010,5000117081,"1,214.53",C A P MANAGEMENT SERVICES LTD [SB]
Learning Disability Management,Agency staff,22/12/2010,5000118886,"1,214.53",C A P MANAGEMENT SERVICES LTD [SB]
Learning Disability Management,Agency staff,23/12/2010,5000118920,"1,214.53",C A P MANAGEMENT SERVICES LTD [SB]
Road Safety trailer,Vehicle Maint Costs,01/10/2010,5000104530,651.87,C N SERVICES
Road Safety trailer,Vehicle Maint Costs,01/10/2010,5000104527,588.53,C N SERVICES
Environmental Maintenance Other Roads,Highways Minor Works,11/10/2010,5000105719,"2,650.00",C N SERVICES
Parks and Gardens Capital,Cap Contractor Pmts,15/10/2010,5000107165,"1,200.00",C N SERVICES
Parks Mtce Miscellaneous,Highways Minor Works,15/10/2010,5000107155,550.00,C N SERVICES
South Grd Mtc N-Hort,Pay to Pvte Contract,15/10/2010,5000107156,"1,400.00",C N SERVICES
Parks and Gardens Capital,Cap Contractor Pmts,01/11/2010,5000109922,"2,550.00",C N SERVICES
North Grd Mtc N-Hort,Pay to Pvte Contract,02/11/2010,5000110158,580.00,C N SERVICES
Traffic Management,Cap Contractor Pmts,02/12/2010,5000115378,700.00,C N SERVICES
Highway Structures Capital,Cap Contractor Pmts,06/12/2010,5000115609,875.39,C N SERVICES
Parks and Gardens Capital,Cap Contractor Pmts,07/12/2010,5000115857,"4,070.00",C N SERVICES
Routine Repairs Other Roads,Highways Minor Works,14/12/2010,5000117067,734.50,C N SERVICES
Leader 2009/13 Grant Claims,Grants to Ext Bodies,18/10/2010,1900245602,"6,809.00",CALBOURNE CLASSICS
Pupils with statements - Non-Maint Schs,Pay to Vol and Other,16/11/2010,5000112623,"41,257.65",CAMBIAN ASPERGER SYNDROM SERVS LTD
Agency Placements,Pay to Vol and Other,13/10/2010,5105620185,"11,708.88",CAMBIAN AUTISM SERVICES LTD
Pupils with statements - Non-Maint Schs,Pay to Vol and Other,13/10/2010,5105620185,"41,835.54",CAMBIAN AUTISM SERVICES LTD
Business Support,Office Equipment,12/10/2010,5000106165,"-2,130.24",CANON (UK) LTD
Print Unit,Printing Costs,29/10/2010,5000109714,-987.80,CANON (UK) LTD
Strategic Projects,Cap Contractor Pmts,09/12/2010,5000116349,"6,985.00",CAPITA BUSINESS SERVICES
Children's Services Strategic Management,Interview & recruit,18/10/2010,5000107237,"11,715.00",CAPITA BUSINESS SERVICES LTD
Children's Services Strategic Management,Interview & recruit,18/10/2010,5000107235,"7,600.00",CAPITA BUSINESS SERVICES LTD
School Reorganisation Consultation Costs,ICT H/ware & S/ware,13/10/2010,5000106505,"-4,560.00",CAPITA EDUCATION SERVICES
School Reorganisation Consultation Costs,ICT H/ware & S/ware,13/10/2010,5000106505,"-9,450.00",CAPITA EDUCATION SERVICES
Human Resources,Agency staff,12/10/2010,5000106106,"4,789.75",CAPITA RESOURCING LTD
Human Resources,Agency staff,12/10/2010,5000106106,575.00,CAPITA RESOURCING LTD
Human Resources,Agency staff,11/11/2010,5000112086,"6,872.25",CAPITA RESOURCING LTD
Human Resources,Agency staff,11/11/2010,5000112087,825.00,CAPITA RESOURCING LTD
Children's Services Strategic Management,B/in Prof Svs - Curr,01/12/2010,5000115171,"31,630.63",CAPITA RESOURCING LTD
Human Resources,Agency staff,14/12/2010,5000117115,"6,664.00",CAPITA RESOURCING LTD
Human Resources,Agency staff,14/12/2010,5000117116,800.00,CAPITA RESOURCING LTD
Ventnor Botanic Garden,Prop Svs - Bldg mtce,25/11/2010,5000114288,635.00,CAPITA SYMONDS LTD
EF - Homecare - OP East,Chgs from Ind Provs,01/10/2010,5000104432,588.00,CARE FIRST IW LTD [SB]
EF - Homecare - OP East,Chgs from Ind Provs,01/10/2010,5000104398,511.10,CARE FIRST IW LTD [SB]
EF - Homecare - OP East,Chgs from Ind Provs,06/10/2010,5000105128,661.64,CARE FIRST IW LTD [SB]
EF - Homecare - OP East,Chgs from Ind Provs,11/10/2010,5000105796,838.40,CARE FIRST IW LTD [SB]
EF - Homecare - OP East,Chgs from Ind Provs,12/10/2010,5000106232,"1,071.64",CARE FIRST IW LTD [SB]
EF - Homecare - OP East,Chgs from Ind Provs,12/10/2010,5000106231,929.52,CARE FIRST IW LTD [SB]
EF - Homecare - OP East,Chgs from Ind Provs,12/10/2010,5000106225,756.00,CARE FIRST IW LTD [SB]
EF - Homecare - OP East,Chgs from Ind Provs,12/10/2010,5000106238,663.60,CARE FIRST IW LTD [SB]
Dementia Homecare,Chgs from Ind Provs,13/10/2010,5000106394,592.60,CARE FIRST IW LTD [SB]
EF - Homecare - OP East,Chgs from Ind Provs,21/10/2010,5000108211,699.44,CARE FIRST IW LTD [SB]
EF - Homecare - OP East,Chgs from Ind Provs,25/10/2010,5000108545,865.70,CARE FIRST IW LTD [SB]
EF - Homecare - OP East,Chgs from Ind Provs,26/10/2010,5000108857,"1,952.72",CARE FIRST IW LTD [SB]
EF - Homecare - OP East,Chgs from Ind Provs,26/10/2010,5000108853,656.60,CARE FIRST IW LTD [SB]
EF - Homecare - OP East,Chgs from Ind Provs,29/10/2010,5000109713,728.75,CARE FIRST IW LTD [SB]
EF - Homecare - OP East,Chgs from Ind Provs,01/11/2010,5000110017,756.00,CARE FIRST IW LTD [SB]
EF - Homecare - OP East,Chgs from Ind Provs,01/11/2010,5000110032,588.00,CARE FIRST IW LTD [SB]
EF - Homecare - OP East,Chgs from Ind Provs,01/11/2010,5000110023,518.10,CARE FIRST IW LTD [SB]
EF - Homecare - OP East,Chgs from Ind Provs,02/11/2010,5000110324,"1,251.60",CARE FIRST IW LTD [SB]
EF - Homecare - OP East,Chgs from Ind Provs,02/11/2010,5000110329,"1,251.60",CARE FIRST IW LTD [SB]
EF - Homecare - OP East,Chgs from Ind Provs,02/11/2010,5000110321,"1,049.63",CARE FIRST IW LTD [SB]
EF - Homecare - OP East,Chgs from Ind Provs,02/11/2010,5000110395,661.64,CARE FIRST IW LTD [SB]
EF - Homecare - OP East,Chgs from Ind Provs,05/11/2010,5000111133,502.40,CARE FIRST IW LTD [SB]
EF - Homecare - OP East,Chgs from Ind Provs,08/11/2010,5000111201,723.80,CARE FIRST IW LTD [SB]
Dementia Homecare,Chgs from Ind Provs,11/11/2010,5000112017,592.60,CARE FIRST IW LTD [SB]
EF - Homecare - OP East,Chgs from Ind Provs,11/11/2010,5000111844,"1,047.20",CARE FIRST IW LTD [SB]
EF - Homecare - OP East,Chgs from Ind Provs,16/11/2010,5000112713,663.60,CARE FIRST IW LTD [SB]
EF - Homecare - OP East,Chgs from Ind Provs,22/11/2010,5000113734,"1,952.72",CARE FIRST IW LTD [SB]
EF - Homecare - OP East,Chgs from Ind Provs,22/11/2010,5000113784,958.40,CARE FIRST IW LTD [SB]
EF - Homecare - OP East,Chgs from Ind Provs,22/11/2010,5000113651,723.80,CARE FIRST IW LTD [SB]
EF - Homecare - OP East,Chgs from Ind Provs,22/11/2010,5000113601,661.64,CARE FIRST IW LTD [SB]
EF - Homecare - OP East,Chgs from Ind Provs,23/11/2010,5000113886,824.25,CARE FIRST IW LTD [SB]
EF - Homecare - OP East,Chgs from Ind Provs,30/11/2010,5000114889,756.00,CARE FIRST IW LTD [SB]
EF - Homecare - OP East,Chgs from Ind Provs,30/11/2010,5000114883,527.80,CARE FIRST IW LTD [SB]
EF - Homecare - OP East,Chgs from Ind Provs,07/12/2010,5000115837,"1,206.90",CARE FIRST IW LTD [SB]
Dementia Homecare,Chgs from Ind Provs,09/12/2010,5000116412,571.05,CARE FIRST IW LTD [SB]
EF - Homecare - OP East,Chgs from Ind Provs,15/12/2010,5000117456,677.46,CARE FIRST IW LTD [SB]
EF - Homecare - OP East,Chgs from Ind Provs,15/12/2010,5000117367,639.90,CARE FIRST IW LTD [SB]
EF - Homecare - OP East,Chgs from Ind Provs,21/12/2010,5000118537,697.95,CARE FIRST IW LTD [SB]
EF - Homecare - OP East,Chgs from Ind Provs,21/12/2010,5000118538,617.75,CARE FIRST IW LTD [SB]
Homecare Reablement,Professional Subs,22/12/2010,5000118771,"1,242.00",CARE QUALITY COMMISSION
Agency Placements,Pay to Vol and Other,08/10/2010,5000105496,"-3,386.58",CARE UK
Agency Placements,Pay to Vol and Other,18/10/2010,5000107279,"21,133.01",CARE UK
Agency Placements,Pay to Vol and Other,16/11/2010,5000112723,"11,589.07",CARE UK
Agency Placements,Pay to Vol and Other,17/12/2010,5000117952,"21,700.00",CARE UK
Agency Placements,Pay to Vol and Other,17/12/2010,5000117948,"5,600.00",CARE UK
Agency Placements,Pay to Vol and Other,17/12/2010,5000117951,"3,500.00",CARE UK
EF - Nurs - OP East - Mainland,Chgs from Ind Provs,15/10/2010,5000106828,"2,347.94",CARE UK COMMUNITY PARTNERSHIP LTD {
EF - Nurs - OP East - Mainland,Chgs from Ind Provs,12/11/2010,5000112103,"2,272.20",CARE UK COMMUNITY PARTNERSHIP LTD {
EF - Nurs - OP East - Mainland,Chgs from Ind Provs,08/12/2010,5000116185,"2,347.94",CARE UK COMMUNITY PARTNERSHIP LTD {
16+ Team,Transport of Clients,27/10/2010,5000109193,536.64,CAR-ES (UK) LTD
Agency Domiciliary Care,Professional Service,05/10/2010,5000104808,"2,247.70",CAREWATCH (SOUTHAMPTON NF&IOW)
Agency Domiciliary Care,Professional Service,05/10/2010,5000104816,566.72,CAREWATCH (SOUTHAMPTON NF&IOW)
Child Care Act s17:Child.Disability Team,Professional Service,05/10/2010,5000104904,"1,213.40",CAREWATCH (SOUTHAMPTON NF&IOW)
Pupils with statements - Non-Maint Schs,Transport of Clients,07/10/2010,5000105277,807.15,CAREWATCH (SOUTHAMPTON NF&IOW)
Pupils with statements - Non-Maint Schs,Transport of Clients,11/10/2010,5000105789,729.60,CAREWATCH (SOUTHAMPTON NF&IOW)
Agency Domiciliary Care,Professional Service,14/10/2010,5000106666,"2,537.30",CAREWATCH (SOUTHAMPTON NF&IOW)
Agency Domiciliary Care,Professional Service,27/10/2010,5000109195,"2,193.66",CAREWATCH (SOUTHAMPTON NF&IOW)
Agency Domiciliary Care,Professional Service,27/10/2010,5000109198,"1,657.84",CAREWATCH (SOUTHAMPTON NF&IOW)
Agency Domiciliary Care,Professional Service,27/10/2010,5000109194,932.88,CAREWATCH (SOUTHAMPTON NF&IOW)
Agency Domiciliary Care,Professional Service,27/10/2010,5000109205,580.61,CAREWATCH (SOUTHAMPTON NF&IOW)
Fostering - LAC 0-16,Supp Looked After Ch,27/10/2010,5000109283,543.20,CAREWATCH (SOUTHAMPTON NF&IOW)
Fostering - LAC 0-16,Supp Looked After Ch,27/10/2010,5000109282,517.82,CAREWATCH (SOUTHAMPTON NF&IOW)
Fostering - Disability Team,Professional Service,16/11/2010,5000112711,543.20,CAREWATCH (SOUTHAMPTON NF&IOW)
Agency Domiciliary Care,Professional Service,22/11/2010,5000113796,"2,451.56",CAREWATCH (SOUTHAMPTON NF&IOW)
Agency Domiciliary Care,Professional Service,22/11/2010,5000113787,"1,999.58",CAREWATCH (SOUTHAMPTON NF&IOW)
Agency Domiciliary Care,Professional Service,22/11/2010,5000113791,"1,021.22",CAREWATCH (SOUTHAMPTON NF&IOW)
Agency Domiciliary Care,Professional Service,22/12/2010,5000118835,"2,220.36",CAREWATCH (SOUTHAMPTON NF&IOW)
Agency Domiciliary Care,Professional Service,22/12/2010,5000118834,"1,669.94",CAREWATCH (SOUTHAMPTON NF&IOW)
Agency Domiciliary Care,Professional Service,22/12/2010,5000118836,726.90,CAREWATCH (SOUTHAMPTON NF&IOW)
PD - Homecare - PD,Chgs from Ind Provs,04/10/2010,5000104613,985.50,CAREWATCH (SOUTHAMPTON NF[SB]
PD - Homecare - PD,Chgs from Ind Provs,04/10/2010,5000104562,565.65,CAREWATCH (SOUTHAMPTON NF[SB]
EF - Homecare - OP East,Chgs from Ind Provs,06/10/2010,5000105095,"1,691.40",CAREWATCH (SOUTHAMPTON NF[SB]
Dementia Homecare,Chgs from Ind Provs,15/10/2010,5000106926,"1,072.76",CAREWATCH (SOUTHAMPTON NF[SB]
Dementia Homecare,Chgs from Ind Provs,15/10/2010,5000107025,696.00,CAREWATCH (SOUTHAMPTON NF[SB]
Dementia Homecare,Chgs from Ind Provs,15/10/2010,5000106998,586.00,CAREWATCH (SOUTHAMPTON NF[SB]
EF - Homecare - OP East,Chgs from Ind Provs,15/10/2010,5000106837,"1,491.28",CAREWATCH (SOUTHAMPTON NF[SB]
EF - Homecare - OP East,Chgs from Ind Provs,15/10/2010,5000107011,"1,162.00",CAREWATCH (SOUTHAMPTON NF[SB]
EF - Homecare - OP East,Chgs from Ind Provs,15/10/2010,5000107038,"1,148.00",CAREWATCH (SOUTHAMPTON NF[SB]
EF - Homecare - OP East,Chgs from Ind Provs,15/10/2010,5000107054,972.00,CAREWATCH (SOUTHAMPTON NF[SB]
EF - Homecare - OP East,Chgs from Ind Provs,15/10/2010,5000106847,944.00,CAREWATCH (SOUTHAMPTON NF[SB]
EF - Homecare - OP East,Chgs from Ind Provs,15/10/2010,5000106920,857.64,CAREWATCH (SOUTHAMPTON NF[SB]
EF - Homecare - OP East,Chgs from Ind Provs,15/10/2010,5000107050,798.88,CAREWATCH (SOUTHAMPTON NF[SB]
EF - Homecare - OP East,Chgs from Ind Provs,15/10/2010,5000106912,749.50,CAREWATCH (SOUTHAMPTON NF[SB]
EF - Homecare - OP East,Chgs from Ind Provs,15/10/2010,5000106987,742.00,CAREWATCH (SOUTHAMPTON NF[SB]
EF - Homecare - OP East,Chgs from Ind Provs,15/10/2010,5000106861,615.44,CAREWATCH (SOUTHAMPTON NF[SB]
EF - Homecare - OP East,Chgs from Ind Provs,15/10/2010,5000106866,588.00,CAREWATCH (SOUTHAMPTON NF[SB]
EF - Homecare - OP East,Chgs from Ind Provs,15/10/2010,5000107049,588.00,CAREWATCH (SOUTHAMPTON NF[SB]
EF - Homecare - OP East,Chgs from Ind Provs,15/10/2010,5000107033,587.64,CAREWATCH (SOUTHAMPTON NF[SB]
EF - Homecare - OP East,Chgs from Ind Provs,15/10/2010,5000106907,574.00,CAREWATCH (SOUTHAMPTON NF[SB]
EF - Homecare - OP East,Chgs from Ind Provs,15/10/2010,5000106960,574.00,CAREWATCH (SOUTHAMPTON NF[SB]
EF - Homecare - OP East,Chgs from Ind Provs,15/10/2010,5000106882,540.00,CAREWATCH (SOUTHAMPTON NF[SB]
EF - Homecare - OP East,Chgs from Ind Provs,15/10/2010,5000106894,532.00,CAREWATCH (SOUTHAMPTON NF[SB]
EF - Homecare - OP East,Chgs from Ind Provs,15/10/2010,5000106831,527.80,CAREWATCH (SOUTHAMPTON NF[SB]
EF - Homecare - OP East,Chgs from Ind Provs,15/10/2010,5000107021,525.00,CAREWATCH (SOUTHAMPTON NF[SB]
PD - Homecare - PD,Chgs from Ind Provs,15/10/2010,5000107160,"1,120.50",CAREWATCH (SOUTHAMPTON NF[SB]
PD - Homecare - PD,Chgs from Ind Provs,18/10/2010,5000107209,"1,039.64",CAREWATCH (SOUTHAMPTON NF[SB]
PD - Homecare - PD,Chgs from Ind Provs,18/10/2010,5000107215,567.00,CAREWATCH (SOUTHAMPTON NF[SB]
Dementia Homecare,Chgs from Ind Provs,19/10/2010,5000107661,763.00,CAREWATCH (SOUTHAMPTON NF[SB]
EF - Homecare - OP East,Chgs from Ind Provs,19/10/2010,5000107699,"1,053.64",CAREWATCH (SOUTHAMPTON NF[SB]
EF - Homecare - OP East,Chgs from Ind Provs,19/10/2010,5000107686,783.50,CAREWATCH (SOUTHAMPTON NF[SB]
EF - Homecare - OP East,Chgs from Ind Provs,19/10/2010,5000107696,742.50,CAREWATCH (SOUTHAMPTON NF[SB]
EF - Homecare - OP East,Chgs from Ind Provs,19/10/2010,5000107712,682.00,CAREWATCH (SOUTHAMPTON NF[SB]
EF - Homecare - OP East,Chgs from Ind Provs,19/10/2010,5000107677,574.00,CAREWATCH (SOUTHAMPTON NF[SB]
EF - Homecare - OP East,Chgs from Ind Provs,19/10/2010,5000107727,574.00,CAREWATCH (SOUTHAMPTON NF[SB]
EF - Homecare - OP East,Chgs from Ind Provs,19/10/2010,5000107761,533.00,CAREWATCH (SOUTHAMPTON NF[SB]
EF - Homecare - OP East,Chgs from Ind Provs,19/10/2010,5000107670,524.00,CAREWATCH (SOUTHAMPTON NF[SB]
EF - Homecare - OP East,Chgs from Ind Provs,20/10/2010,5000107850,"1,708.28",CAREWATCH (SOUTHAMPTON NF[SB]
EF - Homecare - OP East,Chgs from Ind Provs,20/10/2010,5000107911,"1,540.00",CAREWATCH (SOUTHAMPTON NF[SB]
EF - Homecare - OP East,Chgs from Ind Provs,20/10/2010,5000107881,959.28,CAREWATCH (SOUTHAMPTON NF[SB]
EF - Homecare - OP East,Chgs from Ind Provs,20/10/2010,5000107917,784.00,CAREWATCH (SOUTHAMPTON NF[SB]
EF - Homecare - OP East,Chgs from Ind Provs,20/10/2010,5000107914,658.00,CAREWATCH (SOUTHAMPTON NF[SB]
EF - Homecare - OP East,Chgs from Ind Provs,20/10/2010,5000107910,574.00,CAREWATCH (SOUTHAMPTON NF[SB]
EF - Homecare - OP East,Chgs from Ind Provs,20/10/2010,5000107878,567.28,CAREWATCH (SOUTHAMPTON NF[SB]
EMI - Homecare - OP East,Chgs from Ind Provs,20/10/2010,5000107909,"1,067.12",CAREWATCH (SOUTHAMPTON NF[SB]
EF - Homecare - OP East,Chgs from Ind Provs,21/10/2010,5000108245,"1,074.00",CAREWATCH (SOUTHAMPTON NF[SB]
EF - Homecare - OP East,Chgs from Ind Provs,21/10/2010,5000108232,857.64,CAREWATCH (SOUTHAMPTON NF[SB]
EF - Homecare - OP East,Chgs from Ind Provs,21/10/2010,5000108226,770.00,CAREWATCH (SOUTHAMPTON NF[SB]
EF - Homecare - OP East,Chgs from Ind Provs,21/10/2010,5000108285,770.00,CAREWATCH (SOUTHAMPTON NF[SB]
EF - Homecare - OP East,Chgs from Ind Provs,21/10/2010,5000108284,675.64,CAREWATCH (SOUTHAMPTON NF[SB]
EF - Homecare - OP East,Chgs from Ind Provs,21/10/2010,5000108275,630.49,CAREWATCH (SOUTHAMPTON NF[SB]
EF - Homecare - OP East,Chgs from Ind Provs,21/10/2010,5000108248,574.00,CAREWATCH (SOUTHAMPTON NF[SB]
EF - Homecare - OP East,Chgs from Ind Provs,21/10/2010,5000108279,522.00,CAREWATCH (SOUTHAMPTON NF[SB]
EMI - Homecare - OP East,Chgs from Ind Provs,21/10/2010,5000108272,871.64,CAREWATCH (SOUTHAMPTON NF[SB]
Dementia Homecare,Chgs from Ind Provs,25/10/2010,5000108783,"1,351.28",CAREWATCH (SOUTHAMPTON NF[SB]
EF - Homecare - OP East,Chgs from Ind Provs,25/10/2010,5000108785,754.00,CAREWATCH (SOUTHAMPTON NF[SB]
EF - Homecare - OP East,Chgs from Ind Provs,26/10/2010,5000108846,966.00,CAREWATCH (SOUTHAMPTON NF[SB]
EF - Homecare - OP East,Chgs from Ind Provs,28/10/2010,5000109596,588.00,CAREWATCH (SOUTHAMPTON NF[SB]
EF - Homecare - OP East,Chgs from Ind Provs,28/10/2010,5000109597,588.00,CAREWATCH (SOUTHAMPTON NF[SB]
PD - Homecare - PD,Chgs from Ind Provs,28/10/2010,5000109430,615.44,CAREWATCH (SOUTHAMPTON NF[SB]
PD - Homecare - PD,Chgs from Ind Provs,11/11/2010,5000112052,871.75,CAREWATCH (SOUTHAMPTON NF[SB]
EF - Homecare - OP East,Chgs from Ind Provs,12/11/2010,5000112137,"1,491.28",CAREWATCH (SOUTHAMPTON NF[SB]
EF - Homecare - OP East,Chgs from Ind Provs,12/11/2010,5000112160,723.80,CAREWATCH (SOUTHAMPTON NF[SB]
EF - Homecare - OP East,Chgs from Ind Provs,12/11/2010,5000112183,588.00,CAREWATCH (SOUTHAMPTON NF[SB]
EF - Homecare - OP East,Chgs from Ind Provs,12/11/2010,5000112244,540.00,CAREWATCH (SOUTHAMPTON NF[SB]
EF - Homecare - OP East,Chgs from Ind Provs,12/11/2010,5000112209,532.00,CAREWATCH (SOUTHAMPTON NF[SB]
EF - Homecare - OP East,Chgs from Ind Provs,12/11/2010,5000112186,527.80,CAREWATCH (SOUTHAMPTON NF[SB]
Dementia Homecare,Chgs from Ind Provs,15/11/2010,5000112557,850.50,CAREWATCH (SOUTHAMPTON NF[SB]
Dementia Homecare,Chgs from Ind Provs,15/11/2010,5000112529,570.00,CAREWATCH (SOUTHAMPTON NF[SB]
EF - Homecare - OP East,Chgs from Ind Provs,15/11/2010,5000112499,"1,162.00",CAREWATCH (SOUTHAMPTON NF[SB]
EF - Homecare - OP East,Chgs from Ind Provs,15/11/2010,5000112541,945.00,CAREWATCH (SOUTHAMPTON NF[SB]
EF - Homecare - OP East,Chgs from Ind Provs,15/11/2010,5000112533,810.92,CAREWATCH (SOUTHAMPTON NF[SB]
EF - Homecare - OP East,Chgs from Ind Provs,15/11/2010,5000112548,588.00,CAREWATCH (SOUTHAMPTON NF[SB]
EF - Homecare - OP East,Chgs from Ind Provs,15/11/2010,5000112559,588.00,CAREWATCH (SOUTHAMPTON NF[SB]
EF - Homecare - OP East,Chgs from Ind Provs,15/11/2010,5000112515,587.64,CAREWATCH (SOUTHAMPTON NF[SB]
EF - Homecare - OP East,Chgs from Ind Provs,15/11/2010,5000112484,574.00,CAREWATCH (SOUTHAMPTON NF[SB]
EF - Homecare - OP East,Chgs from Ind Provs,15/11/2010,5000112514,574.00,CAREWATCH (SOUTHAMPTON NF[SB]
EF - Homecare - OP East,Chgs from Ind Provs,15/11/2010,5000112528,574.00,CAREWATCH (SOUTHAMPTON NF[SB]
EF - Homecare - OP East,Chgs from Ind Provs,15/11/2010,5000112572,574.00,CAREWATCH (SOUTHAMPTON NF[SB]
EF - Homecare - OP East,Chgs from Ind Provs,15/11/2010,5000112562,535.40,CAREWATCH (SOUTHAMPTON NF[SB]
EF - Homecare - OP East,Chgs from Ind Provs,16/11/2010,5000112686,"1,708.28",CAREWATCH (SOUTHAMPTON NF[SB]
EF - Homecare - OP East,Chgs from Ind Provs,16/11/2010,5000112838,"1,074.00",CAREWATCH (SOUTHAMPTON NF[SB]
EF - Homecare - OP East,Chgs from Ind Provs,16/11/2010,5000112809,"1,053.64",CAREWATCH (SOUTHAMPTON NF[SB]
EF - Homecare - OP East,Chgs from Ind Provs,16/11/2010,5000112852,857.64,CAREWATCH (SOUTHAMPTON NF[SB]
EF - Homecare - OP East,Chgs from Ind Provs,16/11/2010,5000112804,770.00,CAREWATCH (SOUTHAMPTON NF[SB]
EF - Homecare - OP East,Chgs from Ind Provs,16/11/2010,5000112849,770.00,CAREWATCH (SOUTHAMPTON NF[SB]
EF - Homecare - OP East,Chgs from Ind Provs,16/11/2010,5000112845,687.36,CAREWATCH (SOUTHAMPTON NF[SB]
EF - Homecare - OP East,Chgs from Ind Provs,16/11/2010,5000112787,672.00,CAREWATCH (SOUTHAMPTON NF[SB]
EF - Homecare - OP East,Chgs from Ind Provs,16/11/2010,5000112837,574.00,CAREWATCH (SOUTHAMPTON NF[SB]
Dementia Homecare,Chgs from Ind Provs,17/11/2010,5000112886,"1,072.76",CAREWATCH (SOUTHAMPTON NF[SB]
Dementia Homecare,Chgs from Ind Provs,17/11/2010,5000112917,882.68,CAREWATCH (SOUTHAMPTON NF[SB]
Dementia Homecare,Chgs from Ind Provs,17/11/2010,5000112944,696.00,CAREWATCH (SOUTHAMPTON NF[SB]
EF - Homecare - OP East,Chgs from Ind Provs,17/11/2010,5000112965,"1,148.00",CAREWATCH (SOUTHAMPTON NF[SB]
EF - Homecare - OP East,Chgs from Ind Provs,17/11/2010,5000112888,952.00,CAREWATCH (SOUTHAMPTON NF[SB]
EF - Homecare - OP East,Chgs from Ind Provs,17/11/2010,5000112901,944.00,CAREWATCH (SOUTHAMPTON NF[SB]
EF - Homecare - OP East,Chgs from Ind Provs,17/11/2010,5000112868,770.00,CAREWATCH (SOUTHAMPTON NF[SB]
EF - Homecare - OP East,Chgs from Ind Provs,17/11/2010,5000112910,754.00,CAREWATCH (SOUTHAMPTON NF[SB]
EF - Homecare - OP East,Chgs from Ind Provs,17/11/2010,5000112865,675.64,CAREWATCH (SOUTHAMPTON NF[SB]
EF - Homecare - OP East,Chgs from Ind Provs,17/11/2010,5000112938,532.00,CAREWATCH (SOUTHAMPTON NF[SB]
EF - Homecare - OP East,Chgs from Ind Provs,17/11/2010,5000112872,522.00,CAREWATCH (SOUTHAMPTON NF[SB]
PD - Homecare - PD,Chgs from Ind Provs,17/11/2010,5000112985,"1,039.64",CAREWATCH (SOUTHAMPTON NF[SB]
PD - Homecare - PD,Chgs from Ind Provs,17/11/2010,5000112941,615.44,CAREWATCH (SOUTHAMPTON NF[SB]
PD - Homecare - PD,Chgs from Ind Provs,17/11/2010,5000112952,553.50,CAREWATCH (SOUTHAMPTON NF[SB]
EF - Homecare - OP East,Chgs from Ind Provs,19/11/2010,5000113386,742.00,CAREWATCH (SOUTHAMPTON NF[SB]
EF - Homecare - OP East,Chgs from Ind Provs,19/11/2010,5000113369,574.00,CAREWATCH (SOUTHAMPTON NF[SB]
EF - Homecare - OP East,Chgs from Ind Provs,19/11/2010,5000113382,563.64,CAREWATCH (SOUTHAMPTON NF[SB]
EF - Homecare - OP East,Chgs from Ind Provs,19/11/2010,5000113374,518.10,CAREWATCH (SOUTHAMPTON NF[SB]
EF - Homecare - OP East,Chgs from Ind Provs,22/11/2010,5000113708,"1,540.00",CAREWATCH (SOUTHAMPTON NF[SB]
EF - Homecare - OP East,Chgs from Ind Provs,22/11/2010,5000113706,966.00,CAREWATCH (SOUTHAMPTON NF[SB]
EF - Homecare - OP East,Chgs from Ind Provs,22/11/2010,5000113571,959.28,CAREWATCH (SOUTHAMPTON NF[SB]
EF - Homecare - OP East,Chgs from Ind Provs,22/11/2010,5000113728,784.00,CAREWATCH (SOUTHAMPTON NF[SB]
EF - Homecare - OP East,Chgs from Ind Provs,22/11/2010,5000113727,658.00,CAREWATCH (SOUTHAMPTON NF[SB]
EF - Homecare - OP East,Chgs from Ind Provs,22/11/2010,5000113679,574.00,CAREWATCH (SOUTHAMPTON NF[SB]
EMI - Homecare - OP East,Chgs from Ind Provs,22/11/2010,5000113672,"1,067.12",CAREWATCH (SOUTHAMPTON NF[SB]
EF - Homecare - OP East,Chgs from Ind Provs,23/11/2010,5000113963,"1,053.64",CAREWATCH (SOUTHAMPTON NF[SB]
Dementia Homecare,Chgs from Ind Provs,30/11/2010,5000115110,"1,591.92",CAREWATCH (SOUTHAMPTON NF[SB]
Dementia Homecare,Chgs from Ind Provs,30/11/2010,5000115114,"1,584.92",CAREWATCH (SOUTHAMPTON NF[SB]
Dementia Homecare,Chgs from Ind Provs,30/11/2010,5000115117,"1,584.92",CAREWATCH (SOUTHAMPTON NF[SB]
Dementia Homecare,Chgs from Ind Provs,30/11/2010,5000115118,"1,584.92",CAREWATCH (SOUTHAMPTON NF[SB]
Dementia Homecare,Chgs from Ind Provs,30/11/2010,5000115120,"1,584.92",CAREWATCH (SOUTHAMPTON NF[SB]
Dementia Homecare,Chgs from Ind Provs,30/11/2010,5000115116,"1,577.92",CAREWATCH (SOUTHAMPTON NF[SB]
Dementia Homecare,Chgs from Ind Provs,30/11/2010,5000115112,"1,536.67",CAREWATCH (SOUTHAMPTON NF[SB]
Dementia Homecare,Chgs from Ind Provs,30/11/2010,5000115107,"1,534.68",CAREWATCH (SOUTHAMPTON NF[SB]
Dementia Homecare,Chgs from Ind Provs,14/12/2010,5000117318,"1,508.67",CAREWATCH (SOUTHAMPTON NF[SB]
Dementia Homecare,Chgs from Ind Provs,14/12/2010,5000117308,"1,351.28",CAREWATCH (SOUTHAMPTON NF[SB]
Dementia Homecare,Chgs from Ind Provs,14/12/2010,5000117276,"1,072.76",CAREWATCH (SOUTHAMPTON NF[SB]
Dementia Homecare,Chgs from Ind Provs,14/12/2010,5000117114,891.00,CAREWATCH (SOUTHAMPTON NF[SB]
Dementia Homecare,Chgs from Ind Provs,14/12/2010,5000117197,768.00,CAREWATCH (SOUTHAMPTON NF[SB]
EF - Homecare - OP East,Chgs from Ind Provs,14/12/2010,5000117092,"1,708.28",CAREWATCH (SOUTHAMPTON NF[SB]
EF - Homecare - OP East,Chgs from Ind Provs,14/12/2010,5000117217,"1,540.00",CAREWATCH (SOUTHAMPTON NF[SB]
EF - Homecare - OP East,Chgs from Ind Provs,14/12/2010,5000117173,"1,335.74",CAREWATCH (SOUTHAMPTON NF[SB]
EF - Homecare - OP East,Chgs from Ind Provs,14/12/2010,5000117279,"1,162.00",CAREWATCH (SOUTHAMPTON NF[SB]
EF - Homecare - OP East,Chgs from Ind Provs,14/12/2010,5000117322,"1,148.00",CAREWATCH (SOUTHAMPTON NF[SB]
EF - Homecare - OP East,Chgs from Ind Provs,14/12/2010,5000117314,"1,074.00",CAREWATCH (SOUTHAMPTON NF[SB]
EF - Homecare - OP East,Chgs from Ind Provs,14/12/2010,5000117211,966.00,CAREWATCH (SOUTHAMPTON NF[SB]
EF - Homecare - OP East,Chgs from Ind Provs,14/12/2010,5000117108,959.28,CAREWATCH (SOUTHAMPTON NF[SB]
EF - Homecare - OP East,Chgs from Ind Provs,14/12/2010,5000117303,952.00,CAREWATCH (SOUTHAMPTON NF[SB]
EF - Homecare - OP East,Chgs from Ind Provs,14/12/2010,5000117247,857.64,CAREWATCH (SOUTHAMPTON NF[SB]
EF - Homecare - OP East,Chgs from Ind Provs,14/12/2010,5000117166,770.00,CAREWATCH (SOUTHAMPTON NF[SB]
EF - Homecare - OP East,Chgs from Ind Provs,14/12/2010,5000117283,770.00,CAREWATCH (SOUTHAMPTON NF[SB]
EF - Homecare - OP East,Chgs from Ind Provs,14/12/2010,5000117320,770.00,CAREWATCH (SOUTHAMPTON NF[SB]
EF - Homecare - OP East,Chgs from Ind Provs,14/12/2010,5000117307,754.00,CAREWATCH (SOUTHAMPTON NF[SB]
EF - Homecare - OP East,Chgs from Ind Provs,14/12/2010,5000117288,675.64,CAREWATCH (SOUTHAMPTON NF[SB]
EF - Homecare - OP East,Chgs from Ind Provs,14/12/2010,5000117181,665.75,CAREWATCH (SOUTHAMPTON NF[SB]
EF - Homecare - OP East,Chgs from Ind Provs,14/12/2010,5000117163,615.44,CAREWATCH (SOUTHAMPTON NF[SB]
EF - Homecare - OP East,Chgs from Ind Provs,14/12/2010,5000117136,601.64,CAREWATCH (SOUTHAMPTON NF[SB]
EF - Homecare - OP East,Chgs from Ind Provs,14/12/2010,5000117117,588.00,CAREWATCH (SOUTHAMPTON NF[SB]
EF - Homecare - OP East,Chgs from Ind Provs,14/12/2010,5000117313,574.00,CAREWATCH (SOUTHAMPTON NF[SB]
EF - Homecare - OP East,Chgs from Ind Provs,14/12/2010,5000117147,560.50,CAREWATCH (SOUTHAMPTON NF[SB]
EF - Homecare - OP East,Chgs from Ind Provs,14/12/2010,5000117215,560.00,CAREWATCH (SOUTHAMPTON NF[SB]
EF - Homecare - OP East,Chgs from Ind Provs,14/12/2010,5000117293,553.64,CAREWATCH (SOUTHAMPTON NF[SB]
EF - Homecare - OP East,Chgs from Ind Provs,14/12/2010,5000117209,505.50,CAREWATCH (SOUTHAMPTON NF[SB]
EMI - Homecare - OP East,Chgs from Ind Provs,14/12/2010,5000117298,731.64,CAREWATCH (SOUTHAMPTON NF[SB]
EF - Homecare - OP East,Chgs from Ind Provs,15/12/2010,5000117483,"3,472.00",CAREWATCH (SOUTHAMPTON NF[SB]
EF - Homecare - OP East,Chgs from Ind Provs,15/12/2010,5000117425,"1,053.64",CAREWATCH (SOUTHAMPTON NF[SB]
EF - Homecare - OP East,Chgs from Ind Provs,15/12/2010,5000117371,972.00,CAREWATCH (SOUTHAMPTON NF[SB]
EF - Homecare - OP East,Chgs from Ind Provs,15/12/2010,5000117369,784.00,CAREWATCH (SOUTHAMPTON NF[SB]
EF - Homecare - OP East,Chgs from Ind Provs,15/12/2010,5000117370,774.94,CAREWATCH (SOUTHAMPTON NF[SB]
EF - Homecare - OP East,Chgs from Ind Provs,15/12/2010,5000117415,715.00,CAREWATCH (SOUTHAMPTON NF[SB]
EF - Homecare - OP East,Chgs from Ind Provs,15/12/2010,5000117487,693.00,CAREWATCH (SOUTHAMPTON NF[SB]
EF - Homecare - OP East,Chgs from Ind Provs,15/12/2010,5000117368,658.00,CAREWATCH (SOUTHAMPTON NF[SB]
EF - Homecare - OP East,Chgs from Ind Provs,15/12/2010,5000117383,581.00,CAREWATCH (SOUTHAMPTON NF[SB]
EF - Homecare - OP East,Chgs from Ind Provs,15/12/2010,5000117453,563.64,CAREWATCH (SOUTHAMPTON NF[SB]
EF - Homecare - OP East,Chgs from Ind Provs,15/12/2010,5000117414,539.00,CAREWATCH (SOUTHAMPTON NF[SB]
EF - Homecare - OP East,Chgs from Ind Provs,15/12/2010,5000117572,"-3,472.00",CAREWATCH (SOUTHAMPTON NF[SB]
EF - Homecare - OP East,Chgs from Ind Provs,16/12/2010,5000117829,944.00,CAREWATCH (SOUTHAMPTON NF[SB]
EF - Homecare - OP East,Chgs from Ind Provs,16/12/2010,5000117814,527.80,CAREWATCH (SOUTHAMPTON NF[SB]
EF - Homecare - OP East,Chgs from Ind Provs,16/12/2010,5000117839,525.00,CAREWATCH (SOUTHAMPTON NF[SB]
EF - Homecare - OP East,Chgs from Ind Provs,17/12/2010,5000118015,574.00,CAREWATCH (SOUTHAMPTON NF[SB]
EMI - Homecare - OP East,Chgs from Ind Provs,17/12/2010,5000117986,682.00,CAREWATCH (SOUTHAMPTON NF[SB]
EF - Homecare - OP East,Chgs from Ind Provs,21/12/2010,5000118533,"1,708.28",CAREWATCH (SOUTHAMPTON NF[SB]
PD - Homecare - PD,Chgs from Ind Provs,22/12/2010,5000118867,615.44,CAREWATCH (SOUTHAMPTON NF[SB]
PD - Homecare - PD,Chgs from Ind Provs,22/12/2010,5000118809,505.50,CAREWATCH (SOUTHAMPTON NF[SB]
LAC Team,Agency staff,27/10/2010,5000109228,"2,350.00",CARITAS RECRUITMENT LIMITED
LAC Team,Agency staff,03/11/2010,5000110485,"2,700.00",CARITAS RECRUITMENT LIMITED
Carnival Learning Centre (Westridge),Pay to Pvte Contract,28/10/2010,5000109709,925.00,CARNIVAL COUTURE
Agency Placements,Pay to Vol and Other,06/10/2010,5000104998,"12,036.26",CASTLE HOMES LTD
Agency Placements,Pay to Vol and Other,26/10/2010,5000108818,"2,006.04",CASTLE HOMES LTD
Provision Of Meals,Catering Equipment,08/10/2010,5000105506,"3,940.00",CATER WIGHT
Provision Of Meals,Catering Equipment,12/10/2010,5000106272,"3,260.00",CATER WIGHT
EF - Nurs - OP East - Mainland,Chgs from Ind Provs,29/10/2010,5000109749,"6,195.84",CEDAR CARE HOMES LTD
IW Festival of Cycling,Advertising & Public,28/10/2010,5000109598,700.00,CELADOR RADIO LTD
Library Mgmt & Central Support,Purchase of Books,03/11/2010,1900252787,"1,360.00",CENGAGE LEARNING EMEA
Primary School Improvement Partners,B/in Prof Svs - Curr,15/11/2010,5000112491,"1,600.00",CENTRAL BEDFORDSHIRE COUNCIL
Technical Support,Maint of Op Equip,22/11/2010,5000113717,"2,624.00",CENTRAL COMPRESSOR CONSULTANTS LTD
TIC Agency Income Suspense,Professional Service,08/10/2010,1900239548,894.41,CHALIS LTD T/A YARMOUTH
WW Landscape Partnership,Pay to Pvte Contract,09/12/2010,5000116345,"5,000.00",CHALLENGE & ADVENTURE LTD
Strategic Projects,"Pl, Equip & Furn - C",02/11/2010,5000110422,750.00,CHAMELEON CODEWING LTD
Newport Summerfields Devolved Capital,"Pl, Equip & Furn - C",05/10/2010,1900238786,512.00,CHANT LOCK & SECURITY SERVICE
"Registration Of Births,Deaths, Marriage",Minor Works,26/11/2010,5000114581,891.50,CHANT LOCK & SECURITY SERVICE
Summary Revenue Account,Loan Interest,01/12/2010,1900265828,"80,758.36",CHAPS-DEPFA ACS BANK
Summary Revenue Account,Loan Interest,01/12/2010,1900265833,"106,457.53",CHAPS-EUROPAISCHE HYPOTHEKENBANK SA
Summary Revenue Account,Loan Interest,01/12/2010,1900265835,584.94,CHAPS-EUROPAISCHE HYPOTHEKENBANK SA
Collection Fund - Account,Police Precept,20/10/2010,1900245825,"671,544.00",CHAPS-HAMPSHIRE POLICE AUTHORITY
Collection Fund - Account,Police Precept,19/11/2010,1900260145,"671,544.00",CHAPS-HAMPSHIRE POLICE AUTHORITY
Collection Fund - Account,Police Precept,22/12/2010,1900277855,"671,544.00",CHAPS-HAMPSHIRE POLICE AUTHORITY
School Reorganisation Consultation Costs,Conference Expenses,12/10/2010,5000106224,680.00,CHAPS-LEICESTER CITY COUNCIL
School Reorganisation Consultation Costs,Conference Expenses,27/10/2010,5000109392,-680.00,CHAPS-LEICESTER CITY COUNCIL
Highways PFI Project,Building & Room Rent,20/10/2010,5000107954,"3,375.00",CHARLES STANLEY GROUP LIMITED
Highways PFI Project,Building & Room Rent,20/10/2010,5000107955,548.75,CHARLES STANLEY GROUP LIMITED
EF - Nurs - OP East - Mainland,Chgs from Ind Provs,12/10/2010,5105619348,"1,869.00",CHEAM COTTAGE N/H [SB]
EF - Nurs - OP East - Mainland,Chgs from Ind Provs,09/11/2010,5105625607,"1,869.00",CHEAM COTTAGE N/H [SB]
EF - Nurs - OP East - Mainland,Chgs from Ind Provs,07/12/2010,5105631310,"1,869.00",CHEAM COTTAGE N/H [SB]
Children Centres Capital Schemes,"Pl, Equip & Furn - C",02/11/2010,1900252400,"2,887.05",CHEEKY CHIMPS[CC]
Ventnor Haven - General,Pay to Pvte Contract,01/10/2010,5000104535,"4,281.16",CHEETAH MARINE LLP
Ventnor Haven - General,Pay to Pvte Contract,07/10/2010,5000105429,"1,533.00",CHEETAH MARINE LLP
Ventnor Haven - General,Pay to Pvte Contract,11/11/2010,5000111937,"1,677.92",CHEETAH MARINE LLP
Ventnor Haven - General,Pay to Pvte Contract,08/12/2010,5000116188,"1,648.67",CHEETAH MARINE LLP
EF - Res - OP East,Chgs from Ind Provs,12/10/2010,5105619279,"1,979.88",CHERRY TREES [SB]
EF - Res - OP East,Chgs from Ind Provs,12/10/2010,5105619279,"1,892.24",CHERRY TREES [SB]
EF - Res - OP East,Chgs from Ind Provs,12/10/2010,5105619279,"1,892.24",CHERRY TREES [SB]
EF - Res - OP East,Chgs from Ind Provs,12/10/2010,5105619279,"1,536.92",CHERRY TREES [SB]
EF - Res - OP East,Chgs from Ind Provs,12/10/2010,5105619279,"1,536.92",CHERRY TREES [SB]
EF - Res - OP East,Chgs from Ind Provs,12/10/2010,5105619279,"1,536.92",CHERRY TREES [SB]
EF - Res - OP East,Chgs from Ind Provs,12/10/2010,5105619279,"1,536.92",CHERRY TREES [SB]
EF - Res - OP East,Chgs from Ind Provs,12/10/2010,5105619279,"1,536.92",CHERRY TREES [SB]
EF - Res - OP East,Chgs from Ind Provs,12/10/2010,5105619279,"1,536.92",CHERRY TREES [SB]
EF - Res - OP East,Chgs from Ind Provs,12/10/2010,5105619279,"1,536.92",CHERRY TREES [SB]
EF - Res - OP East,Chgs from Ind Provs,12/10/2010,5105619279,"1,536.92",CHERRY TREES [SB]
EF - Res - OP East,Chgs from Ind Provs,12/10/2010,5105619279,"1,536.92",CHERRY TREES [SB]
EMI - Res - OP East,Chgs from Ind Provs,12/10/2010,5105619279,"1,536.92",CHERRY TREES [SB]
EF - Res - OP East,Chgs from Ind Provs,13/10/2010,1900240596,786.78,CHERRY TREES [SB]
EF - Res - OP East,Chgs from Ind Provs,02/11/2010,1700032996,"-1,757.08",CHERRY TREES [SB]
Dementia Residential Care,Chgs from Ind Provs,09/11/2010,5105625538,"1,610.00",CHERRY TREES [SB]
EF - Res - OP East,Chgs from Ind Provs,09/11/2010,5105625538,"1,979.88",CHERRY TREES [SB]
EF - Res - OP East,Chgs from Ind Provs,09/11/2010,5105625538,"1,892.24",CHERRY TREES [SB]
EF - Res - OP East,Chgs from Ind Provs,09/11/2010,5105625538,"1,536.92",CHERRY TREES [SB]
EF - Res - OP East,Chgs from Ind Provs,09/11/2010,5105625538,"1,536.92",CHERRY TREES [SB]
EF - Res - OP East,Chgs from Ind Provs,09/11/2010,5105625538,"1,536.92",CHERRY TREES [SB]
EF - Res - OP East,Chgs from Ind Provs,09/11/2010,5105625538,"1,536.92",CHERRY TREES [SB]
EF - Res - OP East,Chgs from Ind Provs,09/11/2010,5105625538,"1,536.92",CHERRY TREES [SB]
EF - Res - OP East,Chgs from Ind Provs,09/11/2010,5105625538,"1,536.92",CHERRY TREES [SB]
EF - Res - OP East,Chgs from Ind Provs,09/11/2010,5105625538,"1,536.92",CHERRY TREES [SB]
EF - Res - OP East,Chgs from Ind Provs,09/11/2010,5105625538,"1,536.92",CHERRY TREES [SB]
EF - Res - OP East,Chgs from Ind Provs,09/11/2010,5105625538,"1,536.92",CHERRY TREES [SB]
EMI - Res - OP East,Chgs from Ind Provs,09/11/2010,5105625538,"1,536.92",CHERRY TREES [SB]
Dementia Residential Care,Chgs from Ind Provs,24/11/2010,5000114165,"1,035.00",CHERRY TREES [SB]
Dementia Residential Care,Chgs from Ind Provs,07/12/2010,5105631241,"1,610.00",CHERRY TREES [SB]
EF - Res - OP East,Chgs from Ind Provs,07/12/2010,5105631241,"1,979.88",CHERRY TREES [SB]
EF - Res - OP East,Chgs from Ind Provs,07/12/2010,5105631241,"1,892.24",CHERRY TREES [SB]
EF - Res - OP East,Chgs from Ind Provs,07/12/2010,5105631241,"1,536.92",CHERRY TREES [SB]
EF - Res - OP East,Chgs from Ind Provs,07/12/2010,5105631241,"1,536.92",CHERRY TREES [SB]
EF - Res - OP East,Chgs from Ind Provs,07/12/2010,5105631241,"1,536.92",CHERRY TREES [SB]
EF - Res - OP East,Chgs from Ind Provs,07/12/2010,5105631241,"1,536.92",CHERRY TREES [SB]
EF - Res - OP East,Chgs from Ind Provs,07/12/2010,5105631241,"1,536.92",CHERRY TREES [SB]
EF - Res - OP East,Chgs from Ind Provs,07/12/2010,5105631241,"1,536.92",CHERRY TREES [SB]
EF - Res - OP East,Chgs from Ind Provs,07/12/2010,5105631241,"1,536.92",CHERRY TREES [SB]
EF - Res - OP East,Chgs from Ind Provs,07/12/2010,5105631241,"1,536.92",CHERRY TREES [SB]
EF - Res - OP East,Chgs from Ind Provs,07/12/2010,5105631241,"1,536.92",CHERRY TREES [SB]
EMI - Res - OP East,Chgs from Ind Provs,07/12/2010,5105631241,"1,536.92",CHERRY TREES [SB]
Dementia Residential Care,Chgs from Ind Provs,09/12/2010,5000116294,"1,610.00",CHERRY TREES [SB]
Dementia Residential Care,Chgs from Ind Provs,09/12/2010,5000116295,"1,610.00",CHERRY TREES [SB]
Dementia Residential Care,Chgs from Ind Provs,20/12/2010,5000118328,"1,897.50",CHERRY TREES [SB]
Medina Theatre,Pay to Pvte Contract,25/11/2010,1900265211,"3,500.00",CHOIR CONNEXION LTD
Medina Theatre,Pay to Pvte Contract,15/12/2010,1900272345,612.50,CHOIR CONNEXION LTD
Off-Street Parking Operations,Vehicle Leas and Acq,25/10/2010,1900246743,"2,100.00",CHRYSTAL CONSULTING
Summary Revenue Account,Interest elem.lessee,08/12/2010,1900271145,"2,890.00",CHRYSTAL CONSULTING
Branstone Farm Studies Centre,Vehicle Leas and Acq,10/12/2010,1900272091,"5,562.50",CHRYSTAL CONSULTING
Summary Revenue Account,Interest elem.lessee,10/12/2010,1900272091,622.09,CHRYSTAL CONSULTING
Accountancy Team,Train and Conference,05/10/2010,5000104941,"1,234.04",CIPFA
Accountancy Team,Train and Conference,06/10/2010,5000105008,"1,410.00",CIPFA
Accountancy Team,Train and Conference,06/10/2010,5000104982,"-1,234.04",CIPFA
Children's Services Strategic Management,Professional Subs,02/11/2010,5000110407,820.00,CIPFA
Financial Management Overheads,Publications,21/12/2010,5000118683,780.00,CIPFA
Fostering,Licences,01/12/2010,5000115343,850.00,Cis Assessment.Co.Uk
Summary Revenue Account,Interest elem.lessee,22/12/2010,1900277836,"77,516.52",CIT EQUIPMENT FINANCE UK
ICT Contracts,Computer Maintenance,16/11/2010,5000112836,"15,887.94",CIVICA SERVICES LTD
ICT Contracts,Computer Maintenance,16/11/2010,5000112836,"10,126.90",CIVICA SERVICES LTD
ICT Contracts,Computer Maintenance,16/11/2010,5000112836,"5,325.52",CIVICA SERVICES LTD
ICT Contracts,Computer Maintenance,16/11/2010,5000112836,"5,027.92",CIVICA SERVICES LTD
ICT Contracts,Computer Maintenance,16/11/2010,5000112836,"4,583.76",CIVICA SERVICES LTD
ICT Contracts,Computer Maintenance,16/11/2010,5000112836,"4,583.76",CIVICA SERVICES LTD
ICT Contracts,Computer Maintenance,16/11/2010,5000112836,"2,662.76",CIVICA SERVICES LTD
Planning Training,Train and Conference,09/12/2010,5000116387,800.00,CJDA LTD
SEN Transport,Transport of Clients,04/10/2010,5000104742,570.00,CLARES CABS
SEN Transport,Transport of Clients,03/12/2010,5000115545,660.00,CLARES CABS
Strategic Projects,ICT H/ware & S/ware,07/10/2010,5000105410,"4,030.00",CLARITY INFORMATION SOLUTIONS LTD
One School Pathfinder,Ext Design & Superv,13/10/2010,5000106512,"-4,935.00",Clarke Bond (south West & Wales)ltd
One School Pathfinder,Ext Design & Superv,23/11/2010,5000113871,"2,000.00",Clarke Bond (south West & Wales)ltd
One School Pathfinder,Ext Design & Superv,23/11/2010,5000113868,935.00,Clarke Bond (south West & Wales)ltd
One School Pathfinder,Ext Design & Superv,07/12/2010,5000115967,"2,697.00",Clarke Bond (south West & Wales)ltd
One School Pathfinder,Ext Design & Superv,07/12/2010,5000115962,737.00,Clarke Bond (south West & Wales)ltd
Litigation Costs,Legal Fees - Other P,04/10/2010,5000104728,"5,600.00",CLARKE WILLMOTT LLP
Ryde THI,Consultants Fees,25/11/2010,5000114323,"1,717.00",CLARKE WILLMOTT LLP
Litigation Costs,Legal Fees - Other P,06/12/2010,5000115619,"1,500.00",CLARKE WILLMOTT LLP
Sandown High Devolved Capital,Cap Contractor Pmts,29/10/2010,1900252256,"6,085.00",CLARKES MECHANICAL LTD
Heating and Loft insulation,Capital Grants,04/11/2010,1900252804,"3,314.11",CLARKES MECHANICAL LTD
Heating and Loft insulation,Capital Grants,10/12/2010,1900271862,679.20,CLARKES MECHANICAL LTD
Non-Delegated Building Maintenance,Prop Svs - Bldg mtce,22/12/2010,5000118813,"1,592.88",CLARKES MECHANICAL LTD
Coastal Capital Schenes,Cap Contractor Pmts,07/10/2010,5000105248,540.00,CLIFFORD J. MATTHEWS LTD
ROW Capital Programme,Eligible Supp and Sv,08/10/2010,5000105704,"1,400.00",CLIFFORD J. MATTHEWS LTD
Parks and Gardens Capital,Cap Contractor Pmts,13/10/2010,5000106369,"-4,940.00",CLIFFORD J. MATTHEWS LTD
Parks and Gardens Capital,Cap Contractor Pmts,08/11/2010,5000111216,"4,940.00",CLIFFORD J. MATTHEWS LTD
Afton Access Project,Pay to Pvte Contract,09/11/2010,5000111374,"2,100.00",CLIFFORD J. MATTHEWS LTD
ROW Capital Programme,Eligible Supp and Sv,09/12/2010,5000116498,882.21,CLIFFORD J. MATTHEWS LTD
ROW Capital Programme,Cap Contractor Pmts,14/12/2010,5000117051,"7,880.00",CLIFFORD J. MATTHEWS LTD
Coastal Capital Schenes,Cap Contractor Pmts,16/12/2010,5000117869,630.00,CLIFFORD J. MATTHEWS LTD
Ryde THI,Consultants Fees,08/11/2010,5000111336,"1,208.50",CLUTTERBUCK-EDWARDS CHARTER
Management of Asbestos,Ext Design & Superv,29/11/2010,5000114786,"2,500.00",CLUTTERBUCK-EDWARDS CHARTER
Management of Asbestos,Ext Design & Superv,29/11/2010,5000114788,989.00,CLUTTERBUCK-EDWARDS CHARTER
Heating and Loft insulation,Capital Grants,11/11/2010,1900259048,"2,566.88",COASTLINE WINDOWS LTD
Heating and Loft insulation,Capital Grants,08/12/2010,1900267160,"3,232.85",COASTLINE WINDOWS LTD
EF - Nurs - OP East - Mainland,Chgs from Ind Provs,12/10/2010,5105619349,"1,951.32",COLBURY HOUSE N/H [SB]
EMI - Nurs - OP East - Mainland,Chgs from Ind Provs,12/10/2010,5105619349,"1,951.32",COLBURY HOUSE N/H [SB]
EF - Nurs - OP East - Mainland,Chgs from Ind Provs,09/11/2010,5105625608,"1,951.32",COLBURY HOUSE N/H [SB]
EMI - Nurs - OP East - Mainland,Chgs from Ind Provs,09/11/2010,5105625608,"1,951.32",COLBURY HOUSE N/H [SB]
EF - Nurs - OP East - Mainland,Chgs from Ind Provs,07/12/2010,5105631311,"1,951.32",COLBURY HOUSE N/H [SB]
EMI - Nurs - OP East - Mainland,Chgs from Ind Provs,07/12/2010,5105631311,"1,951.32",COLBURY HOUSE N/H [SB]
Traffic Modelling,Cap Contractor Pmts,06/12/2010,5000115708,"9,720.00",COLIN BUCHANAN AND PARTNERS LTD
Data & Information Mgmt,Fixed Telephones,13/10/2010,5000106537,500.28,COLT TECHNOLOGY SERVICES
Departmental Admin/Support,Fixed Telephones,25/10/2010,5000108543,521.06,COLT TECHNOLOGY SERVICES
LPSA 1 Reward - Graffiti Project,Pay to Pvte Contract,12/10/2010,5000106338,"1,066.00",COMMUNITY CLEAN
LPSA 1 Reward - Graffiti Project,Pay to Pvte Contract,02/11/2010,5000110299,531.00,COMMUNITY CLEAN
Coroner,Pay to Pvte Contract,15/12/2010,5000117348,"2,200.00",COMPASS PSYCARE LTD
Coroner,Pay to Pvte Contract,15/12/2010,5000117348,750.00,COMPASS PSYCARE LTD
Medina Leisure Centre,Cons Cleaning Materi,23/11/2010,5000113937,"2,266.20",COMPLETE POOL CONTROLS LTD
The Heights,Cons Cleaning Materi,16/12/2010,5000117771,"1,701.00",COMPLETE POOL CONTROLS LTD
Fostering - LAC 0-16,Supp Looked After Ch,01/11/2010,5000110142,"1,292.10",CONTACT OPTIONS LTD
Fostering - LAC 0-16,Supp Looked After Ch,01/11/2010,5000110143,"1,276.00",CONTACT OPTIONS LTD
Fostering - LAC 0-16,Supp Looked After Ch,17/12/2010,5000117963,"2,175.55",CONTACT OPTIONS LTD
Provision Of Milk,Sch Catering Contrac,06/10/2010,5000105052,"2,721.94",COOL MILK AT SCHOOL LTD
Provision Of Milk,Sch Catering Contrac,03/11/2010,5000110490,"3,053.96",COOL MILK AT SCHOOL LTD
Provision Of Milk,Catering Purchases,08/12/2010,5000116125,"4,384.38",COOL MILK AT SCHOOL LTD
Provision Of Milk,Sch Catering Contrac,06/10/2010,5000105051,"4,708.60",COOL MILK LTD
Provision Of Milk,Sch Catering Contrac,03/11/2010,5000110491,"4,771.78",COOL MILK LTD
Provision Of Milk,Catering Purchases,08/12/2010,5000116123,"5,253.30",COOL MILK LTD
Aiming High for Disabled Children,Pay to Pvte Contract,25/11/2010,5000114468,"5,000.00",CORE CHILDCARE
Aiming High for Disabled Children,Pay to Pvte Contract,25/11/2010,5000114477,"2,083.35",CORE CHILDCARE
Aiming High for Disabled Children,Pay to Pvte Contract,25/11/2010,5000114476,"-5,000.00",CORE CHILDCARE
Aiming High for Disabled Children,Pay to Pvte Contract,13/12/2010,5000116761,"2,447.94",CORE CHILDCARE
Aiming High for Disabled Children,Pay to Pvte Contract,13/12/2010,5000116780,"-2,447.97",CORE CHILDCARE
Aiming High for Disabled Children,Pay to Pvte Contract,17/12/2010,5000117977,"2,083.35",CORE CHILDCARE
EF - Res - OP East,Chgs from Ind Provs,12/10/2010,5105619334,"1,892.24",CORNELIA HEIGHTS CARE HOME [SB]
EF - Res - OP East,Chgs from Ind Provs,12/10/2010,5105619334,"1,892.24",CORNELIA HEIGHTS CARE HOME [SB]
EF - Res - OP East,Chgs from Ind Provs,12/10/2010,5105619334,"1,536.92",CORNELIA HEIGHTS CARE HOME [SB]
EF - Res - OP East,Chgs from Ind Provs,12/10/2010,5105619334,"1,536.92",CORNELIA HEIGHTS CARE HOME [SB]
EF - Res - OP East,Chgs from Ind Provs,12/10/2010,5105619334,"1,536.92",CORNELIA HEIGHTS CARE HOME [SB]
EF - Res - OP East,Chgs from Ind Provs,12/10/2010,5105619334,"1,536.92",CORNELIA HEIGHTS CARE HOME [SB]
REDACTED PERSONAL DATA,Order Settlement,12/10/2010,5105619334,"1,892.24",CORNELIA HEIGHTS CARE HOME [SB]
EMI - Res - OP East,Chgs from Ind Provs,12/10/2010,5105619334,"1,892.24",CORNELIA HEIGHTS CARE HOME [SB]
EF - Res - OP East,Chgs from Ind Provs,22/10/2010,5000108389,"4,392.70",CORNELIA HEIGHTS CARE HOME [SB]
EF - Res - OP East,Chgs from Ind Provs,22/10/2010,5000108305,"2,579.83",CORNELIA HEIGHTS CARE HOME [SB]
EF - Res - OP East,Chgs from Ind Provs,22/10/2010,5000108393,"1,892.24",CORNELIA HEIGHTS CARE HOME [SB]
EF - Res - OP East,Chgs from Ind Provs,22/10/2010,5000108306,"1,536.92",CORNELIA HEIGHTS CARE HOME [SB]
EF - Res - OP East,Chgs from Ind Provs,09/11/2010,5105625593,"1,892.24",CORNELIA HEIGHTS CARE HOME [SB]
EF - Res - OP East,Chgs from Ind Provs,09/11/2010,5105625593,"1,892.24",CORNELIA HEIGHTS CARE HOME [SB]
EF - Res - OP East,Chgs from Ind Provs,09/11/2010,5105625593,"1,892.24",CORNELIA HEIGHTS CARE HOME [SB]
EF - Res - OP East,Chgs from Ind Provs,09/11/2010,5105625593,"1,536.92",CORNELIA HEIGHTS CARE HOME [SB]
EF - Res - OP East,Chgs from Ind Provs,09/11/2010,5105625593,"1,536.92",CORNELIA HEIGHTS CARE HOME [SB]
EF - Res - OP East,Chgs from Ind Provs,09/11/2010,5105625593,"1,536.92",CORNELIA HEIGHTS CARE HOME [SB]
EF - Res - OP East,Chgs from Ind Provs,09/11/2010,5105625593,"1,536.92",CORNELIA HEIGHTS CARE HOME [SB]
REDACTED PERSONAL DATA,Order Settlement,09/11/2010,5105625593,"1,892.24",CORNELIA HEIGHTS CARE HOME [SB]
EMI - Res - OP East,Chgs from Ind Provs,09/11/2010,5105625593,"1,892.24",CORNELIA HEIGHTS CARE HOME [SB]
EF - Res - OP East,Chgs from Ind Provs,15/11/2010,5000112424,"4,610.76",CORNELIA HEIGHTS CARE HOME [SB]
EF - Res - OP East,Chgs from Ind Provs,15/11/2010,5000112403,"1,536.92",CORNELIA HEIGHTS CARE HOME [SB]
EF - Res - OP East,Chgs from Ind Provs,07/12/2010,5105631296,"1,892.24",CORNELIA HEIGHTS CARE HOME [SB]
EF - Res - OP East,Chgs from Ind Provs,07/12/2010,5105631296,"1,892.24",CORNELIA HEIGHTS CARE HOME [SB]
EF - Res - OP East,Chgs from Ind Provs,07/12/2010,5105631296,"1,892.24",CORNELIA HEIGHTS CARE HOME [SB]
EF - Res - OP East,Chgs from Ind Provs,07/12/2010,5105631296,"1,536.92",CORNELIA HEIGHTS CARE HOME [SB]
EF - Res - OP East,Chgs from Ind Provs,07/12/2010,5105631296,"1,536.92",CORNELIA HEIGHTS CARE HOME [SB]
EF - Res - OP East,Chgs from Ind Provs,07/12/2010,5105631296,"1,536.92",CORNELIA HEIGHTS CARE HOME [SB]
EF - Res - OP East,Chgs from Ind Provs,07/12/2010,5105631296,"1,536.92",CORNELIA HEIGHTS CARE HOME [SB]
EF - Res - OP East,Chgs from Ind Provs,07/12/2010,5105631296,"1,536.92",CORNELIA HEIGHTS CARE HOME [SB]
EF - Res - OP East,Chgs from Ind Provs,07/12/2010,5105631296,"1,536.92",CORNELIA HEIGHTS CARE HOME [SB]
REDACTED PERSONAL DATA,Order Settlement,07/12/2010,5105631296,"1,892.24",CORNELIA HEIGHTS CARE HOME [SB]
EMI - Res - OP East,Chgs from Ind Provs,07/12/2010,5105631296,"1,892.24",CORNELIA HEIGHTS CARE HOME [SB]
EF - Res - OP East,Chgs from Ind Provs,12/10/2010,5105619332,"1,892.24",CORNELIA MANOR [SB]
EF - Res - OP East,Chgs from Ind Provs,12/10/2010,5105619332,"1,892.24",CORNELIA MANOR [SB]
EF - Res - OP East,Chgs from Ind Provs,12/10/2010,5105619332,"1,536.92",CORNELIA MANOR [SB]
EF - Res - OP East,Chgs from Ind Provs,12/10/2010,5105619332,"1,536.92",CORNELIA MANOR [SB]
EF - Res - OP East,Chgs from Ind Provs,12/10/2010,5105619332,"1,536.92",CORNELIA MANOR [SB]
EF - Res - OP East,Chgs from Ind Provs,12/10/2010,5105619332,"1,536.92",CORNELIA MANOR [SB]
EF - Res - OP East,Chgs from Ind Provs,12/10/2010,5105619332,"1,536.92",CORNELIA MANOR [SB]
EF - Res - OP East,Chgs from Ind Provs,12/10/2010,5105619332,"1,536.92",CORNELIA MANOR [SB]
EF - Res - OP East,Chgs from Ind Provs,12/10/2010,5105619332,"1,536.92",CORNELIA MANOR [SB]
EF - Res - OP East,Chgs from Ind Provs,12/10/2010,5105619332,"1,536.92",CORNELIA MANOR [SB]
EF - Res - OP East,Chgs from Ind Provs,12/10/2010,5105619332,"1,536.92",CORNELIA MANOR [SB]
EMI - Res - OP East,Chgs from Ind Provs,12/10/2010,5105619332,"1,892.24",CORNELIA MANOR [SB]
EMI - Res - OP East,Chgs from Ind Provs,12/10/2010,5105619332,"1,536.92",CORNELIA MANOR [SB]
REDACTED PERSONAL DATA,Order Settlement,12/10/2010,5105619332,"1,892.24",CORNELIA MANOR [SB]
REDACTED PERSONAL DATA,Order Settlement,12/10/2010,5105619332,"1,536.92",CORNELIA MANOR [SB]
Dementia Residential Care,Chgs from Ind Provs,27/10/2010,5000109389,"3,565.00",CORNELIA MANOR [SB]
EF - Res - OP East,Chgs from Ind Provs,27/10/2010,5000109384,"2,579.83",CORNELIA MANOR [SB]
EF - Res - OP East,Chgs from Ind Provs,27/10/2010,5000109387,823.35,CORNELIA MANOR [SB]
REDACTED PERSONAL DATA,Order Settlement,04/11/2010,1700033491,-768.46,CORNELIA MANOR [SB]
Dementia Residential Care,Chgs from Ind Provs,09/11/2010,5105625591,"1,610.00",CORNELIA MANOR [SB]
EF - Res - OP East,Chgs from Ind Provs,09/11/2010,5105625591,"1,892.24",CORNELIA MANOR [SB]
EF - Res - OP East,Chgs from Ind Provs,09/11/2010,5105625591,"1,892.24",CORNELIA MANOR [SB]
EF - Res - OP East,Chgs from Ind Provs,09/11/2010,5105625591,"1,536.92",CORNELIA MANOR [SB]
EF - Res - OP East,Chgs from Ind Provs,09/11/2010,5105625591,"1,536.92",CORNELIA MANOR [SB]
EF - Res - OP East,Chgs from Ind Provs,09/11/2010,5105625591,"1,536.92",CORNELIA MANOR [SB]
EF - Res - OP East,Chgs from Ind Provs,09/11/2010,5105625591,"1,536.92",CORNELIA MANOR [SB]
EF - Res - OP East,Chgs from Ind Provs,09/11/2010,5105625591,"1,536.92",CORNELIA MANOR [SB]
EF - Res - OP East,Chgs from Ind Provs,09/11/2010,5105625591,"1,536.92",CORNELIA MANOR [SB]
EF - Res - OP East,Chgs from Ind Provs,09/11/2010,5105625591,"1,536.92",CORNELIA MANOR [SB]
EF - Res - OP East,Chgs from Ind Provs,09/11/2010,5105625591,"1,536.92",CORNELIA MANOR [SB]
EF - Res - OP East,Chgs from Ind Provs,09/11/2010,5105625591,"1,536.92",CORNELIA MANOR [SB]
EMI - Res - OP East,Chgs from Ind Provs,09/11/2010,5105625591,"1,892.24",CORNELIA MANOR [SB]
EMI - Res - OP East,Chgs from Ind Provs,09/11/2010,5105625591,"1,536.92",CORNELIA MANOR [SB]
REDACTED PERSONAL DATA,Order Settlement,09/11/2010,5105625591,"1,892.24",CORNELIA MANOR [SB]
REDACTED PERSONAL DATA,Order Settlement,09/11/2010,5105625591,"1,536.92",CORNELIA MANOR [SB]
Dementia Residential Care,Chgs from Ind Provs,07/12/2010,5105631294,"1,610.00",CORNELIA MANOR [SB]
EF - Res - OP East,Chgs from Ind Provs,07/12/2010,5105631294,"1,892.24",CORNELIA MANOR [SB]
EF - Res - OP East,Chgs from Ind Provs,07/12/2010,5105631294,"1,892.24",CORNELIA MANOR [SB]
EF - Res - OP East,Chgs from Ind Provs,07/12/2010,5105631294,"1,536.92",CORNELIA MANOR [SB]
EF - Res - OP East,Chgs from Ind Provs,07/12/2010,5105631294,"1,536.92",CORNELIA MANOR [SB]
EF - Res - OP East,Chgs from Ind Provs,07/12/2010,5105631294,"1,536.92",CORNELIA MANOR [SB]
EF - Res - OP East,Chgs from Ind Provs,07/12/2010,5105631294,"1,536.92",CORNELIA MANOR [SB]
EF - Res - OP East,Chgs from Ind Provs,07/12/2010,5105631294,"1,536.92",CORNELIA MANOR [SB]
EF - Res - OP East,Chgs from Ind Provs,07/12/2010,5105631294,"1,536.92",CORNELIA MANOR [SB]
EF - Res - OP East,Chgs from Ind Provs,07/12/2010,5105631294,"1,536.92",CORNELIA MANOR [SB]
EF - Res - OP East,Chgs from Ind Provs,07/12/2010,5105631294,"1,536.92",CORNELIA MANOR [SB]
EF - Res - OP East,Chgs from Ind Provs,07/12/2010,5105631294,"1,536.92",CORNELIA MANOR [SB]
EF - Res - OP East,Chgs from Ind Provs,07/12/2010,5105631294,"1,536.92",CORNELIA MANOR [SB]
EMI - Res - OP East,Chgs from Ind Provs,07/12/2010,5105631294,"1,892.24",CORNELIA MANOR [SB]
EMI - Res - OP East,Chgs from Ind Provs,07/12/2010,5105631294,"1,536.92",CORNELIA MANOR [SB]
REDACTED PERSONAL DATA,Order Settlement,07/12/2010,5105631294,"1,892.24",CORNELIA MANOR [SB]
REDACTED PERSONAL DATA,Order Settlement,07/12/2010,5105631294,"1,536.92",CORNELIA MANOR [SB]
EF - Res - OP East,Chgs from Ind Provs,09/12/2010,5000116333,658.68,CORNELIA MANOR [SB]
Dementia Residential Care,Chgs from Ind Provs,10/12/2010,5000116568,"2,645.00",CORNELIA MANOR [SB]
Branstone Farm Studies Centre,General Materials,06/10/2010,5000105181,548.00,COUNTRYWIDE FARMERS PLC
Children's Services Strategic Management,B/in Prof Svs - Curr,14/12/2010,5000117097,"10,800.00",COURTWOOD SERVICES LTD
Children's Services Strategic Management,B/in Prof Svs - Curr,14/12/2010,5000117083,"8,400.00",COURTWOOD SERVICES LTD
Children's Services Strategic Management,B/in Prof Svs - Curr,14/12/2010,5000117080,"8,100.00",COURTWOOD SERVICES LTD
Children's Services Strategic Management,B/in Prof Svs - Curr,14/12/2010,5000117073,"3,600.00",COURTWOOD SERVICES LTD
SSEYCCG - WORKFORCE DEVELOPME,Train and Conference,13/12/2010,5000116928,634.80,COVENTRY CITY COUNCIL
Community Equip Store Mezzanine Floor,Ext Design & Superv,06/10/2010,5000105120,757.14,COWAN CONSULTANCY LTD
Highway Structures Capital,Cap Contractor Pmts,08/10/2010,5000105634,"1,495.00",COWAN CONSULTANCY LTD
Education Fair Funding Primary Schools,Eligible Supp and Sv,20/10/2010,5000107952,"1,362.02",COWAN CONSULTANCY LTD
On-Street Parking Operations,Operational Equipmen,09/11/2010,5000111428,"1,337.50",COWES CANVAS CO
Star Awards,Catering Purchases,03/11/2010,5000110625,"1,371.00",COWES YACHT HAVEN LTD
SSEYCCG - WORKFORCE DEVELOPME,Hire of facilities,16/12/2010,5000117774,"2,125.00",COWES YACHT HAVEN LTD
Agency Placements,Pay to Vol and Other,17/12/2010,5105634207,"31,645.83",COXLEASE SCHOOL
Agency Placements,Pay to Vol and Other,17/12/2010,5105634213,"31,645.83",COXLEASE SCHOOL
Pupils with statements - Non-Maint Schs,Pay to Vol and Other,17/12/2010,5105634207,"31,645.83",COXLEASE SCHOOL
Pupils with statements - Non-Maint Schs,Pay to Vol and Other,17/12/2010,5105634213,"31,645.83",COXLEASE SCHOOL
DAT Team - Adult Treatment,Professional Service,21/10/2010,5000108117,"60,390.75",CRANSTOUN DRUG SERVICES
Drug Interventions Programme (DIP),Professional Service,21/10/2010,5000108117,"30,353.25",CRANSTOUN DRUG SERVICES
Drugs / Alcohol,Pay to Pvte Contract,21/10/2010,5000108117,"7,500.00",CRANSTOUN DRUG SERVICES
DAT Team - Young People,Cons Cleaning Materi,02/11/2010,5000110278,870.00,CRANSTOUN DRUG SERVICES
DAT Team - Adult Treatment,Professional Service,16/12/2010,5000117846,"60,390.75",CRANSTOUN DRUG SERVICES
Drug Interventions Programme (DIP),Professional Service,16/12/2010,5000117846,"30,353.25",CRANSTOUN DRUG SERVICES
Drugs / Alcohol,Pay to Pvte Contract,16/12/2010,5000117846,"7,500.00",CRANSTOUN DRUG SERVICES
Parking Machines /System,Cap Contractor Pmts,12/10/2010,5000106274,"2,000.00",CREDITCALL LTD
Fostering,Interview & recruit,05/10/2010,5105618132,612.47,CRIMINAL RECORDS BUREAU
Human Resources,Interview & recruit,05/10/2010,5105618132,717.42,CRIMINAL RECORDS BUREAU
Fostering,Interview & recruit,16/11/2010,5105627421,972.00,CRIMINAL RECORDS BUREAU
Human Resources,Interview & recruit,16/11/2010,5105627421,"1,835.14",CRIMINAL RECORDS BUREAU
Licensing Services,Interview & recruit,16/11/2010,5105627421,684.29,CRIMINAL RECORDS BUREAU
Fostering,Interview & recruit,14/12/2010,5105633198,538.46,CRIMINAL RECORDS BUREAU
Human Resources,Interview & recruit,14/12/2010,5105633198,"1,481.48",CRIMINAL RECORDS BUREAU
Fostering,Interview & recruit,23/12/2010,5105635605,684.43,CRIMINAL RECORDS BUREAU
Human Resources,Interview & recruit,23/12/2010,5105635605,"1,513.51",CRIMINAL RECORDS BUREAU
Licensing Services,Interview & recruit,23/12/2010,5105635605,575.06,CRIMINAL RECORDS BUREAU
Homelessness Prevention,Accom Csts Serv Usrs,13/10/2010,1900240594,775.00,CROCKER LETTINGS
Homelessness,Accomm Costs - Lease,01/10/2010,5105617668,769.43,CROCKER LETTINGS [HZ]
Homelessness,Accomm Costs - Lease,01/10/2010,5105617663,746.81,CROCKER LETTINGS [HZ]
Homelessness,Accomm Costs - Lease,01/10/2010,5105617664,746.81,CROCKER LETTINGS [HZ]
Homelessness,Accomm Costs - Lease,01/10/2010,5105617665,746.81,CROCKER LETTINGS [HZ]
Homelessness,Accomm Costs - Lease,01/10/2010,5105617666,746.81,CROCKER LETTINGS [HZ]
Homelessness,Accomm Costs - Lease,01/10/2010,5105617669,746.81,CROCKER LETTINGS [HZ]
Homelessness,Accomm Costs - Lease,01/10/2010,5105617670,746.81,CROCKER LETTINGS [HZ]
Homelessness,Accomm Costs - Lease,01/10/2010,5105617671,746.81,CROCKER LETTINGS [HZ]
Homelessness,Accomm Costs - Lease,01/10/2010,5105617672,746.81,CROCKER LETTINGS [HZ]
Homelessness,Accomm Costs - Lease,01/10/2010,5105617673,746.81,CROCKER LETTINGS [HZ]
Homelessness,Accomm Costs - Lease,01/10/2010,5105617674,746.81,CROCKER LETTINGS [HZ]
Homelessness,Accomm Costs - Lease,01/10/2010,5105617675,746.81,CROCKER LETTINGS [HZ]
Homelessness,Accomm Costs - Lease,01/10/2010,5105617676,746.81,CROCKER LETTINGS [HZ]
Homelessness,Accomm Costs - Lease,01/10/2010,5105617677,746.81,CROCKER LETTINGS [HZ]
Homelessness,Accomm Costs - Lease,01/10/2010,5105617678,746.81,CROCKER LETTINGS [HZ]
Homelessness,Accomm Costs - Lease,01/10/2010,5105617679,746.81,CROCKER LETTINGS [HZ]
Homelessness,Accomm Costs - Lease,01/10/2010,5105617667,588.38,CROCKER LETTINGS [HZ]
Homelessness,Accomm Costs - Lease,01/10/2010,5105617680,588.38,CROCKER LETTINGS [HZ]
Homelessness,Accomm Costs - Lease,01/10/2010,5105617681,588.38,CROCKER LETTINGS [HZ]
Homelessness,Accomm Costs - Lease,01/10/2010,5105617682,588.38,CROCKER LETTINGS [HZ]
Homelessness,Accomm Costs - Lease,01/10/2010,5105617683,588.38,CROCKER LETTINGS [HZ]
Homelessness,Accomm Costs - Lease,01/10/2010,5105617684,588.38,CROCKER LETTINGS [HZ]
Homelessness,Accomm Costs - Lease,01/11/2010,5105623984,769.43,CROCKER LETTINGS [HZ]
Homelessness,Accomm Costs - Lease,01/11/2010,5105623979,746.81,CROCKER LETTINGS [HZ]
Homelessness,Accomm Costs - Lease,01/11/2010,5105623980,746.81,CROCKER LETTINGS [HZ]
Homelessness,Accomm Costs - Lease,01/11/2010,5105623981,746.81,CROCKER LETTINGS [HZ]
Homelessness,Accomm Costs - Lease,01/11/2010,5105623982,746.81,CROCKER LETTINGS [HZ]
Homelessness,Accomm Costs - Lease,01/11/2010,5105623985,746.81,CROCKER LETTINGS [HZ]
Homelessness,Accomm Costs - Lease,01/11/2010,5105623986,746.81,CROCKER LETTINGS [HZ]
Homelessness,Accomm Costs - Lease,01/11/2010,5105623987,746.81,CROCKER LETTINGS [HZ]
Homelessness,Accomm Costs - Lease,01/11/2010,5105623988,746.81,CROCKER LETTINGS [HZ]
Homelessness,Accomm Costs - Lease,01/11/2010,5105623989,746.81,CROCKER LETTINGS [HZ]
Homelessness,Accomm Costs - Lease,01/11/2010,5105623990,746.81,CROCKER LETTINGS [HZ]
Homelessness,Accomm Costs - Lease,01/11/2010,5105623991,746.81,CROCKER LETTINGS [HZ]
Homelessness,Accomm Costs - Lease,01/11/2010,5105623992,746.81,CROCKER LETTINGS [HZ]
Homelessness,Accomm Costs - Lease,01/11/2010,5105623993,746.81,CROCKER LETTINGS [HZ]
Homelessness,Accomm Costs - Lease,01/11/2010,5105623994,746.81,CROCKER LETTINGS [HZ]
Homelessness,Accomm Costs - Lease,01/11/2010,5105623995,746.81,CROCKER LETTINGS [HZ]
Homelessness,Accomm Costs - Lease,01/11/2010,5105623983,588.38,CROCKER LETTINGS [HZ]
Homelessness,Accomm Costs - Lease,01/11/2010,5105623996,588.38,CROCKER LETTINGS [HZ]
Homelessness,Accomm Costs - Lease,01/11/2010,5105623997,588.38,CROCKER LETTINGS [HZ]
Homelessness,Accomm Costs - Lease,01/11/2010,5105623998,588.38,CROCKER LETTINGS [HZ]
Homelessness,Accomm Costs - Lease,01/11/2010,5105623999,588.38,CROCKER LETTINGS [HZ]
Homelessness,Accomm Costs - Lease,01/11/2010,5105624000,588.38,CROCKER LETTINGS [HZ]
Homelessness,Accomm Costs - Lease,01/12/2010,5105630230,769.43,CROCKER LETTINGS [HZ]
Homelessness,Accomm Costs - Lease,01/12/2010,5105630230,746.81,CROCKER LETTINGS [HZ]
Homelessness,Accomm Costs - Lease,01/12/2010,5105630230,746.81,CROCKER LETTINGS [HZ]
Homelessness,Accomm Costs - Lease,01/12/2010,5105630230,746.81,CROCKER LETTINGS [HZ]
Homelessness,Accomm Costs - Lease,01/12/2010,5105630230,746.81,CROCKER LETTINGS [HZ]
Homelessness,Accomm Costs - Lease,01/12/2010,5105630230,746.81,CROCKER LETTINGS [HZ]
Homelessness,Accomm Costs - Lease,01/12/2010,5105630230,746.81,CROCKER LETTINGS [HZ]
Homelessness,Accomm Costs - Lease,01/12/2010,5105630230,746.81,CROCKER LETTINGS [HZ]
Homelessness,Accomm Costs - Lease,01/12/2010,5105630230,746.81,CROCKER LETTINGS [HZ]
Homelessness,Accomm Costs - Lease,01/12/2010,5105630230,746.81,CROCKER LETTINGS [HZ]
Homelessness,Accomm Costs - Lease,01/12/2010,5105630230,746.81,CROCKER LETTINGS [HZ]
Homelessness,Accomm Costs - Lease,01/12/2010,5105630230,746.81,CROCKER LETTINGS [HZ]
Homelessness,Accomm Costs - Lease,01/12/2010,5105630230,746.81,CROCKER LETTINGS [HZ]
Homelessness,Accomm Costs - Lease,01/12/2010,5105630230,746.81,CROCKER LETTINGS [HZ]
Homelessness,Accomm Costs - Lease,01/12/2010,5105630230,746.81,CROCKER LETTINGS [HZ]
Homelessness,Accomm Costs - Lease,01/12/2010,5105630230,746.81,CROCKER LETTINGS [HZ]
Homelessness,Accomm Costs - Lease,01/12/2010,5105630230,588.38,CROCKER LETTINGS [HZ]
Homelessness,Accomm Costs - Lease,01/12/2010,5105630230,588.38,CROCKER LETTINGS [HZ]
Homelessness,Accomm Costs - Lease,01/12/2010,5105630230,588.38,CROCKER LETTINGS [HZ]
Homelessness,Accomm Costs - Lease,01/12/2010,5105630230,588.38,CROCKER LETTINGS [HZ]
Homelessness,Accomm Costs - Lease,01/12/2010,5105630230,588.38,CROCKER LETTINGS [HZ]
Homelessness,Accomm Costs - Lease,01/12/2010,5105630230,588.38,CROCKER LETTINGS [HZ]
SP Homelessness,Pay to Pvte Contract,28/10/2010,5000109417,"3,960.00",CROSS KEYS SUPPORT GROUP [SP]
SP Homelessness,Pay to Pvte Contract,25/11/2010,5000114299,"3,503.57",CROSS KEYS SUPPORT GROUP [SP]
SP Homelessness,Pay to Pvte Contract,23/12/2010,5000119175,"4,403.58",CROSS KEYS SUPPORT GROUP [SP]
School Reorganisation Consultation Costs,Printing Costs,04/10/2010,5000104606,922.00,CROSSPRINT LTD
Print Unit,Printing Costs,13/10/2010,5000106368,725.00,CROSSPRINT LTD
A.O.N.B.,Printing Costs,19/10/2010,5000107526,997.00,CROSSPRINT LTD
Coast Protection,Printing Costs,21/10/2010,5000108153,"3,500.00",CROSSPRINT LTD
A.O.N.B.,Printing Costs,05/11/2010,5000111127,"5,220.00",CROSSPRINT LTD
Dinosaur Isle Museum (Sandown Geology),Printing Costs,08/12/2010,5000116110,"1,422.00",CROSSPRINT LTD
Aiming High for Disabled Children,Printing Costs,09/12/2010,5000116508,608.00,CROSSPRINT LTD
Coast Protection,Printing Costs,10/12/2010,5000116604,"-3,500.00",CROSSPRINT LTD
Print Unit,Printing Costs,15/12/2010,5000117589,725.00,CROSSPRINT LTD
Street Lighting RC Wks,Order Settlement,08/11/2010,5000111158,978.15,CU PHOSCO LIGHTING
Provision Of Meals,Operational Equipmen,16/11/2010,5000112818,"9,835.00",CUNNINGHAMS
Public Con - General (was Attendance),Prop Svs-Planned Mtc,05/10/2010,5000104863,761.76,D A R E S LTD
Public Con - General (was Attendance),Prop Svs-Planned Mtc,05/10/2010,5000104858,501.30,D A R E S LTD
Public Con - General (was Attendance),Prop Svs-Planned Mtc,10/11/2010,5000111630,856.98,D A R E S LTD
Housing Renewal Assistance,Capital Grants,23/12/2010,1900278127,925.32,D CHALLIS PROPERTY SERVICES LTD
Primary Commissioned Activities,B/in Prof Svs - Curr,01/11/2010,5000110129,"3,141.47",D H EDUCATION ASSOCIATES LTD
Primary School Improvement Partners,B/in Prof Svs - Curr,01/11/2010,5000110130,"10,400.00",D H EDUCATION ASSOCIATES LTD
Homelessness,Accomm Costs - B&B,01/10/2010,5105617571,"5,505.50",DALTON ENTERPRISES [HZ]
Homelessness,Accomm Costs - B&B,01/11/2010,5105623886,"5,505.50",DALTON ENTERPRISES [HZ]
Homelessness,Accomm Costs - B&B,01/12/2010,5105630193,"5,505.50",DALTON ENTERPRISES [HZ]
Homelessness,Accomm Costs - Lease,01/10/2010,5105617581,765.48,DALTON PROPERTY LTD [HZ]
Homelessness,Accomm Costs - Lease,01/10/2010,5105617576,730.69,DALTON PROPERTY LTD [HZ]
Homelessness,Accomm Costs - Lease,01/10/2010,5105617579,672.66,DALTON PROPERTY LTD [HZ]
Homelessness,Accomm Costs - Lease,01/10/2010,5105617580,672.66,DALTON PROPERTY LTD [HZ]
Homelessness,Accomm Costs - Lease,01/10/2010,5105617583,672.66,DALTON PROPERTY LTD [HZ]
Homelessness,Accomm Costs - Lease,01/10/2010,5105617582,626.30,DALTON PROPERTY LTD [HZ]
Homelessness,Accomm Costs - Lease,01/10/2010,5105617577,579.89,DALTON PROPERTY LTD [HZ]
Homelessness,Accomm Costs - Lease,01/10/2010,5105617578,579.89,DALTON PROPERTY LTD [HZ]
Homelessness,Accomm Costs - Lease,01/11/2010,5105623896,765.48,DALTON PROPERTY LTD [HZ]
Homelessness,Accomm Costs - Lease,01/11/2010,5105623891,730.69,DALTON PROPERTY LTD [HZ]
Homelessness,Accomm Costs - Lease,01/11/2010,5105623894,672.66,DALTON PROPERTY LTD [HZ]
Homelessness,Accomm Costs - Lease,01/11/2010,5105623895,672.66,DALTON PROPERTY LTD [HZ]
Homelessness,Accomm Costs - Lease,01/11/2010,5105623898,672.66,DALTON PROPERTY LTD [HZ]
Homelessness,Accomm Costs - Lease,01/11/2010,5105623897,626.30,DALTON PROPERTY LTD [HZ]
Homelessness,Accomm Costs - Lease,01/11/2010,5105623892,579.89,DALTON PROPERTY LTD [HZ]
Homelessness,Accomm Costs - Lease,01/11/2010,5105623893,579.89,DALTON PROPERTY LTD [HZ]
Homelessness,Accomm Costs - Lease,01/12/2010,5105630196,765.48,DALTON PROPERTY LTD [HZ]
Homelessness,Accomm Costs - Lease,01/12/2010,5105630196,730.69,DALTON PROPERTY LTD [HZ]
Homelessness,Accomm Costs - Lease,01/12/2010,5105630196,672.66,DALTON PROPERTY LTD [HZ]
Homelessness,Accomm Costs - Lease,01/12/2010,5105630196,672.66,DALTON PROPERTY LTD [HZ]
Homelessness,Accomm Costs - Lease,01/12/2010,5105630196,672.66,DALTON PROPERTY LTD [HZ]
Homelessness,Accomm Costs - Lease,01/12/2010,5105630196,626.30,DALTON PROPERTY LTD [HZ]
Homelessness,Accomm Costs - Lease,01/12/2010,5105630196,579.89,DALTON PROPERTY LTD [HZ]
Homelessness,Accomm Costs - Lease,01/12/2010,5105630196,579.89,DALTON PROPERTY LTD [HZ]
Fire Capital Projects,Ext Design & Superv,28/10/2010,5000109669,700.00,DANIELLS HARRISON CHART.SURVEYORS
Strategic Projects,ICT H/ware & S/ware,01/10/2010,5000104500,"9,817.12",DATA INTEGRATION LTD
Strategic Projects,ICT H/ware & S/ware,01/10/2010,5000104500,"1,231.56",DATA INTEGRATION LTD
Strategic Projects,ICT H/ware & S/ware,01/10/2010,5000104500,"1,146.24",DATA INTEGRATION LTD
Strategic Projects,ICT H/ware & S/ware,01/10/2010,5000104500,864.32,DATA INTEGRATION LTD
Strategic Projects,ICT H/ware & S/ware,04/10/2010,5000104734,"-9,817.12",DATA INTEGRATION LTD
Strategic Projects,ICT H/ware & S/ware,15/10/2010,5000106923,"21,136.00",DATA INTEGRATION LTD
Strategic Projects,ICT H/ware & S/ware,15/10/2010,5000106923,"14,640.00",DATA INTEGRATION LTD
Strategic Projects,ICT H/ware & S/ware,15/10/2010,5000106930,"13,210.00",DATA INTEGRATION LTD
Strategic Projects,ICT H/ware & S/ware,15/10/2010,5000106928,"-21,136.00",DATA INTEGRATION LTD
Strategic Projects,ICT H/ware & S/ware,20/10/2010,5000107833,"9,817.12",DATA INTEGRATION LTD
Strategic Projects,ICT H/ware & S/ware,21/10/2010,5000108164,"5,284.00",DATA INTEGRATION LTD
Strategic Projects,ICT H/ware & S/ware,21/10/2010,5000108162,"4,060.00",DATA INTEGRATION LTD
Strategic Projects,ICT H/ware & S/ware,21/10/2010,5000108160,"1,452.00",DATA INTEGRATION LTD
Strategic Projects,ICT H/ware & S/ware,21/10/2010,5000108152,"-2,642.00",DATA INTEGRATION LTD
Strategic Projects,ICT H/ware & S/ware,01/11/2010,5000109942,"5,284.00",DATA INTEGRATION LTD
Strategic Projects,ICT H/ware & S/ware,01/11/2010,5000109940,"2,436.00",DATA INTEGRATION LTD
Strategic Projects,ICT H/ware & S/ware,01/11/2010,5000109939,"2,112.00",DATA INTEGRATION LTD
Newport Summerfields Devolved Capital,"Pl, Equip & Furn - C",05/10/2010,1900238803,"1,893.00",DATASWIFT NETWORK SERVICES LIMITED
School Reorganisation Consultation Costs,ICT H/ware & S/ware,07/10/2010,5000105370,"1,260.00",DATASWIFT NETWORK SERVICES LIMITED
School Reorganisation Consultation Costs,ICT H/ware & S/ware,07/10/2010,5000105370,"1,260.00",DATASWIFT NETWORK SERVICES LIMITED
School Reorganisation Consultation Costs,ICT H/ware & S/ware,07/10/2010,5000105370,"1,125.00",DATASWIFT NETWORK SERVICES LIMITED
Hunnyhill Primary Devolved Capital,"Pl, Equip & Furn - C",13/10/2010,1900244965,585.00,DATASWIFT NETWORK SERVICES LIMITED
Thompson House Tuition Centre,"Pl, Equip & Furn - C",18/10/2010,5000107360,995.00,DATASWIFT NETWORK SERVICES LIMITED
School Reorganisation Consultation Costs,ICT H/ware & S/ware,18/11/2010,5000113278,"1,489.70",DATASWIFT NETWORK SERVICES LIMITED
Sandwn St Johns Primary Devolved Capital,"Pl, Equip & Furn - C",29/11/2010,1900265613,"1,188.75",DATASWIFT NETWORK SERVICES LIMITED
Sandown Primary Devolved Capital,"Pl, Equip & Furn - C",30/11/2010,1900265679,"2,170.00",DATASWIFT NETWORK SERVICES LIMITED
Ventnor St Boniface Devolved Capital,"Pl, Equip & Furn - C",30/11/2010,1900265678,"1,250.00",DATASWIFT NETWORK SERVICES LIMITED
Ryde Dover Park Primary Devolved Capital,"Pl, Equip & Furn - C",08/12/2010,1900271676,"2,500.00",DATASWIFT NETWORK SERVICES LIMITED
Ryde Dover Park Primary Devolved Capital,"Pl, Equip & Furn - C",21/12/2010,1900277666,"1,000.00",DATASWIFT NETWORK SERVICES LIMITED
Ryde Dover Park Primary Devolved Capital,"Pl, Equip & Furn - C",21/12/2010,1900277663,924.65,DATASWIFT NETWORK SERVICES LIMITED
Ryde Dover Park Primary Devolved Capital,"Pl, Equip & Furn - C",21/12/2010,1900277668,598.50,DATASWIFT NETWORK SERVICES LIMITED
Heating and Loft insulation,Capital Grants,13/12/2010,1900272119,"2,934.00",DATAWARM (IOW) LTD
Director of Resources,Agency staff,05/10/2010,5000104971,"16,275.00",DAVE BURBAGE CONSULTING LTD[SB]
Director of Resources,Agency staff,02/11/2010,5000110366,"14,725.00",DAVE BURBAGE CONSULTING LTD[SB]
Director of Resources,Agency staff,01/12/2010,5000115334,"13,562.50",DAVE BURBAGE CONSULTING LTD[SB]
Director of Resources,Agency staff,22/12/2010,5000118844,"11,625.00",DAVE BURBAGE CONSULTING LTD[SB]
Heating and Loft insulation,Capital Grants,12/11/2010,1900259265,"4,548.43",DAVID LANGDON CHARTERED BUILDING CO
Disabled Facilities Grants,Capital Grants,25/11/2010,1900265206,"4,460.23",DAVID LANGDON CHARTERED BUILDING CO
Disabled Facilities Grants,Capital Grants,25/11/2010,1900265210,"3,343.97",DAVID LANGDON CHARTERED BUILDING CO
WIGHTBUS Trading Account,Vehicle Hire Externa,20/10/2010,5000108037,"6,991.20",DAWSON RENTALS BUS & COACH LTD
WIGHTBUS Trading Account,Vehicle Hire Externa,20/10/2010,5000108038,"1,995.46",DAWSON RENTALS BUS & COACH LTD
WIGHTBUS Trading Account,Vehicle Hire Externa,20/10/2010,5000108037,"1,914.18",DAWSON RENTALS BUS & COACH LTD
WIGHTBUS Trading Account,Vehicle Hire Externa,20/10/2010,5000108038,"1,859.77",DAWSON RENTALS BUS & COACH LTD
WIGHTBUS Trading Account,Vehicle Hire Externa,20/10/2010,5000108038,"1,259.74",DAWSON RENTALS BUS & COACH LTD
WIGHTBUS Trading Account,Vehicle Hire Externa,20/10/2010,5000108038,"1,259.74",DAWSON RENTALS BUS & COACH LTD
WIGHTBUS Trading Account,Vehicle Hire Externa,20/10/2010,5000108038,"1,259.74",DAWSON RENTALS BUS & COACH LTD
WIGHTBUS Trading Account,Vehicle Hire Externa,20/10/2010,5000108038,"1,259.74",DAWSON RENTALS BUS & COACH LTD
WIGHTBUS Trading Account,Vehicle Hire Externa,20/10/2010,5000108038,"1,259.74",DAWSON RENTALS BUS & COACH LTD
WIGHTBUS Trading Account,Vehicle Hire Externa,20/10/2010,5000108038,"1,188.50",DAWSON RENTALS BUS & COACH LTD
WIGHTBUS Trading Account,Vehicle Hire Externa,27/10/2010,5000109165,"1,995.46",DAWSON RENTALS BUS & COACH LTD
WIGHTBUS Trading Account,Vehicle Hire Externa,27/10/2010,5000109165,"1,859.77",DAWSON RENTALS BUS & COACH LTD
WIGHTBUS Trading Account,Vehicle Hire Externa,27/10/2010,5000109165,"1,259.74",DAWSON RENTALS BUS & COACH LTD
WIGHTBUS Trading Account,Vehicle Hire Externa,27/10/2010,5000109165,"1,259.74",DAWSON RENTALS BUS & COACH LTD
WIGHTBUS Trading Account,Vehicle Hire Externa,27/10/2010,5000109165,"1,259.74",DAWSON RENTALS BUS & COACH LTD
WIGHTBUS Trading Account,Vehicle Hire Externa,27/10/2010,5000109165,"1,259.74",DAWSON RENTALS BUS & COACH LTD
WIGHTBUS Trading Account,Vehicle Hire Externa,27/10/2010,5000109165,"1,259.74",DAWSON RENTALS BUS & COACH LTD
WIGHTBUS Trading Account,Vehicle Hire Externa,27/10/2010,5000109165,"1,188.50",DAWSON RENTALS BUS & COACH LTD
WIGHTBUS Trading Account,Vehicle Hire Externa,23/11/2010,5000114100,"1,995.46",DAWSON RENTALS BUS & COACH LTD
WIGHTBUS Trading Account,Vehicle Hire Externa,23/11/2010,5000114100,"1,859.77",DAWSON RENTALS BUS & COACH LTD
WIGHTBUS Trading Account,Vehicle Hire Externa,23/11/2010,5000114100,"1,259.74",DAWSON RENTALS BUS & COACH LTD
WIGHTBUS Trading Account,Vehicle Hire Externa,23/11/2010,5000114100,"1,259.74",DAWSON RENTALS BUS & COACH LTD
WIGHTBUS Trading Account,Vehicle Hire Externa,23/11/2010,5000114100,"1,259.74",DAWSON RENTALS BUS & COACH LTD
WIGHTBUS Trading Account,Vehicle Hire Externa,23/11/2010,5000114100,"1,259.74",DAWSON RENTALS BUS & COACH LTD
WIGHTBUS Trading Account,Vehicle Hire Externa,23/11/2010,5000114100,"1,259.74",DAWSON RENTALS BUS & COACH LTD
WIGHTBUS Trading Account,Vehicle Hire Externa,23/11/2010,5000114100,"1,188.50",DAWSON RENTALS BUS & COACH LTD
WIGHTBUS Trading Account,Vehicle Hire Externa,13/12/2010,5000116845,"1,995.46",DAWSON RENTALS BUS & COACH LTD
WIGHTBUS Trading Account,Vehicle Hire Externa,13/12/2010,5000116845,"1,859.77",DAWSON RENTALS BUS & COACH LTD
WIGHTBUS Trading Account,Vehicle Hire Externa,13/12/2010,5000116845,"1,259.74",DAWSON RENTALS BUS & COACH LTD
WIGHTBUS Trading Account,Vehicle Hire Externa,13/12/2010,5000116845,"1,259.74",DAWSON RENTALS BUS & COACH LTD
WIGHTBUS Trading Account,Vehicle Hire Externa,13/12/2010,5000116845,"1,259.74",DAWSON RENTALS BUS & COACH LTD
WIGHTBUS Trading Account,Vehicle Hire Externa,13/12/2010,5000116845,"1,259.74",DAWSON RENTALS BUS & COACH LTD
WIGHTBUS Trading Account,Vehicle Hire Externa,13/12/2010,5000116845,"1,259.74",DAWSON RENTALS BUS & COACH LTD
WIGHTBUS Trading Account,Vehicle Hire Externa,13/12/2010,5000116845,"1,188.50",DAWSON RENTALS BUS & COACH LTD
Corporate Management (Treasurers),Banking Fees,29/10/2010,1900252368,"1,003.86",DD- CAPITA BUSINESS SVCS LTD
Corporate Management (Treasurers),Banking Fees,29/11/2010,1900266356,"2,126.57",DD- CAPITA BUSINESS SVCS LTD
Corporate Management (Treasurers),Banking Fees,21/12/2010,1900278114,"2,540.31",DD- CAPITA BUSINESS SVCS LTD
Corporate Management (Treasurers),Banking Fees,14/10/2010,1900245601,"4,551.73",DD-ALLPAY CHARGES
Council Tax,Stationery,14/10/2010,1900245601,"1,760.09",DD-ALLPAY CHARGES
Council Tax,Stationery,14/10/2010,1900245601,727.84,DD-ALLPAY CHARGES
Council Tax,Stationery,22/10/2010,1700033688,"-1,760.09",DD-ALLPAY CHARGES
Corporate Management (Treasurers),Banking Fees,15/11/2010,1900259609,"4,134.06",DD-ALLPAY CHARGES
Council Tax,Stationery,15/11/2010,1900259609,941.78,DD-ALLPAY CHARGES
Corporate Management (Treasurers),Banking Fees,14/12/2010,1900272952,"4,603.79",DD-ALLPAY CHARGES
Council Tax,Stationery,14/12/2010,1900272952,684.27,DD-ALLPAY CHARGES
Council Tax,Postage,15/10/2010,1900245604,632.74,DD-NAT WEST BANK CHARGES
Council Tax,Postage,15/10/2010,1700032478,-632.74,DD-NAT WEST BANK CHARGES
Corporate Management (Treasurers),Banking Fees,11/10/2010,1900239768,"2,979.55",DD-POST OFFICE LTD
Corporate Management (Treasurers),Banking Fees,08/11/2010,1900253723,"1,787.73",DD-POST OFFICE LTD
Corporate Management (Treasurers),Banking Fees,13/12/2010,1900272212,"1,447.21",DD-POST OFFICE LTD
County Hall Central Mail Room,Postage,04/10/2010,1900238703,"7,500.00",DD-POST OFFICE-FRANKING
County Hall Central Mail Room,Postage,26/10/2010,1900252366,"7,500.00",DD-POST OFFICE-FRANKING
County Hall Central Mail Room,Postage,16/11/2010,1900259679,"7,500.00",DD-POST OFFICE-FRANKING
County Hall Central Mail Room,Postage,14/12/2010,1900272946,"7,500.00",DD-POST OFFICE-FRANKING
Summary Revenue Account,Loan Interest,21/10/2010,1900246061,"35,625.00",DD-PUBLIC WORKS LOAN BOARD
Summary Revenue Account,Loan Interest,01/11/2010,1900253721,"125,187.50",DD-PUBLIC WORKS LOAN BOARD
Summary Revenue Account,Loan Interest,15/11/2010,1900259675,"214,125.00",DD-PUBLIC WORKS LOAN BOARD
Summary Revenue Account,Loan Interest,30/11/2010,1900266355,"397,200.00",DD-PUBLIC WORKS LOAN BOARD
Summary Revenue Account,Loan Interest,03/12/2010,1900271669,"120,625.00",DD-PUBLIC WORKS LOAN BOARD
Summary Revenue Account,Loan Interest,20/12/2010,1900277691,"162,500.00",DD-PUBLIC WORKS LOAN BOARD
Council Tax,Postage,08/10/2010,1900239765,740.87,DD-ROYAL MAIL WEST TERRITORIES
Housing Benefit,Postage,08/10/2010,1900239765,862.90,DD-ROYAL MAIL WEST TERRITORIES
National Non Domestic Rates,Postage,15/10/2010,1900245605,632.74,DD-ROYAL MAIL WEST TERRITORIES
Housing Benefit,Postage,22/10/2010,1900246643,672.36,DD-ROYAL MAIL WEST TERRITORIES
Housing Benefit,Postage,05/11/2010,1900253720,523.95,DD-ROYAL MAIL WEST TERRITORIES
National Non Domestic Rates,Postage,05/11/2010,1900253720,562.42,DD-ROYAL MAIL WEST TERRITORIES
Council Tax,Postage,12/11/2010,1900259602,827.67,DD-ROYAL MAIL WEST TERRITORIES
Council Tax,Postage,19/11/2010,1900260316,641.30,DD-ROYAL MAIL WEST TERRITORIES
Housing Benefit,Postage,19/11/2010,1900260316,662.36,DD-ROYAL MAIL WEST TERRITORIES
Housing Benefit,Postage,03/12/2010,1900266358,603.16,DD-ROYAL MAIL WEST TERRITORIES
Council Tax,Postage,10/12/2010,1900272209,"1,019.22",DD-ROYAL MAIL WEST TERRITORIES
Housing Benefit,Postage,17/12/2010,1900272942,787.46,DD-ROYAL MAIL WEST TERRITORIES
Elections,Postage,10/12/2010,1900272210,"1,212.09",DD-ROYAL MAIL-ELECTIONS BULK POST
TICs Stock A/c,Order Settlement,05/11/2010,1900253719,872.58,DD-STAMPS & COLLECTABLES
Corporate Management (Treasurers),Banking Fees,19/10/2010,1900246062,"2,048.21",DD-STREAMLINE RENTAL & TRANSACTION
Corporate Management (Treasurers),Banking Fees,18/11/2010,1900260416,959.52,DD-STREAMLINE RENTAL & TRANSACTION
Leisure Access System,Banking Fees,18/11/2010,1900260416,557.04,DD-STREAMLINE RENTAL & TRANSACTION
Leisure Access System,Banking Fees,20/12/2010,1900277712,672.73,DD-STREAMLINE RENTAL & TRANSACTION
"Maurick Farm Barn, Pan, Newport",Building & Room Rent,28/10/2010,1900252365,600.00,DD-TOMLINSONS RENT
"Maurick Farm Barn, Pan, Newport",Building & Room Rent,29/11/2010,1900265700,600.00,DD-TOMLINSONS RENT
Homelessness,Accomm Costs - Lease,01/10/2010,5105617586,888.33,DEACONS LTD [HZ]
Homelessness,Accomm Costs - Lease,01/10/2010,5105617584,780.00,DEACONS LTD [HZ]
Homelessness,Accomm Costs - Lease,01/10/2010,5105617585,780.00,DEACONS LTD [HZ]
Homelessness,Accomm Costs - Lease,01/11/2010,5105623901,888.33,DEACONS LTD [HZ]
Homelessness,Accomm Costs - Lease,01/11/2010,5105623899,780.00,DEACONS LTD [HZ]
Homelessness,Accomm Costs - Lease,01/11/2010,5105623900,780.00,DEACONS LTD [HZ]
Homelessness,Accomm Costs - Lease,01/12/2010,1700034936,"-2,448.33",DEACONS LTD [HZ]
Disability Discrimination Act Access,Cap Contractor Pmts,20/10/2010,5000107908,"2,100.00",DENNISON DOORS
Cowes T.I.C.,Building & Room Rent,21/12/2010,5105634722,"2,087.50",DESIGN INTERIORS (PROP) LTD [RE]
Youth Mini-bus HN57BYJ (fleet no 6221),Vehicle Maint Costs,19/10/2010,5000107767,504.42,DH PRICE MOTORS
Highway Maintenance Inspection,Vehicle Maint Costs,05/11/2010,5000110977,836.02,DH PRICE MOTORS
Gouldings Resource Centre,Vehicle Maint Costs,19/11/2010,5000113407,989.78,DH PRICE MOTORS
Off-Street Parking Operations,Vehicle Maint Costs,19/11/2010,5000113407,556.38,DH PRICE MOTORS
Highway Maintenance Inspection,Vehicle Maint Costs,02/12/2010,5000115408,"1,252.91",DH PRICE MOTORS
P&C Maintenance Team,Vehicle Maint Costs,02/12/2010,5000115408,512.12,DH PRICE MOTORS
IWHC Community Home - Beaulieu,Vehicle Maint Costs,17/12/2010,5000118115,775.00,DH PRICE MOTORS
Rights of Way Operations,Vehicle Maint Costs,17/12/2010,5000118121,522.53,DH PRICE MOTORS
IWHC Community Home - Beaulieu,Vehicle Leas and Acq,24/12/2010,5000119194,775.00,DH PRICE MOTORS
Building Control,Advertising & Public,19/10/2010,5000107785,"1,400.00",DISTRICT SURVEYORS ASSO T/A LABC
Highways PFI Project,Professional Service,18/10/2010,5000107389,"2,549.80",DLA Piper Uk LLP
Highways PFI Project,Professional Service,27/10/2010,5105623042,-835.20,DLA Piper Uk LLP
Highways PFI Project,Professional Service,10/11/2010,5000111709,"15,855.60",DLA Piper Uk LLP
Highways PFI Project,Catering Purchases,18/11/2010,5000113196,774.14,DLA Piper Uk LLP
Highways PFI Project,Professional Service,18/11/2010,5000113177,"7,618.40",DLA Piper Uk LLP
Human Resources,Operational Equipmen,19/11/2010,5000113357,530.00,DODS PARLAMENTARY COMM LTD
EF - Homecare - OP East,Chgs from Ind Provs,07/10/2010,5000105342,"3,843.00",DOLPHIN CARE (IOW) [SB]
EF - Homecare - OP East,Chgs from Ind Provs,07/10/2010,5000105357,"2,461.76",DOLPHIN CARE (IOW) [SB]
EF - Homecare - OP East,Chgs from Ind Provs,07/10/2010,5000105309,974.50,DOLPHIN CARE (IOW) [SB]
EF - Homecare - OP East,Chgs from Ind Provs,07/10/2010,5000105325,779.60,DOLPHIN CARE (IOW) [SB]
EF - Homecare - OP East,Chgs from Ind Provs,14/10/2010,5000106803,852.50,DOLPHIN CARE (IOW) [SB]
EF - Homecare - OP East,Chgs from Ind Provs,14/10/2010,5000106804,682.00,DOLPHIN CARE (IOW) [SB]
EF - Homecare - OP East,Chgs from Ind Provs,14/10/2010,5000106805,599.55,DOLPHIN CARE (IOW) [SB]
EF - Homecare - OP East,Chgs from Ind Provs,14/12/2010,5000117189,"1,080.63",DOLPHIN CARE (IOW) [SB]
EF - Homecare - OP East,Chgs from Ind Provs,14/12/2010,5000117183,864.50,DOLPHIN CARE (IOW) [SB]
EF - Homecare - OP East,Chgs from Ind Provs,14/12/2010,5000117190,864.50,DOLPHIN CARE (IOW) [SB]
EF - Homecare - OP East,Chgs from Ind Provs,14/12/2010,5000117096,717.50,DOLPHIN CARE (IOW) [SB]
EF - Homecare - OP East,Chgs from Ind Provs,14/12/2010,5000117091,574.00,DOLPHIN CARE (IOW) [SB]
EF - Homecare - OP East,Chgs from Ind Provs,14/12/2010,5000117099,574.00,DOLPHIN CARE (IOW) [SB]
EF - Homecare - OP East,Chgs from Ind Provs,15/12/2010,5000117547,"5,551.00",DOLPHIN CARE (IOW) [SB]
EF - Homecare - OP East,Chgs from Ind Provs,15/12/2010,5000117459,820.00,DOLPHIN CARE (IOW) [SB]
EF - Homecare - OP East,Chgs from Ind Provs,16/12/2010,5000117781,852.50,DOLPHIN CARE (IOW) [SB]
EF - Homecare - OP East,Chgs from Ind Provs,16/12/2010,5000117798,728.00,DOLPHIN CARE (IOW) [SB]
EF - Homecare - OP East,Chgs from Ind Provs,16/12/2010,5000117837,717.50,DOLPHIN CARE (IOW) [SB]
EF - Homecare - OP East,Chgs from Ind Provs,16/12/2010,5000117803,707.00,DOLPHIN CARE (IOW) [SB]
EF - Homecare - OP East,Chgs from Ind Provs,16/12/2010,5000117772,682.00,DOLPHIN CARE (IOW) [SB]
EF - Homecare - OP East,Chgs from Ind Provs,16/12/2010,5000117787,682.00,DOLPHIN CARE (IOW) [SB]
EF - Homecare - OP East,Chgs from Ind Provs,16/12/2010,5000117800,623.00,DOLPHIN CARE (IOW) [SB]
EF - Homecare - OP East,Chgs from Ind Provs,16/12/2010,5000117795,599.55,DOLPHIN CARE (IOW) [SB]
EF - Homecare - OP East,Chgs from Ind Provs,16/12/2010,5000117835,574.00,DOLPHIN CARE (IOW) [SB]
EF - Homecare - OP East,Chgs from Ind Provs,16/12/2010,5000117838,574.00,DOLPHIN CARE (IOW) [SB]
EF - Homecare - OP East,Chgs from Ind Provs,16/12/2010,5000117822,564.55,DOLPHIN CARE (IOW) [SB]
EF - Homecare - OP East,Chgs from Ind Provs,16/12/2010,5000117650,540.00,DOLPHIN CARE (IOW) [SB]
EF - Homecare - OP East,Chgs from Ind Provs,16/12/2010,5000117660,540.00,DOLPHIN CARE (IOW) [SB]
EF - Homecare - OP East,Chgs from Ind Provs,17/12/2010,5000118076,590.63,DOLPHIN CARE (IOW) [SB]
EF - Homecare - OP East,Chgs from Ind Provs,21/12/2010,5000118597,"2,432.20",DOLPHIN CARE (IOW) [SB]
EF - Homecare - OP East,Chgs from Ind Provs,23/12/2010,5000118947,"3,961.36",DOLPHIN CARE (IOW) [SB]
EF - Homecare - OP East,Chgs from Ind Provs,23/12/2010,5000118947,921.70,DOLPHIN CARE (IOW) [SB]
EF - Homecare - OP East,Chgs from Ind Provs,23/12/2010,5000118922,863.50,DOLPHIN CARE (IOW) [SB]
EF - Homecare - OP East,Chgs from Ind Provs,23/12/2010,5000118922,702.00,DOLPHIN CARE (IOW) [SB]
SSEYCCG - CHILDREN CENTRES (C,Train and Conference,05/10/2010,5000104795,"1,954.62",DORSET HEALTHCARE NHS FNDTN TRUST
Business Information Team,Comp Software Licenc,28/10/2010,5000109437,-815.00,DOTTED EYES LTD
Dementia Residential Care,Chgs from Ind Provs,12/10/2010,5105619351,"1,610.00",DOWNSIDE HOUSE [SB]
Dementia Residential Care,Chgs from Ind Provs,12/10/2010,5105619351,"1,610.00",DOWNSIDE HOUSE [SB]
EF - Res - OP East,Chgs from Ind Provs,12/10/2010,5105619351,"1,892.24",DOWNSIDE HOUSE [SB]
EF - Res - OP East,Chgs from Ind Provs,12/10/2010,5105619351,"1,892.24",DOWNSIDE HOUSE [SB]
EF - Res - OP East,Chgs from Ind Provs,12/10/2010,5105619351,"1,610.00",DOWNSIDE HOUSE [SB]
EF - Res - OP East,Chgs from Ind Provs,12/10/2010,5105619351,"1,536.92",DOWNSIDE HOUSE [SB]
EF - Res - OP East,Chgs from Ind Provs,12/10/2010,5105619351,"1,536.92",DOWNSIDE HOUSE [SB]
EMI - Res - OP East,Chgs from Ind Provs,12/10/2010,5105619351,"1,892.24",DOWNSIDE HOUSE [SB]
PD - Res - PD,Chgs from Ind Provs,12/10/2010,5105619351,"1,536.92",DOWNSIDE HOUSE [SB]
EF - Res - OP East,Chgs from Ind Provs,18/10/2010,5105621171,"1,892.24",DOWNSIDE HOUSE [SB]
Dementia Residential Care,Chgs from Ind Provs,09/11/2010,5105625610,"1,610.00",DOWNSIDE HOUSE [SB]
Dementia Residential Care,Chgs from Ind Provs,09/11/2010,5105625610,"1,610.00",DOWNSIDE HOUSE [SB]
EF - Res - OP East,Chgs from Ind Provs,09/11/2010,5105625610,"1,892.24",DOWNSIDE HOUSE [SB]
EF - Res - OP East,Chgs from Ind Provs,09/11/2010,5105625610,"1,892.24",DOWNSIDE HOUSE [SB]
EF - Res - OP East,Chgs from Ind Provs,09/11/2010,5105625610,"1,610.00",DOWNSIDE HOUSE [SB]
EF - Res - OP East,Chgs from Ind Provs,09/11/2010,5105625610,"1,536.92",DOWNSIDE HOUSE [SB]
EF - Res - OP East,Chgs from Ind Provs,09/11/2010,5105625610,"1,536.92",DOWNSIDE HOUSE [SB]
EMI - Res - OP East,Chgs from Ind Provs,09/11/2010,5105625610,"1,892.24",DOWNSIDE HOUSE [SB]
PD - Res - PD,Chgs from Ind Provs,09/11/2010,5105625610,"1,536.92",DOWNSIDE HOUSE [SB]
EF - Res - OP East,Chgs from Ind Provs,15/11/2010,5105627090,"1,892.24",DOWNSIDE HOUSE [SB]
Dementia Residential Care,Chgs from Ind Provs,07/12/2010,5105631313,"1,610.00",DOWNSIDE HOUSE [SB]
Dementia Residential Care,Chgs from Ind Provs,07/12/2010,5105631313,"1,610.00",DOWNSIDE HOUSE [SB]
EF - Res - OP East,Chgs from Ind Provs,07/12/2010,5105631313,"1,892.24",DOWNSIDE HOUSE [SB]
EF - Res - OP East,Chgs from Ind Provs,07/12/2010,5105631313,"1,892.24",DOWNSIDE HOUSE [SB]
EF - Res - OP East,Chgs from Ind Provs,07/12/2010,5105631313,"1,610.00",DOWNSIDE HOUSE [SB]
EF - Res - OP East,Chgs from Ind Provs,07/12/2010,5105631313,"1,536.92",DOWNSIDE HOUSE [SB]
EF - Res - OP East,Chgs from Ind Provs,07/12/2010,5105631313,"1,536.92",DOWNSIDE HOUSE [SB]
EMI - Res - OP East,Chgs from Ind Provs,07/12/2010,5105631313,"1,892.24",DOWNSIDE HOUSE [SB]
PD - Res - PD,Chgs from Ind Provs,07/12/2010,5105631313,"1,536.92",DOWNSIDE HOUSE [SB]
EF - Res - OP East,Chgs from Ind Provs,13/12/2010,5105632838,"1,892.24",DOWNSIDE HOUSE [SB]
Court Work & Consultancy Services,Legal Fees - Other P,08/12/2010,5000116061,"2,078.96",DR PETER DALE AND ASSOCIATES LTD
Fire Service to be allocated,"Pl, Equip & Furn - C",21/10/2010,5000108236,"73,380.00",DRAEGER SAFETY UK LTD
Fire Service to be allocated,"Pl, Equip & Furn - C",21/10/2010,5000108236,"66,805.00",DRAEGER SAFETY UK LTD
Fire Service to be allocated,"Pl, Equip & Furn - C",21/10/2010,5000108230,"-70,830.00",DRAEGER SAFETY UK LTD
Fire Service to be allocated,"Pl, Equip & Furn - C",21/10/2010,5000108230,"-73,380.00",DRAEGER SAFETY UK LTD
Fire Service to be allocated,"Pl, Equip & Furn - C",18/11/2010,5000113270,"4,025.00",DRAEGER SAFETY UK LTD
Fire Service to be allocated,"Pl, Equip & Furn - C",10/12/2010,5000116549,"3,600.00",DRAEGER SAFETY UK LTD
Central Support Fixtures and Fittings,Cap Contractor Pmts,12/11/2010,5000112269,"5,450.00",DRH RADIATOR GUARDS LIMITED
Non-Delegated Building Maintenance,Prop Svs - Bldg mtce,12/11/2010,5000112126,980.00,DRH RADIATOR GUARDS LIMITED
Ryde High Devolved Capital,Cap Contractor Pmts,05/11/2010,1900253647,"1,585.00",DUCTWORK SERVICES (IOW) LTD
Medina Theatre,Pay to Pvte Contract,05/11/2010,1900253360,"2,205.00",DUO ENTERTAINMENT LTD
Medina Theatre,Pay to Pvte Contract,09/11/2010,1900253805,"2,205.00",DUO ENTERTAINMENT LTD
Adoption Costs,Professional Service,11/10/2010,5000105926,"1,092.80",DUTTON GREGORY LLP
Adoption Costs,Legal Fees - Other P,20/10/2010,5000107866,"1,092.80",DUTTON GREGORY LLP
Adoption Costs,Professional Service,20/10/2010,5000107861,"-1,092.80",DUTTON GREGORY LLP
Street Lighting RC Wks,Order Settlement,04/11/2010,5000110765,"2,196.81",DW WINDSOR LIGHTING
County Hall Central Mail Room,Professional Subs,10/12/2010,5000116620,"3,000.00",DX NETWORK SERVICES LTD
Housing Renewal Assistance,Capital Grants,10/12/2010,5000116534,"50,000.00",E.ON UK PLC
Transforming Social Care,Professional Service,15/11/2010,5000112438,"2,000.00",EAST SUSSEX COUNTY COUNCIL
Parks and Gardens Capital,"Pl, Equip & Furn - C",14/12/2010,5000117231,"3,265.00",EASY-GATE LTD
Homelessness Prevention,Accom Csts Serv Usrs,04/10/2010,1900238676,535.00,Easylet Islandwide
Childrens Disability Team,Agency staff,05/10/2010,5000104837,970.20,EDEN BROWN LTD
Childrens Disability Team,Agency staff,11/10/2010,5000105916,997.15,EDEN BROWN LTD
Childrens Disability Team,Agency staff,11/10/2010,5000105917,727.65,EDEN BROWN LTD
Childrens Disability Team,Agency staff,14/10/2010,5000106694,997.15,EDEN BROWN LTD
Childrens Disability Team,Agency staff,27/10/2010,5000109323,997.15,EDEN BROWN LTD
Referral & Assessment,Agency staff,03/11/2010,5000110494,"1,441.15",EDEN BROWN LTD
Referral & Assessment,Agency staff,03/11/2010,5000110496,"1,441.15",EDEN BROWN LTD
Referral & Assessment,Agency staff,03/11/2010,5000110497,"1,441.15",EDEN BROWN LTD
Referral & Assessment,Agency staff,03/11/2010,5000110515,"1,441.15",EDEN BROWN LTD
Referral & Assessment,Agency staff,03/11/2010,5000110487,"1,285.36",EDEN BROWN LTD
Childrens Disability Team,Agency staff,09/11/2010,5000111387,997.15,EDEN BROWN LTD
Childrens Disability Team,Agency staff,09/11/2010,5000111388,997.15,EDEN BROWN LTD
Referral & Assessment,Agency staff,09/11/2010,5000111409,"1,441.15",EDEN BROWN LTD
Referral & Assessment,Agency staff,09/11/2010,5000111402,"1,020.00",EDEN BROWN LTD
Childrens Disability Team,Agency staff,15/11/2010,5000112329,997.15,EDEN BROWN LTD
Referral & Assessment,Agency staff,15/11/2010,5000112336,"1,258.00",EDEN BROWN LTD
Referral & Assessment,Agency staff,16/11/2010,5000112677,"1,441.15",EDEN BROWN LTD
Childrens Disability Team,Agency staff,22/11/2010,5000113802,997.15,EDEN BROWN LTD
Childrens Disability Team,Agency staff,23/11/2010,5000113894,997.15,EDEN BROWN LTD
Referral & Assessment,Agency staff,23/11/2010,5000113859,"1,258.00",EDEN BROWN LTD
Referral & Assessment,Agency staff,24/11/2010,5000114127,"1,585.83",EDEN BROWN LTD
Referral & Assessment,Agency staff,24/11/2010,5000114140,"1,441.15",EDEN BROWN LTD
Referral & Assessment,Agency staff,24/11/2010,5000114142,"1,441.15",EDEN BROWN LTD
Referral & Assessment,Agency staff,25/11/2010,5000114410,"1,258.00",EDEN BROWN LTD
Referral & Assessment,Agency staff,30/11/2010,5000114983,"1,460.63",EDEN BROWN LTD
Childrens Disability Team,Agency staff,01/12/2010,5000115318,997.15,EDEN BROWN LTD
Childrens Disability Team,Agency staff,01/12/2010,5000115321,997.15,EDEN BROWN LTD
Childrens Disability Team,Agency staff,01/12/2010,5000115322,997.15,EDEN BROWN LTD
Referral & Assessment,Agency staff,01/12/2010,5000115263,"1,441.15",EDEN BROWN LTD
Referral & Assessment,Agency staff,01/12/2010,5000115265,"1,258.00",EDEN BROWN LTD
Referral & Assessment,Agency staff,01/12/2010,5000115266,"1,258.00",EDEN BROWN LTD
Referral & Assessment,Agency staff,22/12/2010,5000118818,"1,441.15",EDEN BROWN LTD
Referral & Assessment,Agency staff,22/12/2010,5000118819,"1,441.15",EDEN BROWN LTD
Dementia Residential Care,Chgs from Ind Provs,12/10/2010,5105619330,"1,892.24",EDEN HOUSE [SB]
Dementia Residential Care,Chgs from Ind Provs,12/10/2010,5105619330,"1,892.24",EDEN HOUSE [SB]
Dementia Residential Care,Chgs from Ind Provs,12/10/2010,5105619330,"1,892.24",EDEN HOUSE [SB]
EF - Res - OP East,Chgs from Ind Provs,12/10/2010,5105619330,"1,892.24",EDEN HOUSE [SB]
EF - Res - OP East,Chgs from Ind Provs,12/10/2010,5105619330,"1,892.24",EDEN HOUSE [SB]
EF - Res - OP East,Chgs from Ind Provs,12/10/2010,5105619330,"1,892.24",EDEN HOUSE [SB]
EF - Res - OP East,Chgs from Ind Provs,12/10/2010,5105619330,"1,892.24",EDEN HOUSE [SB]
EF - Res - OP East,Chgs from Ind Provs,12/10/2010,5105619330,"1,892.24",EDEN HOUSE [SB]
EF - Res - OP East,Chgs from Ind Provs,12/10/2010,5105619330,"1,536.92",EDEN HOUSE [SB]
EMI - Res - OP East,Chgs from Ind Provs,12/10/2010,5000106223,"1,667.50",EDEN HOUSE [SB]
REDACTED PERSONAL DATA,Order Settlement,12/10/2010,5105619330,"1,610.00",EDEN HOUSE [SB]
REDACTED PERSONAL DATA,Order Settlement,12/10/2010,5105619330,"1,892.24",EDEN HOUSE [SB]
REDACTED PERSONAL DATA,Order Settlement,12/10/2010,5105619330,"1,536.92",EDEN HOUSE [SB]
REDACTED PERSONAL DATA,Order Settlement,12/10/2010,5105619330,"1,892.24",EDEN HOUSE [SB]
Dementia Residential Care,Chgs from Ind Provs,09/11/2010,5105625589,"1,892.24",EDEN HOUSE [SB]
Dementia Residential Care,Chgs from Ind Provs,09/11/2010,5105625589,"1,892.24",EDEN HOUSE [SB]
Dementia Residential Care,Chgs from Ind Provs,09/11/2010,5105625589,"1,892.24",EDEN HOUSE [SB]
EF - Res - OP East,Chgs from Ind Provs,09/11/2010,5105625589,"1,892.24",EDEN HOUSE [SB]
EF - Res - OP East,Chgs from Ind Provs,09/11/2010,5105625589,"1,892.24",EDEN HOUSE [SB]
EF - Res - OP East,Chgs from Ind Provs,09/11/2010,5105625589,"1,892.24",EDEN HOUSE [SB]
EF - Res - OP East,Chgs from Ind Provs,09/11/2010,5105625589,"1,892.24",EDEN HOUSE [SB]
EF - Res - OP East,Chgs from Ind Provs,09/11/2010,5105625589,"1,892.24",EDEN HOUSE [SB]
EF - Res - OP East,Chgs from Ind Provs,09/11/2010,5105625589,"1,536.92",EDEN HOUSE [SB]
REDACTED PERSONAL DATA,Order Settlement,09/11/2010,5105625589,"1,610.00",EDEN HOUSE [SB]
REDACTED PERSONAL DATA,Order Settlement,09/11/2010,5105625589,"1,892.24",EDEN HOUSE [SB]
REDACTED PERSONAL DATA,Order Settlement,09/11/2010,5105625589,"1,536.92",EDEN HOUSE [SB]
REDACTED PERSONAL DATA,Order Settlement,09/11/2010,5105625589,"1,892.24",EDEN HOUSE [SB]
EMI - Res - OP East,Chgs from Ind Provs,12/11/2010,5000112246,"3,220.00",EDEN HOUSE [SB]
REDACTED PERSONAL DATA,Order Settlement,25/11/2010,5000114295,"2,027.40",EDEN HOUSE [SB]
Dementia Residential Care,Chgs from Ind Provs,07/12/2010,5105631292,"1,892.24",EDEN HOUSE [SB]
Dementia Residential Care,Chgs from Ind Provs,07/12/2010,5105631292,"1,892.24",EDEN HOUSE [SB]
Dementia Residential Care,Chgs from Ind Provs,07/12/2010,5105631292,"1,892.24",EDEN HOUSE [SB]
Dementia Residential Care,Chgs from Ind Provs,07/12/2010,5105631292,"1,610.00",EDEN HOUSE [SB]
EF - Res - OP East,Chgs from Ind Provs,07/12/2010,5105631292,"1,892.24",EDEN HOUSE [SB]
EF - Res - OP East,Chgs from Ind Provs,07/12/2010,5105631292,"1,892.24",EDEN HOUSE [SB]
EF - Res - OP East,Chgs from Ind Provs,07/12/2010,5105631292,"1,892.24",EDEN HOUSE [SB]
EF - Res - OP East,Chgs from Ind Provs,07/12/2010,5105631292,"1,892.24",EDEN HOUSE [SB]
EF - Res - OP East,Chgs from Ind Provs,07/12/2010,5105631292,"1,892.24",EDEN HOUSE [SB]
EF - Res - OP East,Chgs from Ind Provs,07/12/2010,5105631292,"1,536.92",EDEN HOUSE [SB]
REDACTED PERSONAL DATA,Order Settlement,07/12/2010,5105631292,"1,610.00",EDEN HOUSE [SB]
REDACTED PERSONAL DATA,Order Settlement,07/12/2010,5105631292,"1,892.24",EDEN HOUSE [SB]
REDACTED PERSONAL DATA,Order Settlement,07/12/2010,5105631292,"1,536.92",EDEN HOUSE [SB]
EF - Res - OP East,Chgs from Ind Provs,20/12/2010,1700035923,"-1,824.66",EDEN HOUSE [SB]
Operations & Fire Resilience,Gas,01/10/2010,1700031418,-747.24,EDF ENERGY 1 LTD
Public Con - General (was Attendance),Electricity,06/10/2010,1700031913,"1,360.45",EDF ENERGY 1 LTD
Public Con - General (was Attendance),Electricity,06/10/2010,1700031913,-687.12,EDF ENERGY 1 LTD
Chief Fire Officer,Electricity,21/10/2010,1900246015,794.71,EDF ENERGY 1 LTD
2/4/5 Langley Court,Electricity,25/10/2010,1900246663,"1,306.03",EDF ENERGY 1 LTD
"29,High St,Newport",Electricity,25/10/2010,1900246759,894.44,EDF ENERGY 1 LTD
"Bugle House,Newport",Electricity,25/10/2010,1900246757,527.94,EDF ENERGY 1 LTD
Childrens Service Centre,Electricity,25/10/2010,1900246760,"1,097.78",EDF ENERGY 1 LTD
Newport SSC,Electricity,25/10/2010,1900246688,596.31,EDF ENERGY 1 LTD
Operations & Fire Resilience,Electricity,25/10/2010,1900246751,"2,820.26",EDF ENERGY 1 LTD
Roman Villa Newport,Electricity,25/10/2010,1900246668,516.94,EDF ENERGY 1 LTD
Westminster House,Electricity,25/10/2010,1900246687,900.94,EDF ENERGY 1 LTD
Jubilee Stores,Electricity,27/10/2010,1900251401,"1,051.83",EDF ENERGY 1 LTD
St James Centre,Electricity,27/10/2010,1900251388,778.05,EDF ENERGY 1 LTD
"Salisbury Gardens, Ventnor",Electricity,28/10/2010,1900251449,"1,387.69",EDF ENERGY 1 LTD
LACES - Childrens Fund,Electricity,29/10/2010,1900252280,785.36,EDF ENERGY 1 LTD
Crematorium,Electricity,01/11/2010,1900252302,755.67,EDF ENERGY 1 LTD
"Guildhall,Newport",Electricity,01/11/2010,1900252300,"1,837.95",EDF ENERGY 1 LTD
Operations & Fire Resilience,Electricity,01/11/2010,1900252398,556.21,EDF ENERGY 1 LTD
"Bugle House,Newport",Electricity,02/11/2010,1900252405,"2,705.37",EDF ENERGY 1 LTD
Jubilee Stores,Electricity,02/11/2010,1900252419,588.76,EDF ENERGY 1 LTD
Operations & Fire Resilience,Electricity,02/11/2010,1900252413,893.33,EDF ENERGY 1 LTD
Rew Valley Sports Centre Mgmt,Electricity,02/11/2010,1900252418,548.79,EDF ENERGY 1 LTD
Browns,Electricity,04/11/2010,1900253352,"1,862.63",EDF ENERGY 1 LTD
St.Nicholas House,Electricity,04/11/2010,1900253353,"1,256.34",EDF ENERGY 1 LTD
"7 High St,Newport",Electricity,08/11/2010,1900253771,"1,055.47",EDF ENERGY 1 LTD
Departmental Admin/Support,Electricity,08/11/2010,1900253712,787.26,EDF ENERGY 1 LTD
Gouldings Resource Centre,Electricity,08/11/2010,1900253761,"3,299.29",EDF ENERGY 1 LTD
Integrated Community Equipment Service,Electricity,08/11/2010,1900253763,756.15,EDF ENERGY 1 LTD
Youth- Newport,Electricity,08/11/2010,1900253787,"1,689.96",EDF ENERGY 1 LTD
IWHC Community Home - Beaulieu,Electricity,09/11/2010,1900253839,"1,295.60",EDF ENERGY 1 LTD
Parklands Day Centre,Electricity,09/11/2010,1900253836,671.69,EDF ENERGY 1 LTD
Public Con - General (was Attendance),Electricity,09/11/2010,1900253837,"1,793.05",EDF ENERGY 1 LTD
Ryde Library,Electricity,09/11/2010,1900253850,571.44,EDF ENERGY 1 LTD
Ryde Paddling Pool,Electricity,09/11/2010,1900253817,572.77,EDF ENERGY 1 LTD
Newport Library,Electricity,15/11/2010,1900259624,"2,846.73",EDF ENERGY 1 LTD
Ryde Town Hall,Electricity,15/11/2010,1900259642,793.48,EDF ENERGY 1 LTD
Sandown SSC,Electricity,15/11/2010,1900259640,"2,312.86",EDF ENERGY 1 LTD
Seaclose Offices,Electricity,15/11/2010,1900259641,962.13,EDF ENERGY 1 LTD
"30 Quay Street, Newport",Electricity,16/11/2010,1900259669,667.58,EDF ENERGY 1 LTD
"Civic Centre,Sandown",Electricity,16/11/2010,1900259691,"1,147.70",EDF ENERGY 1 LTD
Enterprise House,Electricity,16/11/2010,1900259683,"1,306.32",EDF ENERGY 1 LTD
Lynnbottom Leachate Treatment Works,Electricity,16/11/2010,1900259682,"1,708.33",EDF ENERGY 1 LTD
Open space lettings,Electricity,16/11/2010,1700034398,-774.96,EDF ENERGY 1 LTD
Public Con - General (was Attendance),Electricity,16/11/2010,1700034396,-978.24,EDF ENERGY 1 LTD
Thompson House Admin,Electricity,16/11/2010,1900259685,"1,199.90",EDF ENERGY 1 LTD
Youth- Ryde  (Well St),Gas,16/11/2010,1700034404,-503.46,EDF ENERGY 1 LTD
Youth- Ryde  (Well St),Gas,16/11/2010,1700034404,-539.91,EDF ENERGY 1 LTD
Youth- Ryde  (Well St),Gas,16/11/2010,1700034404,-999.29,EDF ENERGY 1 LTD
"Car Park - Cross Street, Cowes",Electricity,17/11/2010,1700034413,-989.40,EDF ENERGY 1 LTD
Decorative Lighting / Illuminations,Electricity,17/11/2010,1700034418,-734.59,EDF ENERGY 1 LTD
Newport Harbour - General,Electricity,17/11/2010,1700034416,523.11,EDF ENERGY 1 LTD
Newport Harbour - General,Electricity,17/11/2010,1700034416,-941.89,EDF ENERGY 1 LTD
Public Con - General (was Attendance),Electricity,17/11/2010,1700034415,-978.63,EDF ENERGY 1 LTD
Public Con - General (was Attendance),Electricity,17/11/2010,1700034408,"-1,034.83",EDF ENERGY 1 LTD
Puckpool Park Amusements,Electricity,17/11/2010,1700034414,502.71,EDF ENERGY 1 LTD
Puckpool Park Amusements,Electricity,17/11/2010,1700034414,"-1,271.59",EDF ENERGY 1 LTD
St Light - Other Maintenance,Electricity,17/11/2010,1900259797,697.10,EDF ENERGY 1 LTD
St Light - Other Maintenance,Electricity,17/11/2010,1900259797,-727.10,EDF ENERGY 1 LTD
Public Con - General (was Attendance),Electricity,19/11/2010,1700034430,"1,146.33",EDF ENERGY 1 LTD
Public Con - General (was Attendance),Electricity,19/11/2010,1700034430,"-1,286.46",EDF ENERGY 1 LTD
"Car Park - Little London,Newport",Electricity,01/12/2010,1900265767,662.92,EDF ENERGY 1 LTD
Sandown SSC,Electricity,07/12/2010,1900266421,"1,504.27",EDF ENERGY 1 LTD
Sandown SSC,Electricity,07/12/2010,1900266421,-770.10,EDF ENERGY 1 LTD
Branstone Farm Studies Centre,Electricity,08/12/2010,1900271674,"1,546.61",EDF ENERGY 1 LTD
Branstone Farm Studies Centre,Electricity,08/12/2010,1900271674,725.96,EDF ENERGY 1 LTD
Branstone Farm Studies Centre,Electricity,08/12/2010,1900271674,-725.96,EDF ENERGY 1 LTD
Youth- Newport,Electricity,10/12/2010,1700035245,"-1,942.22",EDF ENERGY 1 LTD
Youth- Newport,Electricity,10/12/2010,1700035245,"-3,411.01",EDF ENERGY 1 LTD
"Garden Estate, Ventnor",Electricity,17/12/2010,1700035919,"4,326.72",EDF ENERGY 1 LTD
"Garden Estate, Ventnor",Electricity,17/12/2010,1700035919,"1,396.03",EDF ENERGY 1 LTD
"Garden Estate, Ventnor",Electricity,17/12/2010,1700035919,"-4,194.15",EDF ENERGY 1 LTD
"Garden Estate, Ventnor",Electricity,17/12/2010,1700035919,"-5,402.44",EDF ENERGY 1 LTD
Waste Capital Programme,Cap Contractor Pmts,06/12/2010,5000115623,"3,515.82",EGBERT H TAYLOR & CO LTD
Elections,Reimburse of Costs,20/12/2010,1900273592,"4,000.00",ELECTIONS CLAIMS UNIT
Human Resources,Consultants Fees,11/10/2010,5000106004,645.00,ELT SOLUTIONS LTD
Education Fair Funding High Schools,Eligible Supp and Sv,11/10/2010,5000106012,940.00,EMSCAR LTD
Management of Asbestos,Cap Contractor Pmts,15/10/2010,5000107130,"1,460.00",EMSCAR LTD
Education Fair Funding High Schools,Eligible Supp and Sv,25/11/2010,5000114348,"3,100.00",EMSCAR LTD
Education Fair Funding High Schools,Eligible Supp and Sv,25/11/2010,5000114350,"1,740.00",EMSCAR LTD
Education Fair Funding High Schools,Eligible Supp and Sv,25/11/2010,5000114349,"1,480.00",EMSCAR LTD
Education Fair Funding High Schools,Eligible Supp and Sv,08/12/2010,5000116237,"3,480.00",EMSCAR LTD
Waterside pool,Pay to Pvte Contract,06/10/2010,5105618375,537.90,Emu Limited
Public Realm contract gaps,Pay to Pvte Contract,04/10/2010,5000104585,"6,840.84",ENGLISH LANDSCAPES MAINTENANCE LTD
Cemeteries Administration,Grounds Maintenance,05/10/2010,5000104910,"24,329.11",ENGLISH LANDSCAPES MAINTENANCE LTD
Environmental Maintenance Other Roads,Pay to Pvte Contract,14/10/2010,5105620771,"28,503.41",ENGLISH LANDSCAPES MAINTENANCE LTD
Environmental Maintenance Other Roads,Pay to Pvte Contract,14/10/2010,5105620770,"2,665.59",ENGLISH LANDSCAPES MAINTENANCE LTD
Public Realm contract gaps,Pay to Pvte Contract,25/10/2010,5000108748,"5,040.61",ENGLISH LANDSCAPES MAINTENANCE LTD
Cemeteries Administration,Grounds Maintenance,29/10/2010,5000109874,"22,877.65",ENGLISH LANDSCAPES MAINTENANCE LTD
Grounds Maintenance - Delegated,Grounds Maintenance,01/11/2010,5000110056,"9,700.00",ENGLISH LANDSCAPES MAINTENANCE LTD
Grounds Maintenance - Delegated,Grounds Maintenance,01/11/2010,5000110059,"-9,700.00",ENGLISH LANDSCAPES MAINTENANCE LTD
Environmental Maintenance Other Roads,Pay to Pvte Contract,08/11/2010,5105625378,"26,255.42",ENGLISH LANDSCAPES MAINTENANCE LTD
Environmental Maintenance Other Roads,Pay to Pvte Contract,08/11/2010,5105625383,"16,144.60",ENGLISH LANDSCAPES MAINTENANCE LTD
Cemeteries Administration,Grounds Maintenance,16/11/2010,5000112717,"22,946.97",ENGLISH LANDSCAPES MAINTENANCE LTD
Environmental Maintenance Other Roads,Pay to Pvte Contract,03/12/2010,5105630819,"21,790.04",ENGLISH LANDSCAPES MAINTENANCE LTD
Public Realm contract gaps,Pay to Pvte Contract,09/12/2010,5000116475,900.12,ENGLISH LANDSCAPES MAINTENANCE LTD
Public Realm contract gaps,Pay to Pvte Contract,09/12/2010,5000116473,"-6,840.84",ENGLISH LANDSCAPES MAINTENANCE LTD
Cemeteries Administration,Grounds Maintenance,20/12/2010,5000118319,"16,740.28",ENGLISH LANDSCAPES MAINTENANCE LTD
Public Realm contract gaps,Grounds Maintenance,23/12/2010,5000119013,900.12,ENGLISH LANDSCAPES MAINTENANCE LTD
Local Development Framework,Consultants Fees,01/11/2010,5000110083,"3,052.00",ENTEC UK LTD
Local Development Framework,Consultants Fees,01/11/2010,5000110085,"2,462.00",ENTEC UK LTD
Local Development Framework,Consultants Fees,01/11/2010,5000110083,"2,347.00",ENTEC UK LTD
Local Development Framework,Consultants Fees,01/11/2010,5000110081,"2,250.00",ENTEC UK LTD
Local Development Framework,Consultants Fees,01/11/2010,5000110085,"1,278.00",ENTEC UK LTD
Local Development Framework,Consultants Fees,01/11/2010,5000110082,"1,171.00",ENTEC UK LTD
Local Development Framework,Consultants Fees,01/11/2010,5000110085,921.00,ENTEC UK LTD
Local Development Framework,Consultants Fees,01/11/2010,5000110082,713.00,ENTEC UK LTD
Non-Delegated Building Maintenance,Prop Svs - Bldg mtce,15/11/2010,5000112592,879.00,ENVIROCARE SERVICES LTD
Medina Leisure Centre,Prop Svs - Bldg mtce,07/12/2010,5000116051,"8,062.00",ENVIROCARE SERVICES LTD
Care Matters (PEA),Client Expenses,09/11/2010,5000111568,"3,099.90",EQUANET
Corporate Server,ICT H/ware & S/ware,03/12/2010,5000115455,800.00,EQUANET
Corporate Server,ICT H/ware & S/ware,03/12/2010,5000115459,-800.00,EQUANET
Schools Reorganisation,"Pl, Equip & Furn - C",18/10/2010,5000107224,"3,188.16",ESA MCINTOSH LTD
LD - Residential,Chgs from Ind Provs,12/10/2010,5105619336,"11,599.84",ESPLANADE HOUSE [SB]
LD - Residential,Chgs from Ind Provs,12/10/2010,5105619336,"5,680.08",ESPLANADE HOUSE [SB]
LD - Residential,Chgs from Ind Provs,12/10/2010,5105619336,"5,156.20",ESPLANADE HOUSE [SB]
LD - Residential,Chgs from Ind Provs,12/10/2010,5105619336,"4,400.20",ESPLANADE HOUSE [SB]
LD - Residential,Chgs from Ind Provs,12/10/2010,5105619336,"3,568.60",ESPLANADE HOUSE [SB]
LD - Residential,Chgs from Ind Provs,12/10/2010,5105619336,"1,757.00",ESPLANADE HOUSE [SB]
LD - Residential,Chgs from Ind Provs,12/10/2010,5105619336,"1,757.00",ESPLANADE HOUSE [SB]
LD - Residential,Chgs from Ind Provs,12/10/2010,5105619336,"1,757.00",ESPLANADE HOUSE [SB]
LD - Residential,Chgs from Ind Provs,12/10/2010,5105619336,"1,757.00",ESPLANADE HOUSE [SB]
LD - Residential,Chgs from Ind Provs,12/10/2010,5105619336,"1,757.00",ESPLANADE HOUSE [SB]
LD - Residential,Chgs from Ind Provs,09/11/2010,5105625595,"11,599.84",ESPLANADE HOUSE [SB]
LD - Residential,Chgs from Ind Provs,09/11/2010,5105625595,"5,680.08",ESPLANADE HOUSE [SB]
LD - Residential,Chgs from Ind Provs,09/11/2010,5105625595,"5,156.20",ESPLANADE HOUSE [SB]
LD - Residential,Chgs from Ind Provs,09/11/2010,5105625595,"4,400.20",ESPLANADE HOUSE [SB]
LD - Residential,Chgs from Ind Provs,09/11/2010,5105625595,"3,568.60",ESPLANADE HOUSE [SB]
LD - Residential,Chgs from Ind Provs,09/11/2010,5105625595,"1,757.00",ESPLANADE HOUSE [SB]
LD - Residential,Chgs from Ind Provs,09/11/2010,5105625595,"1,757.00",ESPLANADE HOUSE [SB]
LD - Residential,Chgs from Ind Provs,09/11/2010,5105625595,"1,757.00",ESPLANADE HOUSE [SB]
LD - Residential,Chgs from Ind Provs,09/11/2010,5105625595,"1,757.00",ESPLANADE HOUSE [SB]
LD - Residential,Chgs from Ind Provs,09/11/2010,5105625595,"1,757.00",ESPLANADE HOUSE [SB]
LD - Residential,Chgs from Ind Provs,07/12/2010,5105631298,"11,599.84",ESPLANADE HOUSE [SB]
LD - Residential,Chgs from Ind Provs,07/12/2010,5105631298,"5,680.08",ESPLANADE HOUSE [SB]
LD - Residential,Chgs from Ind Provs,07/12/2010,5105631298,"5,156.20",ESPLANADE HOUSE [SB]
LD - Residential,Chgs from Ind Provs,07/12/2010,5105631298,"4,400.20",ESPLANADE HOUSE [SB]
LD - Residential,Chgs from Ind Provs,07/12/2010,5105631298,"3,568.60",ESPLANADE HOUSE [SB]
LD - Residential,Chgs from Ind Provs,07/12/2010,5105631298,"1,757.00",ESPLANADE HOUSE [SB]
LD - Residential,Chgs from Ind Provs,07/12/2010,5105631298,"1,757.00",ESPLANADE HOUSE [SB]
LD - Residential,Chgs from Ind Provs,07/12/2010,5105631298,"1,757.00",ESPLANADE HOUSE [SB]
LD - Residential,Chgs from Ind Provs,07/12/2010,5105631298,"1,757.00",ESPLANADE HOUSE [SB]
LD - Residential,Chgs from Ind Provs,07/12/2010,5105631298,"1,757.00",ESPLANADE HOUSE [SB]
LD - Residential,Chgs from Ind Provs,15/12/2010,1900272323,"2,276.54",ESPLANADE HOUSE [SB]
IOW Festival of Walking,Advertising & Public,16/12/2010,5000117685,"1,600.00",ESSENTIAL SIGNS & PRINT
Traffic Management,Cap Contractor Pmts,04/11/2010,5000110827,"1,057.68",EUROSIGNS (UK) LTD
Traffic Management,Cap Contractor Pmts,12/11/2010,5000112274,701.04,EUROSIGNS (UK) LTD
Structural Maintenance Principle Roads,Highways Minor Works,15/11/2010,5000112504,534.00,EUROSIGNS (UK) LTD
ROW Capital Programme,Cap Contractor Pmts,26/11/2010,5000114510,"5,562.70",EUROSIGNS (UK) LTD
Bus Infrastructure,Cap Contractor Pmts,30/11/2010,5000114898,898.20,EUROSIGNS (UK) LTD
Traffic Management,Cap Contractor Pmts,02/12/2010,5000115432,"1,102.33",EUROSIGNS (UK) LTD
ROW Capital Programme,Cap Contractor Pmts,10/12/2010,5000116590,"5,061.10",EUROSIGNS (UK) LTD
ROW Capital Programme,Cap Contractor Pmts,14/12/2010,5000117008,"-10,621.70",EUROSIGNS (UK) LTD
ROW Capital Programme,Eligible Supp and Sv,16/12/2010,5000117695,"16,720.00",EUROSIGNS (UK) LTD
ROW Capital Programme,Eligible Supp and Sv,16/12/2010,5000117695,"7,528.00",EUROSIGNS (UK) LTD
ROW Capital Programme,Eligible Supp and Sv,16/12/2010,5000117696,"5,016.00",EUROSIGNS (UK) LTD
ROW Capital Programme,Eligible Supp and Sv,16/12/2010,5000117756,"3,344.00",EUROSIGNS (UK) LTD
ROW Capital Programme,Eligible Supp and Sv,16/12/2010,5000117696,"2,258.40",EUROSIGNS (UK) LTD
ROW Capital Programme,Eligible Supp and Sv,16/12/2010,5000117756,"1,505.60",EUROSIGNS (UK) LTD
School Reorganisation Consultation Costs,Legal Fees - Other P,02/11/2010,5000110375,601.50,EVERSHEDS LLP
School Reorganisation Consultation Costs,Legal Fees - Other P,17/12/2010,5000117910,"1,500.00",EVERSHEDS LLP
School Reorganisation Consultation Costs,Legal Fees - Other P,17/12/2010,5000117910,"1,500.00",EVERSHEDS LLP
EF - Nurs - OP East - Mainland,Chgs from Ind Provs,12/11/2010,5000112275,"3,300.36",EXCEL CARE HOMES LTD [SB]
EF - Nurs - OP East - Mainland,Chgs from Ind Provs,25/11/2010,5000114314,"1,335.86",EXCEL CARE HOMES LTD [SB]
Local Development Framework,Consultants Fees,11/11/2010,5000111919,"1,479.86",EXPERIAN LTD
Miscellaneous Non-rechargeable,Sundry Office Expens,20/10/2010,5000108052,845.00,EXPOLINK EUROPE LIMITED
Crematorium,Operational Equipmen,29/11/2010,5000114813,"1,247.07",F G MARSHALL LTD
Education Fair Funding High Schools,Cap Contractor Pmts,27/10/2010,5000109327,"4,184.00",F W MARSH [ELECT & MECH] LTD
Ryde High Devolved Capital,Cap Contractor Pmts,04/11/2010,1900253359,"1,998.00",F W MARSH [ELECT & MECH] LTD
Education Fair Funding Primary Schools,Cap Contractor Pmts,10/11/2010,5000111677,"2,950.00",F W MARSH [ELECT & MECH] LTD
Education Fair Funding Primary Schools,Cap Contractor Pmts,22/11/2010,5000113705,"3,500.00",F W MARSH [ELECT & MECH] LTD
Leisure Facility Improvement,Ext Design & Superv,12/10/2010,5000106292,"20,000.00",FAIRHURSTS DESIGN GROUP
Leisure Facility Improvement,Ext Design & Superv,25/10/2010,5000108685,"20,000.00",FAIRHURSTS DESIGN GROUP
Leisure Facility Improvement,Ext Design & Superv,26/11/2010,5000114576,"20,000.00",FAIRHURSTS DESIGN GROUP
EF - Res - OP East,Chgs from Ind Provs,12/10/2010,5105619499,"1,536.92",FAIRVIEW CARE HOME LTD [SB]
EF - Res - OP East,Chgs from Ind Provs,12/10/2010,5105619499,"1,536.92",FAIRVIEW CARE HOME LTD [SB]
EMI - Res - OP East,Chgs from Ind Provs,12/10/2010,5105619499,"1,892.24",FAIRVIEW CARE HOME LTD [SB]
EMI - Res - OP East,Chgs from Ind Provs,12/10/2010,5105619499,"1,610.00",FAIRVIEW CARE HOME LTD [SB]
EMI - Res - OP East,Chgs from Ind Provs,12/10/2010,5105619499,"1,610.00",FAIRVIEW CARE HOME LTD [SB]
EMI - Res - OP East,Chgs from Ind Provs,12/10/2010,5105619499,"1,610.00",FAIRVIEW CARE HOME LTD [SB]
EMI - Res - OP East,Chgs from Ind Provs,12/10/2010,5105619499,"1,610.00",FAIRVIEW CARE HOME LTD [SB]
EMI - Res - OP East,Chgs from Ind Provs,12/10/2010,5105619499,"1,610.00",FAIRVIEW CARE HOME LTD [SB]
EMI - Res - OP West,Chgs from Ind Provs,12/10/2010,5105619499,"1,892.24",FAIRVIEW CARE HOME LTD [SB]
Dementia Residential Care,Chgs from Ind Provs,13/10/2010,5000106520,"1,725.00",FAIRVIEW CARE HOME LTD [SB]
Dementia Residential Care,Chgs from Ind Provs,13/10/2010,5000106525,"1,725.00",FAIRVIEW CARE HOME LTD [SB]
EMI - Res - OP East,Chgs from Ind Provs,13/10/2010,5000106527,"1,725.00",FAIRVIEW CARE HOME LTD [SB]
EMI - Res - OP East,Chgs from Ind Provs,13/10/2010,5000106529,"1,725.00",FAIRVIEW CARE HOME LTD [SB]
EMI - Res - OP East,Chgs from Ind Provs,28/10/2010,5000109689,"1,725.00",FAIRVIEW CARE HOME LTD [SB]
Dementia Residential Care,Chgs from Ind Provs,09/11/2010,5000111375,"1,782.50",FAIRVIEW CARE HOME LTD [SB]
Dementia Residential Care,Chgs from Ind Provs,09/11/2010,5000111378,"1,782.50",FAIRVIEW CARE HOME LTD [SB]
Dementia Residential Care,Chgs from Ind Provs,09/11/2010,5000111379,743.38,FAIRVIEW CARE HOME LTD [SB]
EF - Res - OP East,Chgs from Ind Provs,09/11/2010,5105625758,"1,536.92",FAIRVIEW CARE HOME LTD [SB]
EF - Res - OP East,Chgs from Ind Provs,09/11/2010,5105625758,"1,536.92",FAIRVIEW CARE HOME LTD [SB]
EMI - Res - OP East,Chgs from Ind Provs,09/11/2010,5105625758,"1,892.24",FAIRVIEW CARE HOME LTD [SB]
EMI - Res - OP East,Chgs from Ind Provs,09/11/2010,5000111377,"1,782.50",FAIRVIEW CARE HOME LTD [SB]
EMI - Res - OP East,Chgs from Ind Provs,09/11/2010,5000111381,"1,782.50",FAIRVIEW CARE HOME LTD [SB]
EMI - Res - OP East,Chgs from Ind Provs,09/11/2010,5105625758,"1,610.00",FAIRVIEW CARE HOME LTD [SB]
EMI - Res - OP East,Chgs from Ind Provs,09/11/2010,5105625758,"1,610.00",FAIRVIEW CARE HOME LTD [SB]
EMI - Res - OP East,Chgs from Ind Provs,09/11/2010,5105625758,"1,610.00",FAIRVIEW CARE HOME LTD [SB]
EMI - Res - OP East,Chgs from Ind Provs,09/11/2010,5105625758,"1,610.00",FAIRVIEW CARE HOME LTD [SB]
EMI - Res - OP East,Chgs from Ind Provs,09/11/2010,5105625758,"1,610.00",FAIRVIEW CARE HOME LTD [SB]
EMI - Res - OP East,Chgs from Ind Provs,09/11/2010,5000111385,"1,207.50",FAIRVIEW CARE HOME LTD [SB]
EMI - Res - OP West,Chgs from Ind Provs,09/11/2010,5105625758,"1,892.24",FAIRVIEW CARE HOME LTD [SB]
Dementia Residential Care,Chgs from Ind Provs,07/12/2010,5105631466,"1,610.00",FAIRVIEW CARE HOME LTD [SB]
Dementia Residential Care,Chgs from Ind Provs,07/12/2010,5105631466,"1,610.00",FAIRVIEW CARE HOME LTD [SB]
EF - Res - OP East,Chgs from Ind Provs,07/12/2010,5105631466,"1,536.92",FAIRVIEW CARE HOME LTD [SB]
EF - Res - OP East,Chgs from Ind Provs,07/12/2010,5105631466,"1,536.92",FAIRVIEW CARE HOME LTD [SB]
EMI - Res - OP East,Chgs from Ind Provs,07/12/2010,5105631466,"1,892.24",FAIRVIEW CARE HOME LTD [SB]
EMI - Res - OP East,Chgs from Ind Provs,07/12/2010,5105631466,"1,610.00",FAIRVIEW CARE HOME LTD [SB]
EMI - Res - OP East,Chgs from Ind Provs,07/12/2010,5105631466,"1,610.00",FAIRVIEW CARE HOME LTD [SB]
EMI - Res - OP East,Chgs from Ind Provs,07/12/2010,5105631466,"1,610.00",FAIRVIEW CARE HOME LTD [SB]
EMI - Res - OP East,Chgs from Ind Provs,07/12/2010,5105631466,"1,610.00",FAIRVIEW CARE HOME LTD [SB]
EMI - Res - OP East,Chgs from Ind Provs,07/12/2010,5105631466,"1,610.00",FAIRVIEW CARE HOME LTD [SB]
EMI - Res - OP East,Chgs from Ind Provs,07/12/2010,5105631466,"1,610.00",FAIRVIEW CARE HOME LTD [SB]
EMI - Res - OP East,Chgs from Ind Provs,07/12/2010,5105631466,"1,610.00",FAIRVIEW CARE HOME LTD [SB]
EMI - Res - OP East,Chgs from Ind Provs,07/12/2010,5105631466,"1,610.00",FAIRVIEW CARE HOME LTD [SB]
EMI - Res - OP West,Chgs from Ind Provs,07/12/2010,5105631466,"1,892.24",FAIRVIEW CARE HOME LTD [SB]
Dementia Residential Care,Chgs from Ind Provs,14/12/2010,5000117186,"2,027.40",FAIRVIEW CARE HOME LTD [SB]
Dementia Residential Care,Chgs from Ind Provs,14/12/2010,5000117162,"1,725.00",FAIRVIEW CARE HOME LTD [SB]
Dementia Residential Care,Chgs from Ind Provs,14/12/2010,5000117172,"1,725.00",FAIRVIEW CARE HOME LTD [SB]
EF - Res - OP East,Chgs from Ind Provs,14/12/2010,5000117169,768.46,FAIRVIEW CARE HOME LTD [SB]
EMI - Res - OP East,Chgs from Ind Provs,14/12/2010,5000117182,"1,725.00",FAIRVIEW CARE HOME LTD [SB]
EMI - Res - OP East,Chgs from Ind Provs,14/12/2010,5000117164,"1,610.00",FAIRVIEW CARE HOME LTD [SB]
EMI - Res - OP East,Chgs from Ind Provs,20/12/2010,5000118359,"1,725.00",FAIRVIEW CARE HOME LTD [SB]
EF - Res - OP East,Chgs from Ind Provs,21/12/2010,5000118485,"1,646.70",FAIRVIEW CARE HOME LTD [SB]
Agency Placements,Pay to Vol and Other,06/10/2010,5000105013,"11,855.20",FAIRWAYS CARE (UK) LTD
Agency Placements,Pay to Vol and Other,06/10/2010,5000105014,"11,855.20",FAIRWAYS CARE (UK) LTD
Fostering by Other Agencies,Pay to Vol and Other,06/10/2010,5000105011,"2,970.60",FAIRWAYS CARE (UK) LTD
Fostering by Other Agencies,Pay to Vol and Other,06/10/2010,5000105012,"2,970.60",FAIRWAYS CARE (UK) LTD
Agency Placements,Pay to Vol and Other,21/10/2010,5000108136,"11,855.20",FAIRWAYS CARE (UK) LTD
Fostering by Other Agencies,Pay to Vol and Other,21/10/2010,5000108137,"2,970.60",FAIRWAYS CARE (UK) LTD
Agency Placements,Pay to Vol and Other,01/11/2010,5000110018,"11,855.20",FAIRWAYS CARE (UK) LTD
Fostering by Other Agencies,Pay to Vol and Other,01/11/2010,5000110020,"2,970.60",FAIRWAYS CARE (UK) LTD
Agency Placements,Pay to Vol and Other,15/11/2010,5000112565,"11,855.20",FAIRWAYS CARE (UK) LTD
Fostering by Other Agencies,Pay to Vol and Other,15/11/2010,5000112564,"2,970.60",FAIRWAYS CARE (UK) LTD
Agency Placements,Pay to Vol and Other,25/11/2010,5000114320,"11,855.20",FAIRWAYS CARE (UK) LTD
Fostering by Other Agencies,Pay to Vol and Other,25/11/2010,5000114322,"2,970.60",FAIRWAYS CARE (UK) LTD
Agency Placements,Pay to Vol and Other,16/12/2010,5000117742,"11,855.20",FAIRWAYS CARE (UK) LTD
Fostering by Other Agencies,Pay to Vol and Other,16/12/2010,5000117739,"2,970.60",FAIRWAYS CARE (UK) LTD
Agency Placements,Pay to Vol and Other,22/12/2010,5000118743,"11,855.20",FAIRWAYS CARE (UK) LTD
Fostering by Other Agencies,Pay to Vol and Other,22/12/2010,5000118744,"2,970.60",FAIRWAYS CARE (UK) LTD
Provision Of Meals,Catering Equipment,19/11/2010,5000113390,"1,750.00",FALCON FOODSERVICE EQUIPMENT
Dementia Residential Care,Chgs from Ind Provs,12/10/2010,5105619309,"1,610.00",FALLOWFIELD CARE HOME [SB]
EF - Res - OP East,Chgs from Ind Provs,12/10/2010,5105619309,"1,892.24",FALLOWFIELD CARE HOME [SB]
EF - Res - OP East,Chgs from Ind Provs,12/10/2010,5105619309,"1,536.92",FALLOWFIELD CARE HOME [SB]
EF - Res - OP East,Chgs from Ind Provs,12/10/2010,5105619309,"1,536.92",FALLOWFIELD CARE HOME [SB]
EF - Res - OP East,Chgs from Ind Provs,12/10/2010,5105619309,"1,536.92",FALLOWFIELD CARE HOME [SB]
EF - Res - OP East,Chgs from Ind Provs,12/10/2010,5105619309,"1,536.92",FALLOWFIELD CARE HOME [SB]
EF - Res - OP East,Chgs from Ind Provs,12/10/2010,5105619309,"1,536.92",FALLOWFIELD CARE HOME [SB]
EF - Res - OP East,Chgs from Ind Provs,12/10/2010,5105619309,"1,536.92",FALLOWFIELD CARE HOME [SB]
EMI - Res - OP East,Chgs from Ind Provs,12/10/2010,5105619309,"1,892.24",FALLOWFIELD CARE HOME [SB]
EMI - Res - OP East,Chgs from Ind Provs,12/10/2010,5105619309,"1,610.00",FALLOWFIELD CARE HOME [SB]
EMI - Res - OP East,Chgs from Ind Provs,12/10/2010,5105619309,"1,610.00",FALLOWFIELD CARE HOME [SB]
EMI - Res - OP East,Chgs from Ind Provs,12/10/2010,5105619309,"1,610.00",FALLOWFIELD CARE HOME [SB]
EMI - Res - OP East,Chgs from Ind Provs,12/10/2010,5105619309,"1,610.00",FALLOWFIELD CARE HOME [SB]
EF - Res - OP East,Chgs from Ind Provs,09/11/2010,5105625568,"1,892.24",FALLOWFIELD CARE HOME [SB]
EF - Res - OP East,Chgs from Ind Provs,09/11/2010,5105625568,"1,536.92",FALLOWFIELD CARE HOME [SB]
EF - Res - OP East,Chgs from Ind Provs,09/11/2010,5105625568,"1,536.92",FALLOWFIELD CARE HOME [SB]
EF - Res - OP East,Chgs from Ind Provs,09/11/2010,5105625568,"1,536.92",FALLOWFIELD CARE HOME [SB]
EF - Res - OP East,Chgs from Ind Provs,09/11/2010,5105625568,"1,536.92",FALLOWFIELD CARE HOME [SB]
EF - Res - OP East,Chgs from Ind Provs,09/11/2010,5105625568,"1,536.92",FALLOWFIELD CARE HOME [SB]
EMI - Res - OP East,Chgs from Ind Provs,09/11/2010,5105625568,"1,892.24",FALLOWFIELD CARE HOME [SB]
EMI - Res - OP East,Chgs from Ind Provs,09/11/2010,5105625568,"1,610.00",FALLOWFIELD CARE HOME [SB]
EMI - Res - OP East,Chgs from Ind Provs,09/11/2010,5105625568,"1,610.00",FALLOWFIELD CARE HOME [SB]
EMI - Res - OP East,Chgs from Ind Provs,09/11/2010,5105625568,"1,610.00",FALLOWFIELD CARE HOME [SB]
EMI - Res - OP East,Chgs from Ind Provs,09/11/2010,5105625568,"1,610.00",FALLOWFIELD CARE HOME [SB]
REDACTED PERSONAL DATA,Order Settlement,09/11/2010,5105625568,"1,536.92",FALLOWFIELD CARE HOME [SB]
Dementia Residential Care,Chgs from Ind Provs,10/11/2010,1700033788,-517.50,FALLOWFIELD CARE HOME [SB]
EF - Res - OP East,Chgs from Ind Provs,07/12/2010,5105631271,"1,892.24",FALLOWFIELD CARE HOME [SB]
EF - Res - OP East,Chgs from Ind Provs,07/12/2010,5105631271,"1,536.92",FALLOWFIELD CARE HOME [SB]
EF - Res - OP East,Chgs from Ind Provs,07/12/2010,5105631271,"1,536.92",FALLOWFIELD CARE HOME [SB]
EF - Res - OP East,Chgs from Ind Provs,07/12/2010,5105631271,"1,536.92",FALLOWFIELD CARE HOME [SB]
EF - Res - OP East,Chgs from Ind Provs,07/12/2010,5105631271,"1,536.92",FALLOWFIELD CARE HOME [SB]
EF - Res - OP East,Chgs from Ind Provs,07/12/2010,5105631271,"1,536.92",FALLOWFIELD CARE HOME [SB]
EMI - Res - OP East,Chgs from Ind Provs,07/12/2010,5000116029,"2,817.50",FALLOWFIELD CARE HOME [SB]
EMI - Res - OP East,Chgs from Ind Provs,07/12/2010,5105631271,"1,892.24",FALLOWFIELD CARE HOME [SB]
EMI - Res - OP East,Chgs from Ind Provs,07/12/2010,5105631271,"1,610.00",FALLOWFIELD CARE HOME [SB]
EMI - Res - OP East,Chgs from Ind Provs,07/12/2010,5105631271,"1,610.00",FALLOWFIELD CARE HOME [SB]
EMI - Res - OP East,Chgs from Ind Provs,07/12/2010,5105631271,"1,610.00",FALLOWFIELD CARE HOME [SB]
EMI - Res - OP East,Chgs from Ind Provs,07/12/2010,5105631271,"1,610.00",FALLOWFIELD CARE HOME [SB]
REDACTED PERSONAL DATA,Order Settlement,07/12/2010,5105631271,"1,536.92",FALLOWFIELD CARE HOME [SB]
EMI - Res - OP East,Chgs from Ind Provs,14/12/2010,5000117042,690.00,FALLOWFIELD CARE HOME [SB]
Fostering by Other Agencies,Pay to Vol and Other,14/10/2010,5000106677,"4,255.59",FAMILIES FOR CHILDREN (SOUTH) LTD
Fostering by Other Agencies,Pay to Vol and Other,09/11/2010,5000111393,"4,118.31",FAMILIES FOR CHILDREN (SOUTH) LTD
Fostering by Other Agencies,Pay to Vol and Other,14/12/2010,5000116979,"4,255.68",FAMILIES FOR CHILDREN (SOUTH) LTD
Fostering by Other Agencies,Pay to Vol and Other,17/12/2010,5000117942,"4,118.40",FAMILIES FOR CHILDREN (SOUTH) LTD
Children Centres Capital Schemes,Cap Contractor Pmts,20/10/2010,5000107977,"3,000.00",FAWNS RECREATIONAL SERVICES LTD
School Music Service,Professional Service,04/11/2010,5000110729,663.00,FEDERATION OF MUSIC SERVICES
St Helens Primary Devolved Capital,"Pl, Equip & Furn - C",05/10/2010,1900238796,599.85,FINDEL EDUCATION LTD
Winter Maintenance,Pay to Pvte Contract,23/11/2010,5000113978,"6,979.00",FINDLAY IRVINE LIMITED
Winter Maintenance,Pay to Pvte Contract,14/12/2010,5000117094,966.00,FINDLAY IRVINE LIMITED
EF - Res - OP East,Chgs from Ind Provs,12/10/2010,5000106304,"6,785.00",FIRBANK RESIDENTIAL CARE HOME [SB]
EF - Res - OP East,Chgs from Ind Provs,12/10/2010,5105619307,"1,892.24",FIRBANK RESIDENTIAL CARE HOME [SB]
EF - Res - OP East,Chgs from Ind Provs,12/10/2010,5105619307,"1,757.00",FIRBANK RESIDENTIAL CARE HOME [SB]
EF - Res - OP East,Chgs from Ind Provs,12/10/2010,5105619307,"1,536.92",FIRBANK RESIDENTIAL CARE HOME [SB]
EF - Res - OP East,Chgs from Ind Provs,12/10/2010,5000106311,"1,495.00",FIRBANK RESIDENTIAL CARE HOME [SB]
EF - Res - OP East,Chgs from Ind Provs,12/10/2010,5000106310,"-6,785.00",FIRBANK RESIDENTIAL CARE HOME [SB]
EMI - Res - OP East,Chgs from Ind Provs,12/10/2010,5105619307,"1,892.24",FIRBANK RESIDENTIAL CARE HOME [SB]
EMI - Res - OP East,Chgs from Ind Provs,12/10/2010,5105619307,"1,892.24",FIRBANK RESIDENTIAL CARE HOME [SB]
EMI - Res - OP East,Chgs from Ind Provs,12/10/2010,5105619307,"1,892.24",FIRBANK RESIDENTIAL CARE HOME [SB]
EMI - Res - OP East,Chgs from Ind Provs,12/10/2010,5105619307,"1,892.24",FIRBANK RESIDENTIAL CARE HOME [SB]
EF - Res - OP East,Chgs from Ind Provs,26/10/2010,5000108819,"3,041.10",FIRBANK RESIDENTIAL CARE HOME [SB]
EF - Res - OP East,Chgs from Ind Provs,09/11/2010,5105625566,"1,892.24",FIRBANK RESIDENTIAL CARE HOME [SB]
EF - Res - OP East,Chgs from Ind Provs,09/11/2010,5105625566,"1,892.24",FIRBANK RESIDENTIAL CARE HOME [SB]
EF - Res - OP East,Chgs from Ind Provs,09/11/2010,5105625566,"1,757.00",FIRBANK RESIDENTIAL CARE HOME [SB]
EF - Res - OP East,Chgs from Ind Provs,09/11/2010,5105625566,"1,536.92",FIRBANK RESIDENTIAL CARE HOME [SB]
EMI - Res - OP East,Chgs from Ind Provs,09/11/2010,5105625566,"1,892.24",FIRBANK RESIDENTIAL CARE HOME [SB]
EMI - Res - OP East,Chgs from Ind Provs,09/11/2010,5105625566,"1,892.24",FIRBANK RESIDENTIAL CARE HOME [SB]
EMI - Res - OP East,Chgs from Ind Provs,09/11/2010,5105625566,"1,892.24",FIRBANK RESIDENTIAL CARE HOME [SB]
EMI - Res - OP East,Chgs from Ind Provs,09/11/2010,5105625566,"1,892.24",FIRBANK RESIDENTIAL CARE HOME [SB]
EF - Res - OP East,Chgs from Ind Provs,07/12/2010,5105631269,"1,892.24",FIRBANK RESIDENTIAL CARE HOME [SB]
EF - Res - OP East,Chgs from Ind Provs,07/12/2010,5105631269,"1,892.24",FIRBANK RESIDENTIAL CARE HOME [SB]
EF - Res - OP East,Chgs from Ind Provs,07/12/2010,5105631269,"1,757.00",FIRBANK RESIDENTIAL CARE HOME [SB]
EF - Res - OP East,Chgs from Ind Provs,07/12/2010,5105631269,"1,536.92",FIRBANK RESIDENTIAL CARE HOME [SB]
EMI - Res - OP East,Chgs from Ind Provs,07/12/2010,5105631269,"1,892.24",FIRBANK RESIDENTIAL CARE HOME [SB]
EMI - Res - OP East,Chgs from Ind Provs,07/12/2010,5105631269,"1,892.24",FIRBANK RESIDENTIAL CARE HOME [SB]
EMI - Res - OP East,Chgs from Ind Provs,07/12/2010,5105631269,"1,892.24",FIRBANK RESIDENTIAL CARE HOME [SB]
EMI - Res - OP East,Chgs from Ind Provs,07/12/2010,5105631269,"1,892.24",FIRBANK RESIDENTIAL CARE HOME [SB]
EMI - Res - OP East,Chgs from Ind Provs,16/12/2010,5000117834,"2,127.50",FIRBANK RESIDENTIAL CARE HOME [SB]
EMI - Res - OP East,Chgs from Ind Provs,16/12/2010,5000117836,"1,782.50",FIRBANK RESIDENTIAL CARE HOME [SB]
EF - Res - OP East,Chgs from Ind Provs,21/12/2010,5000118528,"1,437.50",FIRBANK RESIDENTIAL CARE HOME [SB]
EF - Res - OP East,Chgs from Ind Provs,21/12/2010,5000118528,"1,207.58",FIRBANK RESIDENTIAL CARE HOME [SB]
EF - Res - OP East,Chgs from Ind Provs,22/12/2010,1700035945,"-3,716.90",FIRBANK RESIDENTIAL CARE HOME [SB]
EMI - Res - OP East,Chgs from Ind Provs,22/12/2010,1700035947,"-1,610.00",FIRBANK RESIDENTIAL CARE HOME [SB]
WW Landscape Partnership,Pay to Pvte Contract,13/10/2010,5000106464,"1,034.17",FIRE ISLAND LIMITED
Diversity & Workforce,Train and Conference,29/10/2010,5000109716,650.00,FIRE SERVICE COLLEGE
Diversity & Workforce,Train and Conference,22/11/2010,5000113729,-795.00,FIRE SERVICE COLLEGE
Diversity & Workforce,Train and Conference,06/12/2010,5000115628,"2,395.00",FIRE SERVICE COLLEGE
Diversity & Workforce,Train and Conference,06/12/2010,5000115626,"2,345.00",FIRE SERVICE COLLEGE
Disabled Facilities Grants,Capital Grants,13/10/2010,1900240574,"3,950.00",FIRST CHOICE STAIRLIFTS
Disabled Facilities Grants,Capital Grants,22/11/2010,1900260340,895.00,FIRST CHOICE STAIRLIFTS
Housing Renewal Assistance,Capital Grants,23/12/2010,1900278125,845.00,FIRST CHOICE STAIRLIFTS
Fostering by Other Agencies,Pay to Vol and Other,06/10/2010,5000104996,"7,261.13",FIVE RIVERS CHILD CARE LTD
Fostering by Other Agencies,Pay to Vol and Other,06/10/2010,5000104993,"3,986.60",FIVE RIVERS CHILD CARE LTD
Fostering by Other Agencies,Pay to Vol and Other,06/10/2010,5000104995,"3,986.60",FIVE RIVERS CHILD CARE LTD
